Workbook

Sheet LotInfo
A1: LotInfo: | H1: Contractor QC Mgr Job # | L1: Enter Lot Number
A3: SPFPay For use only on the Sac 5 Long Life Project (3/18/19 REV1) | R3: © 2018 California Department of Transportation
A5: http://www.dot.ca.gov/hq/construc/hma/ | H5: Project Name: | I5: SAC 5 Corridor Enhancement Project
H6: EA (or Project ID): | I6: 03-0H10U4 | L6: Contractor:
H7: JMF No. | L7: HMA Plant:
H8: Co/Rte/PM: | I8: 03/Sac/5 PM 9.4 to | L8: QC Manager:
L9: Resident Engineer:
H10: HMA Type: | I10: HMA LL RB SAC-5 | L10: QC Lab:
M11: Item Price:
H12: Projects Specified PG Grade: | M12: Bid Item #
H14: =IF(OR(hmatype=mixa1,hmatype=mixa2,hmatype=mixb1,hmatype=mixb2,hmatype=mixc1),"%RAP Agg in Agg Blend:","") ->  | J14: =IF(OR(hmatype=mixa1,hmatype=mixa2,hmatype=mixb1,hmatype=mixb2,hmatype=mixc1),"% (Type A HMA Only)","") ->  | M14: =("JMF No.: "&" "&jmf) -> JMF No.:
E15: `
H16: Binder Source:
H17: Add'l Binder Desc:
B25: Quality Characteristic | C25: 2" | D25: 1-1/2" | E25: 1" | F25: 3/4" | G25: 1/2" | H25: 3/8" | I25: #4 | J25: #8 | K25: #16 | L25: #30 | M25: #50 | N25: #100 | O25: #200 | P25: B.C. | Q25: %MTD | R25: % Air Voids
B26: Target Value
B27: Production Tolerance | C27: =IF(VLOOKUP(hmatype,$AB$267:$AQ$294,2,FALSE)="","",VLOOKUP(hmatype,$AB$267:$AQ$294,2,FALSE)) ->  | D27: =IF(VLOOKUP(hmatype,$AB$267:$AQ$294,3,FALSE)="","",VLOOKUP(hmatype,$AB$267:$AQ$294,3,FALSE)) ->  | E27: =IF(VLOOKUP(hmatype,$AB$267:$AQ$294,4,FALSE)="","",VLOOKUP(hmatype,$AB$267:$AQ$294,4,FALSE)) -> 0 | F27: =IF(VLOOKUP(hmatype,$AB$267:$AQ$294,5,FALSE)="","",VLOOKUP(hmatype,$AB$267:$AQ$294,5,FALSE)) -> 5 | G27: =IF(VLOOKUP(hmatype,$AB$267:$AQ$294,6,FALSE)="","",VLOOKUP(hmatype,$AB$267:$AQ$294,6,FALSE)) -> 6 | H27: =IF(VLOOKUP(hmatype,$AB$267:$AQ$294,7,FALSE)="","",VLOOKUP(hmatype,$AB$267:$AQ$294,7,FALSE)) -> nsl / mr | I27: =IF(VLOOKUP(hmatype,$AB$267:$AQ$294,8,FALSE)="","",VLOOKUP(hmatype,$AB$267:$AQ$294,8,FALSE)) -> 5 | J27: =IF(VLOOKUP(hmatype,$AB$267:$AQ$294,9,FALSE)="","",VLOOKUP(hmatype,$AB$267:$AQ$294,9,FALSE)) -> 5 | K27: =IF(VLOOKUP(hmatype,$AB$267:$AQ$294,10,FALSE)="","",VLOOKUP(hmatype,$AB$267:$AQ$294,10,FALSE)) -> nsl / mr | L27: =IF(VLOOKUP(hmatype,$AB$267:$AQ$294,11,FALSE)="","",VLOOKUP(hmatype,$AB$267:$AQ$294,11,FALSE)) -> 4 | M27: =IF(VLOOKUP(hmatype,$AB$267:$AQ$294,12,FALSE)="","",VLOOKUP(hmatype,$AB$267:$AQ$294,12,FALSE)) -> nsl / mr | N27: =IF(VLOOKUP(hmatype,$AB$267:$AQ$294,13,FALSE)="","",VLOOKUP(hmatype,$AB$267:$AQ$294,13,FALSE)) -> nsl / mr | O27: =IF(VLOOKUP(hmatype,$AB$267:$AQ$294,14,FALSE)="","",VLOOKUP(hmatype,$AB$267:$AQ$294,14,FALSE)) -> 2 | P27: =IF(VLOOKUP(hmatype,$AB$267:$AQ$294,15,FALSE)="","",VLOOKUP(hmatype,$AB$267:$AQ$294,15,FALSE)) -> 0.4 | R27: =VLOOKUP(hmatype,$AB$267:$AR$294,17,FALSE) -> 1.5
B28: Upper Specification Limit | C28: =IF(C26="","",IF(C27="n/a","n/a",(IF(C26+C27>100,100,C26+C27)))) ->  | D28: =IF(D26="","",IF(D27="n/a","n/a",(IF(D26+D27>100,100,D26+D27)))) ->  | E28: =IF(E26="","",IF(E27="n/a","n/a",(IF(E26+E27>100,100,E26+E27)))) ->  | F28: =IF(F26="","",IF(F27="n/a","n/a",(IF(F26+F27>100,100,F26+F27)))) ->  | G28: =IF(G26="","",IF(G27="n/a","n/a",(IF(G26+G27>100,100,G26+G27)))) ->  | H28: =IF(H26="","",IF(H27="nsl / mr","nsl / mr",(IF(H26+H27>100,100,H26+H27)))) ->  | Q28: =IF(VLOOKUP(hmatype,$AB$312:$AQ$314,16,FALSE)="","",VLOOKUP(hmatype,$AB$312:$AQ$314,16,FALSE)) -> 100 | R28: =IF(OR(R26="",R26="n/a"),"",IF(R27="nsl / mr","nsl / mr",(IF(R26+R27>100,100,R26+R27)))) -> 
B29: Lower Specification Limit | C29: =IF(C26="","",IF(C27="n/a","n/a",(IF(C26-C27<0,0,C26-C27)))) ->  | D29: =IF(D26="","",IF(D27="n/a","n/a",(IF(D26-D27<0,0,D26-D27)))) ->  | E29: =IF(E26="","",IF(E27="n/a","n/a",(IF(E26-E27<0,0,E26-E27)))) ->  | F29: =IF(F26="","",IF(F27="n/a","n/a",(IF(F26-F27<0,0,F26-F27)))) ->  | G29: =IF(G26="","",IF(G27="n/a","n/a",(IF(G26-G27<0,0,G26-G27)))) ->  | H29: =IF(H26="","",IF(H27="nsl / mr","nsl / mr",(IF(H26-H27<0,0,H26-H27)))) ->  | I29: =IF(I26="","",IF(I27="nsl / mr","nsl / mr",(IF(I26-I27<0,0,I26-I27)))) ->  | Q29: =IF(VLOOKUP(hmatype,$AB$344:$AQ$346,16,FALSE)="","",VLOOKUP(hmatype,$AB$344:$AQ$346,16,FALSE)) -> 97 | R29: =IF(OR(R26="",R26="n/a"),"",IF(R27="nsl / mr","nsl / mr",(IF(R26-R27<0,0,R26-R27)))) -> 
B30: Weighting Factor (w) | C30: =VLOOKUP(hmatype,$AB$195:$AQ$222,2,FALSE) -> 0 | D30: =VLOOKUP(hmatype,$AB$195:$AQ$222,3,FALSE) -> 0 | E30: =VLOOKUP(hmatype,$AB$195:$AQ$222,4,FALSE) -> 0 | F30: =VLOOKUP(hmatype,$AB$195:$AQ$222,5,FALSE) -> 0 | G30: =VLOOKUP(hmatype,$AB$195:$AQ$222,6,FALSE) -> 0 | H30: =VLOOKUP(hmatype,$AB$195:$AQ$222,7,FALSE) -> 0 | I30: =VLOOKUP(hmatype,$AB$195:$AQ$222,8,FALSE) -> 0.05 | J30: =VLOOKUP(hmatype,$AB$195:$AQ$222,9,FALSE) -> 0.1 | K30: =VLOOKUP(hmatype,$AB$195:$AQ$222,10,FALSE) -> 0 | L30: =VLOOKUP(hmatype,$AB$195:$AQ$222,11,FALSE) -> 0 | M30: =VLOOKUP(hmatype,$AB$195:$AQ$222,12,FALSE) -> 0 | N30: =VLOOKUP(hmatype,$AB$195:$AQ$222,13,FALSE) -> 0 | O30: =VLOOKUP(hmatype,$AB$195:$AQ$222,14,FALSE) -> 0.15 | P30: =VLOOKUP(hmatype,$AB$195:$AQ$222,15,FALSE) -> 0.3 | Q30: =VLOOKUP(hmatype,$AB$195:$AQ$222,16,FALSE) -> 0.4 | R30: =VLOOKUP(hmatype,$AB$195:$AR$222,17,FALSE) -> 0
B31: Values check for 2 in a row=>
J32: *nsl / mr = no spec limit / must report per CT 202. On target value line, enter value from JMF (CEM-3511).
J33: Bold target values above are quality characteristics that will be checked against specification limits.
B100: Summary of Revisions to SPFPay Program. (report any bugs or recommendations to pete.spector@dot.ca.gov) | BA100: Instructions for Setting up Trusted Folders (Eliminates the need to enable Macros each time you open HMAPay)
BA103: 1. Click the Microsoft Office Button (top left corner), then click Excel Options.
BA105: 2. Click Trust Center, click Trust Center Settings, and then click Trusted Locations.
BA107: 3. If you want to create a trusted location that is not local to your computer, select the Allow trusted locations on my network (not recommended) check box.
BA109: 4. Click Add new location.
BB111: It is recommended that you don't make your entire Documents or My Documents folder a trusted location. Doing so creates
BB112: a larger target for a hacker to potentially exploit and increases your security risk. Create a subfolder within Documents or My Documents,
BB113: and make only that folder a trusted location.
BA115: 5. In the Path box, type the name of the folder that you want to use as a trusted location, or click Browse to locate the folder.
AB116: 3 Out in One Day
BA117: 6. If you want to include subfolders as trusted locations, select the Subfolders of this location are also trusted check box.
AB118: YES
AB119: NO | BA119: 7. In the Description box, type what you want to describe the purpose of the trusted location.
BA121: 8. Click OK.
AB126: Data Valadation list for to allow users to determine if the want worksheets to open up at top left corner when sheet is selected.
AM127: Project Spec | AN127: Hamburg Wheel Tr. | AQ127: Lot Number Selection List
AM128: PG Binder | AN128: 0.5" rut | AO128: at inflect
AM129: Grade | AQ129: 1
AQ130: 2
AM131: PG 58-22 | AN131: 10000 | AO131: 10000 | AQ131: 3
AB132: Initial file name assembled below, DO NOT MODIFY AB133!! | AM132: PG 64-10 | AN132: 15000 | AO132: 10000 | AQ132: 4
AB133: ="SPFPayV1-00_"&ea&".xlsm" -> SPFPayV1-00_03-0H10U4.xlsm | AM133: PG 64-16 | AN133: 15000 | AO133: 10000 | AQ133: 5
AM134: PG 64-28 | AN134: 15000 | AO134: 10000 | AQ134: 6
AB135: Comment: | AM135: PG 70-10 | AN135: 20000 | AO135: 12500 | AQ135: 7
AB136: This table provided for info only. During design of the program, it was originally intended to be automated by the user selection. | AM136: PG 58-34 M | AN136: 10000 | AO136: 10000 | AQ136: 8
AB137: For rubberized HMA mixes, spec writer is supposed to specify these air void values. | AM137: PG 64-28 M | AN137: 15000 | AO137: 10000 | AQ137: 9
AB138: This table not used in | AI138: Std | AM138: PG 76-22 M | AN138: 25000 | AO138: 15000 | AQ138: 10
AB139: Traffic Index | AD139: Region | AI139: Spec
AC140: mountain | AD140: coast | AE140: valley | AF140: desert | AI140: dropdown
AB141: 0 to 6 | AC141: 3 | AD141: 3 | AE141: 3 | AF141: 3
AB142: > 6 to 10 | AC142: 4 | AD142: 4 | AE142: 4 | AF142: 5 | AI142: OBC(WDA) ..old spec
AB143: > 10 | AC143: 4 | AD143: 5 | AE143: 5 | AF143: 5 | AI143: OBC(TWM) ..new spec
AB149: WHEN ADDING MIX DESIGN(S), ONLY ENTER THE MIX TYPE TEXT IN THE GRAY CELLS, ALL OTHERS MIX TYPE NAMES IN COLUMN AB REFERENCE THE GREY CELLS.
AB150: DON’T FORGET TO INCREASE THE DATA VALIDATION LIST WHERE THE MIX TYPE IS SELECTED BY THE USER (in CELL I10)
AB152: vlookupcolumns
AB153: 1 | AC153: 2 | AD153: 3 | AE153: 4 | AF153: 5 | AG153: 6 | AH153: 7 | AI153: 8 | AJ153: 9 | AK153: 10 | AL153: 11 | AM153: 12 | AN153: 13 | AO153: 14 | AP153: 15 | AQ153: 16
AB155: "mixxx" namedcell | AG155: Percent Crushed (%min) | AJ155: LA Rattler | AL155: FAA(min) | AM155: F&E(max) | AN155: VMA(min) | AO155: VFA | AP155: VFA | AQ155: DP | AR155: DP
AC156: SE (min) | AD156: Stab (min) | AE156: Air Voids | AF156: %moist (max) | AG156: crs 1face | AH156: crs 2faces | AI156: #4to#8 | AJ156: 100 rev | AK156: 500rev | AO156: min | AP156: max | AQ156: min | AR156: max
AA157: a1 | AB157: =mixa1 -> 1" HMA Type A | AC157: 47 | AF157: 1 | AG157: -- | AH157: 90 | AI157: 70 | AJ157: 12 | AK157: 40 | AL157: 45 | AM157: 10 | AN157: 13 | AO157: 65 | AP157: 75 | AQ157: 0.6 | AR157: 1.2
AA158: a2 | AB158: =mixa2 -> 3/4" HMA Type A | AC158: 47 | AF158: 1 | AG158: -- | AH158: 90 | AI158: 70 | AJ158: 12 | AK158: 40 | AL158: 45 | AM158: 10 | AN158: 13 | AO158: 65 | AP158: 75 | AQ158: 0.6 | AR158: 1.2
AA159: b1 | AB159: =mixb1 -> 1/2" HMA Type A | AC159: 47 | AF159: 1 | AG159: -- | AH159: 90 | AI159: 70 | AJ159: 12 | AK159: 40 | AL159: 45 | AM159: 10 | AN159: 14 | AO159: 65 | AP159: 75 | AQ159: 0.6 | AR159: 1.2
AA160: b2 | AB160: =mixb2 -> 3/8' HMA Type A | AC160: 47 | AF160: 1 | AG160: -- | AH160: 90 | AI160: 70 | AJ160: 12 | AK160: 40 | AL160: 45 | AM160: 10 | AN160: 14 | AO160: 65 | AP160: 75 | AQ160: 0.6 | AR160: 1.2
AA161: c1 | AB161: =mixc1 -> No.4 HMA Type A | AC161: 47 | AF161: 1 | AG161: -- | AH161: 90 | AI161: 70 | AJ161: 12 | AK161: 40 | AL161: 45 | AM161: 10 | AN161: 15 | AO161: 65 | AP161: 75 | AQ161: 0.6 | AR161: 1.2
AA162: c2 | AB162: =mixc2 -> 0
AA163: d1 | AB163: =mixd1 -> 3/4" RHMA-G | AC163: 47 | AF163: 1 | AG163: -- | AH163: 90 | AI163: 70 | AJ163: 12 | AK163: 40 | AL163: 45 | AM163: Report Only
AA164: d2 | AB164: =mixd2 -> 1/2" RHMA-G | AC164: 47 | AF164: 1 | AG164: -- | AH164: 90 | AI164: 70 | AJ164: 12 | AK164: 40 | AL164: 45 | AM164: Report Only | AN164: 18.0 - 23.0 | AO164: 65 | AP164: 75 | AQ164: 0.6 | AR164: 1.2
AA165: e | AB165: =mixe -> 0
AA166: f | AB166: =mixf -> HMA LL UL SAC-5
AA167: g | AB167: =mixg -> HMA LL IL SAC-5
AA168: h | AB168: =mixh -> HMA LL RB SAC-5
AA169: i | AB169: =mixi -> 0
AA170: j | AB170: =mixj -> 0
AA171: k | AB171: =mixk -> 0
AA172: l | AB172: =mixl -> 0
AA173: m | AB173: =mixm -> 0
AA174: n | AB174: =mixn -> 0
AA175: o | AB175: =mixo -> 0
AA176: p | AB176: =mixp -> 0
AA177: q | AB177: =mixq -> 0
AA178: r | AB178: =mixr -> 0
AA179: s | AB179: =mixs -> 0
AA180: t | AB180: =mixt -> 0
AA181: u | AB181: =mixu -> 0
AA182: v | AB182: =mixv -> 0
AA183: w | AB183: =mixw -> 0
AA184: x | AB184: =mixx -> 0
AB185: spec limit for
AJ188: Not in the specs but need to make weighting factor add up to 1.00
AJ189: is there a limit on this?
AC190: 2" | AD190: 1-1/2" | AE190: 1" | AF190: 3/4" | AG190: 1/2" | AH190: 3/8" | AI190: #4 | AJ190: #8 | AK190: #16 | AL190: #30 | AM190: #50 | AN190: #100 | AO190: #200 | AP190: B.C. | AQ190: %MTD | AR190: Air Voids
AB191: vlookupcolumns
AB192: 1 | AC192: 2 | AD192: 3 | AE192: 4 | AF192: 5 | AG192: 6 | AH192: 7 | AI192: 8 | AJ192: 9 | AK192: 10 | AL192: 11 | AM192: 12 | AN192: 13 | AO192: 14 | AP192: 15 | AQ192: 16 | AR192: 17 | AS192: 18 | AT192: 19 | AU192: 20 | AV192: 21 | AW192: 22
AB193: "mixxx" namedcell | AJ193: V1.09 changed from "n/a" to "nsl / mr" | AN193: nsl / mr
AG194: Weighting Factor Table (for Rule 3 ensure cell states nsl / mr, not n/a. N/A's set Rule 1 text on qc and qa data sheets when it should state rule 3)
AA195: a1 | AB195: =mixa1 -> 1" HMA Type A | AC195: 0 | AD195: 0 | AE195: 0 | AF195: 0 | AG195: 0 | AH195: 0 | AI195: 0 | AJ195: 0.05 | AK195: 0 | AL195: 0 | AM195: 0 | AN195: 0 | AO195: 0.1 | AP195: 0.25 | AQ195: 0.4 | AR195: 0.2
AA196: a2 | AB196: =mixa2 -> 3/4" HMA Type A | AC196: 0 | AD196: 0 | AE196: 0 | AF196: 0 | AG196: 0 | AH196: 0 | AI196: 0 | AJ196: 0.05 | AK196: 0 | AL196: 0 | AM196: 0 | AN196: 0 | AO196: 0.1 | AP196: 0.25 | AQ196: 0.4 | AR196: 0.2
AA197: b1 | AB197: =mixb1 -> 1/2" HMA Type A | AC197: 0 | AD197: 0 | AE197: 0 | AF197: 0 | AG197: 0 | AH197: 0 | AI197: 0 | AJ197: 0.05 | AK197: 0 | AL197: 0 | AM197: 0 | AN197: 0 | AO197: 0.1 | AP197: 0.25 | AQ197: 0.4 | AR197: 0.2
AA198: b2 | AB198: =mixb2 -> 3/8' HMA Type A | AC198: 0 | AD198: 0 | AE198: 0 | AF198: 0 | AG198: 0 | AH198: 0 | AI198: 0 | AJ198: 0.05 | AK198: 0 | AL198: 0 | AM198: 0 | AN198: 0 | AO198: 0.1 | AP198: 0.25 | AQ198: 0.4 | AR198: 0.2
AA199: c1 | AB199: =mixc1 -> No.4 HMA Type A | AC199: 0 | AD199: 0 | AE199: 0 | AF199: 0 | AG199: 0 | AH199: 0 | AI199: 0 | AJ199: 0.05 | AK199: 0 | AL199: 0 | AM199: 0 | AN199: 0 | AO199: 0.1 | AP199: 0.25 | AQ199: 0.4 | AR199: 0.2
AA200: c2 | AB200: =mixc2 -> 0
AA201: d1 | AB201: =mixd1 -> 3/4" RHMA-G | AC201: 0 | AD201: 0 | AE201: 0 | AF201: 0 | AG201: 0 | AH201: 0 | AI201: 0 | AJ201: 0.05 | AK201: 0 | AL201: 0 | AM201: 0 | AN201: 0 | AO201: 0.1 | AP201: 0.25 | AQ201: 0.4 | AR201: 0.2
AA202: d2 | AB202: =mixd2 -> 1/2" RHMA-G | AC202: 0 | AD202: 0 | AE202: 0 | AF202: 0 | AG202: 0 | AH202: 0 | AI202: 0 | AJ202: 0.05 | AK202: 0 | AL202: 0 | AM202: 0 | AN202: 0 | AO202: 0.1 | AP202: 0.25 | AQ202: 0.4 | AR202: 0.2
AA203: e | AB203: =mixe -> 0
AA204: f | AB204: =mixf -> HMA LL UL SAC-5 | AC204: 0 | AD204: 0 | AE204: 0 | AF204: 0 | AG204: 0 | AH204: 0 | AI204: 0.05 | AJ204: 0.1 | AK204: 0 | AL204: 0 | AM204: 0 | AN204: 0 | AO204: 0.15 | AP204: 0.3 | AQ204: 0.4 | AR204: 0
AA205: g | AB205: =mixg -> HMA LL IL SAC-5 | AC205: 0 | AD205: 0 | AE205: 0 | AF205: 0 | AG205: 0 | AH205: 0 | AI205: 0.05 | AJ205: 0.1 | AK205: 0 | AL205: 0 | AM205: 0 | AN205: 0 | AO205: 0.15 | AP205: 0.3 | AQ205: 0.4 | AR205: 0
AA206: h | AB206: =mixh -> HMA LL RB SAC-5 | AC206: 0 | AD206: 0 | AE206: 0 | AF206: 0 | AG206: 0 | AH206: 0 | AI206: 0.05 | AJ206: 0.1 | AK206: 0 | AL206: 0 | AM206: 0 | AN206: 0 | AO206: 0.15 | AP206: 0.3 | AQ206: 0.4 | AR206: 0
AA207: i | AB207: =mixi -> 0
AA208: j | AB208: =mixj -> 0
AA209: k | AB209: =mixk -> 0
AA210: l | AB210: =mixl -> 0
AA211: m | AB211: =mixm -> 0
AA212: n | AB212: =mixn -> 0
AA213: o | AB213: =mixo -> 0
AA214: p | AB214: =mixp -> 0
AA215: q | AB215: =mixq -> 0
AA216: r | AB216: =mixr -> 0
AA217: s | AB217: =mixs -> 0
AA218: t | AB218: =mixt -> 0
AA219: u | AB219: =mixu -> 0
AA220: v | AB220: =mixv -> 0
AA221: w | AB221: =mixw -> 0
AA222: x | AB222: =mixx -> 0
AB223: =AB259 -> spec limit for | AE223: a,e | AF223: a,b,e,f | AG223: a,b,c,e,f | AH223: b,c,d,e,f | AI223: a,b,c,d,e,f | AJ223: a,b,c,d,e,f | AL223: a,b,c,d | AM223: g | AO223: a,b,c,d,e,f
AB226: vlookupcolumns
AB227: 1 | AC227: 2 | AD227: 3 | AE227: 4 | AF227: 5 | AG227: 6 | AH227: 7 | AI227: 8 | AJ227: 9 | AK227: 10 | AL227: 11 | AM227: 12 | AN227: 13 | AO227: 14 | AP227: 15 | AQ227: 16 | AR227: 17
AC228: 2" | AD228: 1-1/2" | AE228: 1" | AF228: 3/4" | AG228: 1/2" | AH228: 3/8" | AI228: #4 | AJ228: #8 | AK228: #16 | AL228: #30 | AM228: #50 | AN228: #100 | AO228: #200 | AP228: B.C. | AQ228: %MTD | AR228: %Air Voids
AB229: "mixxx" named cells enter mix name text here only
AG230: Index (i) shown below:
AA231: a1 | AB231: 1" HMA Type A | AJ231: 1 | AO231: 2 | AP231: 3 | AQ231: 5 | AR231: 4
AA232: a2 | AB232: 3/4" HMA Type A | AJ232: 1 | AO232: 2 | AP232: 3 | AQ232: 5 | AR232: 4
AA233: b1 | AB233: 1/2" HMA Type A | AJ233: 1 | AO233: 2 | AP233: 3 | AQ233: 5 | AR233: 4
AA234: b2 | AB234: 3/8' HMA Type A | AJ234: 1 | AO234: 2 | AP234: 3 | AQ234: 5 | AR234: 4
AA235: c1 | AB235: No.4 HMA Type A | AJ235: 1 | AO235: 2 | AP235: 3 | AQ235: 5 | AR235: 4
AA236: c2
AA237: d1 | AB237: 3/4" RHMA-G | AJ237: 1 | AO237: 2 | AP237: 3 | AQ237: 5 | AR237: 4
AA238: d2 | AB238: 1/2" RHMA-G | AJ238: 1 | AO238: 2 | AP238: 3 | AQ238: 5 | AR238: 4
AA239: e
AA240: f | AB240: HMA LL UL SAC-5 | AI240: 1 | AJ240: 2 | AO240: 3 | AP240: 4 | AQ240: 5
AA241: g | AB241: HMA LL IL SAC-5 | AI241: 1 | AJ241: 2 | AO241: 3 | AP241: 4 | AQ241: 5
AA242: h | AB242: HMA LL RB SAC-5 | AI242: 1 | AJ242: 2 | AO242: 3 | AP242: 4 | AQ242: 5
AA243: i
AA244: j
AA245: k
AA246: l
AA247: m
AA248: n
AA249: o
AA250: p
AA251: q
AA252: r
AA253: s
AA254: t
AA255: u
AA256: v
AA257: w
AA258: x
AB259: spec limit for | AE259: a,e | AF259: a,b,e,f | AG259: a,b,c,e,f | AH259: b,c,d,e,f | AI259: a,b,c,d,e,f | AJ259: a,b,c,d,e,f | AL259: a,b,c,d | AM259: g | AO259: a,b,c,d,e,f
AC261: 2" | AD261: 1-1/2" | AE261: 1" | AF261: 3/4" | AG261: 1/2" | AH261: 3/8" | AI261: #4 | AJ261: #8 | AK261: #16 | AL261: #30 | AM261: #50 | AN261: #100 | AO261: #200 | AP261: B.C. | AQ261: %MTD | AR261: %Air Voids
AV262: col for info only.Used for AX287toAX289
AC263: 2" | AD263: 1-1/2" | AE263: 1" | AF263: 3/4" | AG263: 1/2" | AH263: 3/8" | AI263: #4 | AJ263: #8 | AK263: #16 | AL263: #30 | AM263: #50 | AN263: #100 | AO263: #200 | AP263: B.C. | AQ263: %MTD | AR263: %Air Voids
AB264: vlookupcolumns | AE264: changed n/a to 0 | AR264: air voids + | AW264: Lower MTD | AX264: Upper MTD
AB265: 1 | AC265: 2 | AD265: 3 | AE265: 4 | AF265: 5 | AG265: 6 | AH265: 7 | AI265: 8 | AJ265: 9 | AK265: 10 | AL265: 11 | AM265: 12 | AN265: 13 | AO265: 14 | AP265: 15 | AQ265: 16 | AR265: 17 | AS265: 18 | AT265: 19 | AV265: 21 | AW265: 22 | AX265: 23 | AY265: 24 | AZ265: 25 | BA265: 26
AA266: mixdesx | AG266: + or - % Allowable Tolerances shown below (if 0, then only applys to usl) | AT266: mixdesx - hmatype
AA267: a1 | AB267: =mixa1 -> 1" HMA Type A | AE267: 0 | AF267: 5 | AG267: 6 | AH267: 6 | AI267: 7 | AJ267: 5 | AK267: nsl / mr | AL267: 4 | AM267: 4 | AN267: nsl / mr | AO267: 2 | AP267: 0.4 | AR267: 1.5 | AT267: ="mix"&AA267&" - "&AB267 -> mixa1 - 1" HMA Type A | AV267: 0.04 | AW267: 92 | AX267: 96
AA268: a2 | AB268: =mixa2 -> 3/4" HMA Type A | AE268: 0 | AF268: 5 | AG268: 6 | AH268: nsl / mr | AI268: 5 | AJ268: 5 | AK268: nsl / mr | AL268: 4 | AM268: nsl / mr | AN268: nsl / mr | AO268: 2 | AP268: 0.4 | AR268: 1.5 | AT268: ="mix"&AA268&" - "&AB268 -> mixa2 - 3/4" HMA Type A | AV268: 0.04 | AW268: 92 | AX268: 96
AA269: b1 | AB269: =mixb1 -> 1/2" HMA Type A | AF269: 0 | AG269: 5 | AH269: 5 | AI269: 5 | AJ269: 5 | AK269: nsl / mr | AL269: 4 | AM269: nsl / mr | AN269: nsl / mr | AO269: 2 | AP269: 0.4 | AR269: 1.5 | AT269: mixb1 - 1/2" HMA Type A | AV269: 0.04 | AW269: 92 | AX269: 96
AA270: b2 | AB270: =mixb2 -> 3/8' HMA Type A | AG270: 0 | AH270: 5 | AI270: 5 | AJ270: 5 | AK270: nsl / mr | AL270: 5 | AM270: nsl / mr | AN270: nsl / mr | AO270: 2 | AP270: 0.4 | AR270: 1.5 | AT270: mixb2 - 3/8' HMA Type A | AV270: 0.04 | AW270: 92 | AX270: 96
AA271: c1 | AB271: =mixc1 -> No.4 HMA Type A | AH271: 0 | AI271: 5 | AJ271: 6 | AK271: nsl / mr | AL271: 5 | AM271: nsl / mr | AN271: nsl / mr | AO271: 4 | AP271: 0.4 | AR271: 1.5 | AT271: mixc1 - No.4 HMA Type A | AV271: 0.04 | AW271: 92 | AX271: 96
AA272: c2 | AB272: =mixc2 -> 0 | AT272: mixc2 - 0 | AV272: 0.04
AA273: d1 | AB273: =mixd1 -> 3/4" RHMA-G | AE273: 0 | AF273: 5 | AG273: 6 | AH273: 5 | AI273: 6 | AJ273: 5 | AK273: nsl / mr | AL273: nsl / mr | AM273: nsl / mr | AN273: nsl / mr | AO273: 2 | AP273: 0.45 | AR273: 2 | AT273: mixd1 - 3/4" RHMA-G | AV273: 0.04 | AW273: 91 | AX273: 96
AA274: d2 | AB274: =mixd2 -> 1/2" RHMA-G | AF274: 0 | AG274: 6 | AH274: 5 | AI274: 6 | AJ274: 5 | AK274: nsl / mr | AL274: nsl / mr | AM274: nsl / mr | AN274: nsl / mr | AO274: 2 | AP274: 0.45 | AR274: 2 | AT274: mixd2 - 1/2" RHMA-G | AV274: 0.04 | AW274: 91 | AX274: 96
AA275: e | AB275: =mixe -> 0 | AT275: mixe - 0 | AV275: "3,4, or 5%
AA276: f | AB276: =mixf -> HMA LL UL SAC-5 | AE276: 0 | AF276: 5 | AG276: 6 | AH276: nsl / mr | AI276: 5 | AJ276: 5 | AK276: nsl / mr | AL276: 4 | AM276: nsl / mr | AN276: nsl / mr | AO276: 2 | AP276: 0.4 | AR276: 1.5 | AT276: mixf - HMA LL UL SAC-5 | AV276: "3,4, or 5%
AA277: g | AB277: =mixg -> HMA LL IL SAC-5 | AE277: 0 | AF277: 5 | AG277: 6 | AH277: nsl / mr | AI277: 5 | AJ277: 5 | AK277: nsl / mr | AL277: 4 | AM277: nsl / mr | AN277: nsl / mr | AO277: 2 | AP277: 0.4 | AR277: 1.5 | AT277: mixg - HMA LL IL SAC-5 | AV277: 0.05
AA278: h | AB278: =mixh -> HMA LL RB SAC-5 | AE278: 0 | AF278: 5 | AG278: 6 | AH278: nsl / mr | AI278: 5 | AJ278: 5 | AK278: nsl / mr | AL278: 4 | AM278: nsl / mr | AN278: nsl / mr | AO278: 2 | AP278: 0.4 | AR278: 1.5 | AT278: mixh - HMA LL RB SAC-5 | AV278: 0.04
AA279: i | AB279: =mixi -> 0 | AT279: mixi - 0 | AV279: 0.05
AA280: j | AB280: =mixj -> 0 | AT280: mixj - 0 | AV280: 0.04
AA281: k | AB281: =mixk -> 0 | AT281: mixk - 0 | AV281: 0.05
AA282: l | AB282: =mixl -> 0 | AT282: mixl - 0 | AV282: 0.04
AA283: m | AB283: =mixm -> 0 | AT283: mixm - 0 | AV283: n/a
AA284: n | AB284: =mixn -> 0 | AT284: mixn - 0 | AV284: n/a
AA285: o | AB285: =mixo -> 0 | AT285: mixo - 0 | AV285: "3,4, or 5% | AW285: Data Validation for air voids entry
AA286: p | AB286: =mixp -> 0 | AT286: mixp - 0 | AW286: After selecting a mix type, the range below will yield indicating which air voids are possible
AA287: q | AB287: =mixq -> 0 | AT287: mixq - 0 | AW287: "4% | AX287: =IF(OR(hmatype=mixa1,hmatype=mixa2, hmatype=mixb1,hmatype=mixb2, hmatype=mixc1,hmatype=mixc2,hmatype=mixd1,hmatype=mixd2,hmatype=mixh,hmatype=mixj,hmatype=mixl,hmatype=mixt,hmatype=mixv,hmatype=mixw,hmatype=mixx), 1,0) -> 1 | AY287: <=add to equation when hmatypes are added (if necessary)
AA288: r | AB288: =mixr -> 0 | AT288: mixr - 0 | AW288: "5% | AX288: =IF(OR(hmatype=mixg,hmatype=mixi,hmatype=mixk),1,0) -> 0 | AY288: <=add to equation when hmatypes are added (if necessary)
AA289: s | AB289: =mixs -> 0 | AT289: mixs - 0 | AW289: "3,4, or 5% | AX289: =IF(OR(hmatype=mixe,hmatype=mixf,hmatype=mixs,hmatype=mixo),1,0) -> 0 | AY289: <=add to equation when hmatypes are added (if necessary)
AA290: t | AB290: =mixt -> 0 | AT290: mixt - 0 | AV290: 0.04 | AW290: "n/a" | AX290: =IF(OR(hmatype=mixm,hmatype=mixn),1,0) -> 0 | AY290: <=add to equation when hmatypes are added (if necessary)
AA291: u | AB291: =mixu -> 0 | AT291: mixu - 0
AA292: v | AB292: =mixv -> 0 | AT292: mixv - 0 | AV292: 0.04
AA293: w | AB293: =mixw -> 0 | AT293: mixw - 0 | AV293: 0.04
AA294: x | AB294: =mixx -> 0 | AT294: mixx - 0 | AV294: 0.04
AB296: vlookupcolumns
AB297: 1 | AC297: 2 | AD297: 3 | AE297: 4 | AF297: 5 | AG297: 6 | AH297: 7 | AI297: 8 | AJ297: 9 | AK297: 10 | AL297: 11 | AM297: 12 | AN297: 13 | AO297: 14 | AP297: 15 | AQ297: 16 | AR297: 17
AB298: Upper end limit=> | AC298: =VLOOKUP(hmatype,$AB$303:$AQ$330,2,FALSE) -> 100 | AD298: =VLOOKUP(hmatype,$AB$303:$AQ$330,3,FALSE) -> 100 | AE298: =VLOOKUP(hmatype,$AB$303:$AQ$330,4,FALSE) -> 100 | AF298: =VLOOKUP(hmatype,$AB$303:$AQ$330,5,FALSE) -> 98 | AG298: =VLOOKUP(hmatype,$AB$303:$AQ$330,6,FALSE) -> 90 | AH298: =VLOOKUP(hmatype,$AB$303:$AQ$330,7,FALSE) -> 90 | AI298: =VLOOKUP(hmatype,$AB$303:$AQ$330,8,FALSE) -> 58 | AJ298: =VLOOKUP(hmatype,$AB$303:$AQ$330,9,FALSE) -> 43 | AK298: =VLOOKUP(hmatype,$AB$303:$AQ$330,10,FALSE) -> 43 | AL298: =VLOOKUP(hmatype,$AB$303:$AQ$330,11,FALSE) -> 23 | AM298: =VLOOKUP(hmatype,$AB$303:$AQ$330,12,FALSE) -> 23 | AN298: =VLOOKUP(hmatype,$AB$303:$AQ$330,13,FALSE) -> 23 | AO298: =VLOOKUP(hmatype,$AB$303:$AQ$330,14,FALSE) -> 7 | AP298: =VLOOKUP(hmatype,$AB$303:$AQ$330,15,FALSE) -> 100 | AQ298: =IF(VLOOKUP(hmatype,$AB$267:$AX$294,23,FALSE)="","",VLOOKUP(hmatype,$AB$267:$AX$294,23,FALSE)) -> 
AB299: Lower end limit=> | AC299: =VLOOKUP(hmatype,$AB$335:$AQ$362,2,FALSE) -> 100 | AD299: =VLOOKUP(hmatype,$AB$335:$AQ$362,3,FALSE) -> 100 | AE299: =VLOOKUP(hmatype,$AB$335:$AQ$362,4,FALSE) -> 100 | AF299: =VLOOKUP(hmatype,$AB$335:$AQ$362,5,FALSE) -> 90 | AG299: =VLOOKUP(hmatype,$AB$335:$AQ$362,6,FALSE) -> 70 | AH299: =VLOOKUP(hmatype,$AB$335:$AQ$362,7,FALSE) -> 42 | AI299: =VLOOKUP(hmatype,$AB$335:$AQ$362,8,FALSE) -> 42 | AJ299: =VLOOKUP(hmatype,$AB$335:$AQ$362,9,FALSE) -> 29 | AK299: =VLOOKUP(hmatype,$AB$335:$AQ$362,10,FALSE) -> 10 | AL299: =VLOOKUP(hmatype,$AB$335:$AQ$362,11,FALSE) -> 10 | AM299: =VLOOKUP(hmatype,$AB$335:$AQ$362,12,FALSE) -> 2 | AN299: =VLOOKUP(hmatype,$AB$335:$AQ$362,13,FALSE) -> 2 | AO299: =VLOOKUP(hmatype,$AB$335:$AQ$362,14,FALSE) -> 2 | AP299: =VLOOKUP(hmatype,$AB$335:$AQ$362,15,FALSE) -> 0 | AQ299: =IF(VLOOKUP(hmatype,$AB$267:$AX$294,22,FALSE)="","",VLOOKUP(hmatype,$AB$267:$AX$294,22,FALSE)) -> 
AC300: 2" | AD300: 1-1/2" | AE300: 1" | AF300: 3/4" | AG300: 1/2" | AH300: 3/8" | AI300: #4 | AJ300: #8 | AK300: #16 | AL300: #30 | AM300: #50 | AN300: #100 | AO300: #200 | AP300: B.C. | AQ300: %MTD | AR300: %Air Voids | AS300: SE | AU300: (Also don't forget to modify the three "charts" cells BA3 and BA4 to make the red lines and markers plot according to the text pulled from AQ267 to AQ194
AC301: Target values upper end limit
... 64 more rows

Sheet QCData
A1: QCData: Contractor enters QC data and exports the data (emails exported file to resident engineer).
A2: Resident engineer imports QC data emailed by contractor. | O2: EA(or Project ID): | P2: =IF(ea="","",ea) -> 03-0H10U4
O3: Resident Engineer: | P3: =IF(resengrname="","",resengrname) ->  | AD3: Count test values violating Rule 1 or Rule 2
O4: Quality Control Manager: | P4: =IF(qcmanagername="","",qcmanagername) ->  | AD4: Code (for Rule 1): 0, 1, 2, 3, …….===> Number of times QC data out of tolerance
O5: HMA Type: | P5: =IF(hmatype="","",hmatype) -> HMA LL RB SAC-5 | AD5: Code (for Rule 2): 888 ===> QF less than 0.75; 999 ===> QF less than 0.9
P6: =LotInfo!M14 -> JMF No.:
P7: =LotInfo!M15 -> 0
K9: exported QCdata file name defaults to => | L9: =CONCATENATE(ea,"_",LotInfo!M15,"_","QCData.xls") -> 03-0H10U4__QCData.xls | AD9: Documentation on logic used in this section:
AD10: If there is a weighting factor, and the test value is out of spec limits then cell equals 1, no reason to count number out in a row if a weighting factor exists.
AD11: Otherwise cell could still have a weighting factor and test value is in spec, …. If so, then cell value is set to 0.
E12: Rule 1 | G12: If no weighting factor, but has a specification limit, two failed tests in a row requires stop production, terminate lot. One time for Hamburg Tests | AD12: Also, if charachteristic not reportable ("nr"), or no spec limit exists, but the values must be reported ("nsl / mr"), then also set the cell value equal to 0.
E13: Rule 2 | G13: If weighting factor, a QFQC must be calculated. If cell goes red, QFQC is too low, stop production, terminate lot. | AD13: If none of the above, then charachteristic has a spec limit, now count how many in a row are out of spec.
E15: Rule 3 | G15: No specification limits. Report test value only (per CT 202) | AD15: Rule 1 | AE15: If no weighting factor, but has spec limit, then two failed tests in a row requires ending lot.
E16: Rule 4 | G16: 3 Failing Tests in 1 Day | AD16: Rule 2 | AE16: If weighting factor, a QFQC must be calculated for the last 20 tests (including overlap from previous lots)
AF17: The QFQC will also be calculated for on through 5, 5, …20 until twenty tests are recorded.
AD18: Rule 3 | AE18: No Specification Check Rules, Simply report value
F19: JMF Target Value | H19: =IF(LotInfo!D26="","",LotInfo!D26) ->  | I19: =IF(LotInfo!E26="","",LotInfo!E26) ->  | J19: =IF(LotInfo!F26="","",LotInfo!F26) ->  | K19: =IF(LotInfo!G26="","",LotInfo!G26) ->  | L19: =IF(LotInfo!H26="","",LotInfo!H26) ->  | M19: =IF(LotInfo!I26="","",LotInfo!I26) ->  | N19: =IF(LotInfo!J26="","",LotInfo!J26) ->  | O19: =IF(LotInfo!K26="","",LotInfo!K26) ->  | P19: =IF(LotInfo!L26="","",LotInfo!L26) ->  | Q19: =IF(LotInfo!M26="","",LotInfo!M26) ->  | R19: =IF(LotInfo!N26="","",LotInfo!N26) ->  | S19: =IF(LotInfo!O26="","",LotInfo!O26) ->  | T19: =IF(LotInfo!P26="","",LotInfo!P26) ->  | AA19: =IF(LotInfo!Q26="","",LotInfo!Q26) ->  | AB19: =IF(LotInfo!R26="","",LotInfo!R26) ->  | AD19: Rule 4 | AE19: No reporting required.
F21: Upper Specification Limit | G21: =LotInfo!C28 ->  | H21: =LotInfo!D28 ->  | I21: =LotInfo!E28 ->  | J21: =LotInfo!F28 ->  | K21: =LotInfo!G28 ->  | L21: =LotInfo!H28 ->  | M21: =LotInfo!I28 ->  | N21: =LotInfo!J28 ->  | O21: =LotInfo!K28 ->  | P21: =LotInfo!L28 ->  | Q21: =LotInfo!M28 ->  | R21: =LotInfo!N28 ->  | S21: =LotInfo!O28 ->  | T21: =LotInfo!P28 ->  | AA21: =LotInfo!Q28 -> 100 | AB21: =LotInfo!R28 ->  | AD21: =F21 -> Upper Specification Limit | AE21: =LotInfo!C28 ->  | AF21: =LotInfo!D28 ->  | AG21: =LotInfo!E28 ->  | AH21: =LotInfo!F28 ->  | AI21: =LotInfo!G28 ->  | AJ21: =LotInfo!H28 ->  | AK21: =LotInfo!I28 ->  | AL21: =LotInfo!J28 ->  | AM21: =LotInfo!K28 ->  | AN21: =LotInfo!L28 ->  | AO21: =LotInfo!M28 ->  | AP21: =LotInfo!N28 ->  | AQ21: =LotInfo!O28 ->  | AR21: =LotInfo!P28 ->  | AS21: =LotInfo!Q28 -> 100 | AT21: =LotInfo!R28 ->  | AU21: Upper Specification Limit | AV21: =LotInfo!I28 ->  | AW21: =LotInfo!J28 ->  | AX21: =LotInfo!O28 ->  | AY21: =LotInfo!P28 ->  | AZ21: =LotInfo!Q28 -> 100 | BA21: =LotInfo!R28 ->  | BC21: Upper Specification Limit | BD21: =LotInfo!I28 ->  | BE21: =LotInfo!J28 ->  | BF21: =LotInfo!O28 ->  | BG21: =LotInfo!P28 ->  | BH21: =LotInfo!Q28 -> 100 | BI21: =LotInfo!R28 -> 
F22: Lower Specification Limit | G22: =LotInfo!C29 ->  | H22: =LotInfo!D29 ->  | I22: =LotInfo!E29 ->  | J22: =LotInfo!F29 ->  | K22: =LotInfo!G29 ->  | L22: =LotInfo!H29 ->  | M22: =LotInfo!I29 ->  | N22: =LotInfo!J29 ->  | O22: =LotInfo!K29 ->  | P22: =LotInfo!L29 ->  | Q22: =LotInfo!M29 ->  | R22: =LotInfo!N29 ->  | S22: =LotInfo!O29 ->  | T22: =LotInfo!P29 ->  | AA22: =LotInfo!Q29 -> 97 | AB22: =LotInfo!R29 ->  | AD22: =F22 -> Lower Specification Limit | AE22: =LotInfo!C29 ->  | AF22: =LotInfo!D29 ->  | AG22: =LotInfo!E29 ->  | AH22: =LotInfo!F29 ->  | AI22: =LotInfo!G29 ->  | AJ22: =LotInfo!H29 ->  | AK22: =LotInfo!I29 ->  | AL22: =LotInfo!J29 ->  | AM22: =LotInfo!K29 ->  | AN22: =LotInfo!L29 ->  | AO22: =LotInfo!M29 ->  | AP22: =LotInfo!N29 ->  | AQ22: =LotInfo!O29 ->  | AR22: =LotInfo!P29 ->  | AS22: =LotInfo!Q29 -> 97 | AT22: =LotInfo!R29 ->  | AU22: Lower Specification Limit | AV22: =LotInfo!I29 ->  | AW22: =LotInfo!J29 ->  | AX22: =LotInfo!O29 ->  | AY22: =LotInfo!P29 ->  | AZ22: =LotInfo!Q29 -> 97 | BA22: =LotInfo!R29 ->  | BC22: Lower Specification Limit | BD22: =LotInfo!I29 ->  | BE22: =LotInfo!J29 ->  | BF22: =LotInfo!O29 ->  | BG22: =LotInfo!P29 ->  | BH22: =LotInfo!Q29 -> 97 | BI22: =LotInfo!R29 -> 
F23: =LotInfo!B30 -> Weighting Factor (w) | G23: =LotInfo!C30 -> 0 | H23: =LotInfo!D30 -> 0 | I23: =LotInfo!E30 -> 0 | J23: =LotInfo!F30 -> 0 | K23: =LotInfo!G30 -> 0 | L23: =LotInfo!H30 -> 0 | M23: =LotInfo!I30 -> 0.05 | N23: =LotInfo!J30 -> 0.1 | O23: =LotInfo!K30 -> 0 | P23: =LotInfo!L30 -> 0 | Q23: =LotInfo!M30 -> 0 | R23: =LotInfo!N30 -> 0 | S23: =LotInfo!O30 -> 0.15 | T23: =LotInfo!P30 -> 0.3 | AA23: =LotInfo!Q30 -> 0.4 | AB23: =LotInfo!R30 -> 0 | AD23: =LotInfo!B30 -> Weighting Factor (w) | AE23: =LotInfo!C30 -> 0 | AF23: =LotInfo!D30 -> 0 | AG23: =LotInfo!E30 -> 0 | AH23: =LotInfo!F30 -> 0 | AI23: =LotInfo!G30 -> 0 | AJ23: =LotInfo!H30 -> 0 | AK23: =LotInfo!I30 -> 0.05 | AL23: =LotInfo!J30 -> 0.1 | AM23: =LotInfo!K30 -> 0 | AN23: =LotInfo!L30 -> 0 | AO23: =LotInfo!M30 -> 0 | AP23: =LotInfo!N30 -> 0 | AQ23: =LotInfo!O30 -> 0.15 | AR23: =LotInfo!P30 -> 0.3 | AS23: =LotInfo!Q30 -> 0.4 | AT23: =LotInfo!R30 -> 0 | AU23: Weighting Factor (w) | AV23: =LotInfo!I30 -> 0.05 | AW23: =LotInfo!J30 -> 0.1 | AX23: =LotInfo!O30 -> 0.15 | AY23: =LotInfo!P30 -> 0.3 | AZ23: =LotInfo!Q30 -> 0.4 | BA23: =LotInfo!R30 -> 0 | BC23: Weighting Factor (w) | BD23: =LotInfo!I30 -> 0.05 | BE23: =LotInfo!J30 -> 0.1 | BF23: =LotInfo!O30 -> 0.15 | BG23: =LotInfo!P30 -> 0.3 | BH23: =LotInfo!Q30 -> 0.4 | BI23: =LotInfo!R30 -> 0
F24: Rule used to check Quality | G24: =IF((AND(G$22="nsl / mr", G$23=0)),rule3,IF(G$23=0,rule1,rule2)) -> Rule 1 | H24: Rule 1 | I24: Rule 1 | J24: Rule 1 | K24: Rule 1 | L24: Rule 1 | M24: Rule 2 | N24: Rule 2 | O24: Rule 1 | P24: Rule 1 | Q24: Rule 1 | R24: Rule 1 | S24: Rule 2 | T24: Rule 2 | AA24: =IF((AND(AA$22="nsl / mr", AA$23=0)),rule3,IF(AA$23=0,rule1,rule2)) -> Rule 2 | AB24: Rule 1 | AE24: =G24 -> Rule 1 | AF24: Rule 1 | AG24: Rule 1 | AH24: Rule 1 | AI24: Rule 1 | AJ24: Rule 1 | AK24: Rule 2 | AL24: Rule 2 | AM24: Rule 1 | AN24: Rule 1 | AO24: Rule 1 | AP24: Rule 1 | AQ24: Rule 2 | AR24: Rule 2 | AS24: =AA24 -> Rule 2 | AT24: =AB24 -> Rule 1 | AV24: =M24 -> Rule 2 | AW24: =N24 -> Rule 2 | AX24: =S24 -> Rule 2 | AY24: =T24 -> Rule 2 | AZ24: =AA24 -> Rule 2 | BA24: =AB24 -> Rule 1 | BD24: =M24 -> Rule 2 | BE24: =N24 -> Rule 2 | BF24: =S24 -> Rule 2 | BG24: =T24 -> Rule 2 | BH24: =AA24 -> Rule 2 | BI24: =AB24 -> Rule 1
F25: Quality Characteristic | G25: 2" | H25: 1-1/2" | I25: 1" | J25: 3/4" | K25: 1/2" | L25: 3/8" | M25: #4 | N25: #8 | O25: #16 | P25: #30 | Q25: #50 | R25: #100 | S25: #200 | T25: B.C. | AA25: %MTD | AB25: % Air Voids | AD25: Quality Characteristic | AE25: 2" | AF25: 1-1/2" | AG25: 1" | AH25: 3/4" | AI25: 1/2" | AJ25: 3/8" | AK25: #4 | AL25: #8 | AM25: #16 | AN25: #30 | AO25: #50 | AP25: #100 | AQ25: #200 | AR25: B.C. | AS25: %MTD | AT25: Air Voids | AU25: Quality Characteristic | AV25: #4 | AW25: #8 | AX25: #200 | AY25: B.C. | AZ25: %MTD | BA25: Air Voids | BC25: Quality Characteristic | BD25: #4 | BE25: #8 | BF25: #200 | BG25: B.C. | BH25: %MTD | BI25: %AV
A26: 1
A27: TEST NO. | B27: Date | C27: Contractor's Est | D27: Lot No. | E27: Sublot No | F27: 3 Out | AL27: Beta PWL UL Xs | AY27: Beta PWL LL Xs | BG27: QF | BJ27: Composite
C28: of SubLot Quantity | F28: in 1 Day? | U28: Density | V28: Density | W28: Density | X28: Briquette 1 | Y28: Briquette 2 | Z28: Briquette 3 | AA28: Average | AB28: Average | BJ28: QF
C29: (tons) | F29: Yes or NO | U29: Core 1 | V29: Core 2 | W29: Core 3 | X29: Air Voids | Y29: Air Voids | Z29: Air Voids | AA29: Density | AB29: Air Voids
AA30: =IF(OR(U30="",V30="",W30=""),"",AVERAGE(U30:W30)) ->  | AB30: =IF(OR(X30="",Y30="",Z30=""),"",AVERAGE(X30:Z30)) ->  | AE30: =IF((AND(AE$24=rule1,AND(G30>0.01,OR(G30>AE$21,G30<AE$22)))),AE29+1,0) -> 0 | AF30: =IF((AND(AF$24=rule1,AND(H30>0.01,OR(H30>AF$21,H30<AF$22)))),AF29+1,0) -> 0 | AG30: =IF((AND(AG$24=rule1,AND(I30>0.01,OR(I30>AG$21,I30<AG$22)))),AG29+1,0) -> 0 | AH30: =IF((AND(AH$24=rule1,AND(J30>0.01,OR(J30>AH$21,J30<AH$22)))),AH29+1,0) -> 0 | AI30: =IF((AND(AI$24=rule1,AND(K30>0.01,OR(K30>AI$21,K30<AI$22)))),AI29+1,0) -> 0 | AJ30: =IF((AND(AJ$24=rule1,AND(L30>0.01,OR(L30>AJ$21,L30<AJ$22)))),AJ29+1,0) -> 0 | AK30: No Calc | AL30: No Calc | AM30: =IF((AND(AM$24=rule1,AND(O30>0.01,OR(O30>AM$21,O30<AM$22)))),AM29+1,0) -> 0 | AN30: =IF((AND(AN$24=rule1,AND(P30>0.01,OR(P30>AN$21,P30<AN$22)))),AN29+1,0) -> 0 | AO30: =IF((AND(AO$24=rule1,AND(Q30>0.01,OR(Q30>AO$21,Q30<AO$22)))),AO29+1,0) -> 0 | AP30: =IF((AND(AP$24=rule1,AND(R30>0.01,OR(R30>AP$21,R30<AP$22)))),AP29+1,0) -> 0 | AQ30: No Calc | AR30: No Calc | AS30: No Calc | AT30: No Calc | AV30: No Calc | AW30: No Calc | AX30: No Calc | AY30: No Calc | AZ30: No Calc | BA30: No Calc | BD30: No Calc | BE30: No Calc | BF30: No Calc | BG30: No Calc | BH30: No Calc | BI30: No Calc | BJ30: No Calc | DA30: x2 | DB30: 2008-09-11 | DD30: 1 | DE30: 1 | DF30: YES | DJ30: 95 | DL30: 65 | DN30: 40 | DO30: 29 | DP30: 11 | DS30: 3 | DT30: 5.8 | DU30: 95.2 | DV30: 95.2 | DW30: 97 | DX30: 3.9 | DY30: 4 | DZ30: 4.1
AE31: 0 | AF31: 0 | AG31: 0 | AH31: 0 | AI31: 0 | AJ31: 0 | AK31: No Calc | AL31: No Calc | AM31: 0 | AN31: 0 | AO31: 0 | AP31: 0 | AQ31: No Calc | AR31: No Calc | AS31: No Calc | AT31: No Calc | AV31: No Calc | AW31: No Calc | AX31: No Calc | AY31: No Calc | AZ31: No Calc | BA31: No Calc | BD31: No Calc | BE31: No Calc | BF31: No Calc | BG31: No Calc | BH31: No Calc | BI31: No Calc | BJ31: No Calc | DD31: 1 | DE31: 2 | DF31: NO | DJ31: 94 | DL31: 66 | DN31: 40 | DO31: 23 | DP31: 12 | DS31: 4.9 | DT31: 5.8 | DU31: 94.2 | DV31: 96 | DW31: 97
AE32: 0 | AF32: 0 | AG32: 0 | AH32: 0 | AI32: 0 | AJ32: 0 | AK32: =IF((MAX(0,(0.5-(($AK$21-AVERAGE($M$30:M32))/(IF(STDEV($M$30:M32)<0.01,0.01,STDEV($M$30:M32)))*SQRT(COUNT($M$30:M32))/(2*(COUNT($M$30:M32)-1))))))>1,1,(MAX(0,(0.5-(($AK$21-AVERAGE($M$30:M32))/(IF(STDEV($M$30:M32)<0.01,0.01,STDEV($M$30:M32)))*SQRT(COUNT($M$30:M32))/(2*(COUNT($M$30:M32)-1))))))) ->  | AL32: =IF((MAX(0,(0.5-(($AL$21-AVERAGE($N$30:N32))/(IF(STDEV($N$30:N32)<0.01,0.01,STDEV($N$30:N32)))*SQRT(COUNT($N$30:N32))/(2*(COUNT($N$30:N32)-1))))))>1,1,(MAX(0,(0.5-(($AL$21-AVERAGE($N$30:N32))/(IF(STDEV($N$30:N32)<0.01,0.01,STDEV($N$30:N32)))*SQRT(COUNT($N$30:N32))/(2*(COUNT($N$30:N32)-1))))))) ->  | AM32: 0 | AN32: 0 | AO32: 0 | AP32: 0 | AQ32: =IF((MAX(0,(0.5-(($AQ$21-AVERAGE($S$30:S32))/(IF(STDEV($S$30:S32)<0.01,0.01,STDEV($S$30:S32)))*SQRT(COUNT($S$30:S32))/(2*(COUNT($S$30:S32)-1))))))>1,1,(MAX(0,(0.5-(($AQ$21-AVERAGE($S$30:S32))/(IF(STDEV($S$30:S32)<0.01,0.01,STDEV($S$30:S32)))*SQRT(COUNT($S$30:S32))/(2*(COUNT($S$30:S32)-1))))))) ->  | AR32: =IF((MAX(0,(0.5-(($AR$21-AVERAGE($T$30:T32))/(IF(STDEV($T$30:T32)<0.01,0.01,STDEV($T$30:T32)))*SQRT(COUNT($T$30:T32))/(2*(COUNT($T$30:T32)-1))))))>1,1,(MAX(0,(0.5-(($AR$21-AVERAGE($T$30:T32))/(IF(STDEV($T$30:T32)<0.01,0.01,STDEV($T$30:T32)))*SQRT(COUNT($T$30:T32))/(2*(COUNT($T$30:T32)-1))))))) ->  | AS32: =IF((MAX(0,(0.5-(($AS$21-AVERAGE($AA$30:AA32))/(IF(STDEV($AA$30:AA32)<0.01,0.01,STDEV($AA$30:AA32)))*SQRT(COUNT($AA$30:AA32))/(2*(COUNT($AA$30:AA32)-1))))))>1,1,(MAX(0,(0.5-(($AS$21-AVERAGE($AA$30:AA32))/(IF(STDEV($AA$30:AA32)<0.01,0.01,STDEV($AA$30:AA32)))*SQRT(COUNT($AA$30:AA32))/(2*(COUNT($AA$30:AA32)-1))))))) ->  | AT32: =IF((MAX(0,(0.5-(($AT$21-AVERAGE($AB$30:AB32))/(IF(STDEV($AB$30:AB32)<0.01,0.01,STDEV($AB$30:AB32)))*SQRT(COUNT($AB$30:AB32))/(2*(COUNT($AB$30:AB32)-1))))))>1,1,(MAX(0,(0.5-(($AT$21-AVERAGE($AB$30:AB32))/(IF(STDEV($AB$30:AB32)<0.01,0.01,STDEV($AB$30:AB32)))*SQRT(COUNT($AB$30:AB32))/(2*(COUNT($AB$30:AB32)-1))))))) ->  | AV32: =IF((MAX(0,(0.5-((AVERAGE($M$30:M32)-$AV$22)/(IF(STDEV($M$30:M32)<0.01,0.01,STDEV($M$30:M32)))*SQRT(COUNT($M$30:M32))/(2*(COUNT($M$30:M32)-1))))))>1,1,(MAX(0,(0.5-((AVERAGE($M$30:M32)-$AV$22)/(IF(STDEV($M$30:M32)<0.01,0.01,STDEV($M$30:M32)))*SQRT(COUNT($M$30:M32))/(2*(COUNT($M$30:M32)-1))))))) ->  | AW32: =IF((MAX(0,(0.5-((AVERAGE($N$30:N32)-$AW$22)/(IF(STDEV($N$30:N32)<0.01,0.01,STDEV($N$30:N32)))*SQRT(COUNT($N$30:N32))/(2*(COUNT($N$30:N32)-1))))))>1,1,(MAX(0,(0.5-((AVERAGE($N$30:N32)-$AW$22)/(IF(STDEV($N$30:N32)<0.01,0.01,STDEV($N$30:N32)))*SQRT(COUNT($N$30:N32))/(2*(COUNT($N$30:N32)-1))))))) ->  | AX32: =IF((MAX(0,(0.5-((AVERAGE($S$30:S32)-$AX$22)/(IF(STDEV($S$30:S32)<0.01,0.01,STDEV($S$30:S32)))*SQRT(COUNT($S$30:S32))/(2*(COUNT($S$30:S32)-1))))))>1,1,(MAX(0,(0.5-((AVERAGE($S$30:S32)-$AX$22)/(IF(STDEV($S$30:S32)<0.01,0.01,STDEV($S$30:S32)))*SQRT(COUNT($S$30:S32))/(2*(COUNT($S$30:S32)-1))))))) ->  | AY32: =IF((MAX(0,(0.5-((AVERAGE($T$30:T32)-$AY$22)/(IF(STDEV($T$30:T32)<0.01,0.01,STDEV($T$30:T32)))*SQRT(COUNT($T$30:T32))/(2*(COUNT($T$30:T32)-1))))))>1,1,(MAX(0,(0.5-((AVERAGE($T$30:T32)-$AY$22)/(IF(STDEV($T$30:T32)<0.01,0.01,STDEV($T$30:T32)))*SQRT(COUNT($T$30:T32))/(2*(COUNT($T$30:T32)-1))))))) ->  | AZ32: =IF((MAX(0,(0.5-((AVERAGE($AA$30:AA32)-$AZ$22)/(IF(STDEV($AA$30:AA32)<0.01,0.01,STDEV($AA$30:AA32)))*SQRT(COUNT($AA$30:AA32))/(2*(COUNT($AA$30:AA32)-1))))))>1,1,(MAX(0,(0.5-((AVERAGE($AA$30:AA32)-$AZ$22)/(IF(STDEV($AA$30:AA32)<0.01,0.01,STDEV($AA$30:AA32)))*SQRT(COUNT($AA$30:AA32))/(2*(COUNT($AA$30:AA32)-1))))))) ->  | BA32: =IF((MAX(0,(0.5-((AVERAGE($AB$30:AB32)-$BA$22)/(IF(STDEV($AB$30:AB32)<0.01,0.01,STDEV($AB$30:AB32)))*SQRT(COUNT($AB$30:AB32))/(2*(COUNT($AB$30:AB32)-1))))))>1,1,(MAX(0,(0.5-((AVERAGE($AB$30:AB32)-$BA$22)/(IF(STDEV($AB$30:AB32)<0.01,0.01,STDEV($AB$30:AB32)))*SQRT(COUNT($AB$30:AB32))/(2*(COUNT($AB$30:AB32)-1))))))) ->  | BD32: =(0.5 * ((100-(BETADIST(AK32,((COUNT(M$30:M32))/2)-1,((COUNT(M$30:M32))/2)-1))*100) + (100-(BETADIST(AV32,((COUNT(M$30:M32))/2)-1,((COUNT(M$30:M32))/2)-1))*100) - 100) + 55) / 100 ->  | BE32: =(0.5 * ((100-(BETADIST(AL32,((COUNT(N$30:N32))/2)-1,((COUNT(N$30:N32))/2)-1))*100) + (100-(BETADIST(AW32,((COUNT(N$30:N32))/2)-1,((COUNT(N$30:N32))/2)-1))*100) - 100) + 55) / 100 ->  | BF32: =(0.5 * ((100-(BETADIST(AQ32,((COUNT(S$30:S32))/2)-1,((COUNT(S$30:S32))/2)-1))*100) + (100-(BETADIST(AX32,((COUNT(S$30:S32))/2)-1,((COUNT(S$30:S32))/2)-1))*100) - 100) + 55) / 100 ->  | BG32: =(0.5 * ((100-(BETADIST(AR32,((COUNT(T$30:T32))/2)-1,((COUNT(T$30:T32))/2)-1))*100) + (100-(BETADIST(AY32,((COUNT(T$30:T32))/2)-1,((COUNT(T$30:T32))/2)-1))*100) - 100) + 55) / 100 ->  | BH32: =(0.5 * ((100-(BETADIST(AS32,((COUNT(AA$30:AA32))/2)-1,((COUNT(AA$30:AA32))/2)-1))*100) + (100-(BETADIST(AZ32,((COUNT(AA$30:AA32))/2)-1,((COUNT(AA$30:AA32))/2)-1))*100) - 100) + 55) / 100 ->  | BI32: No Calc | BJ32: =(BE32*BE$23)+(BF32*BF$23)+(BG32*BG$23)+(BH32*BH$23)+(BD32*BD$23) ->  | DD32: 1 | DE32: 3 | DF32: YES | DJ32: 93 | DL32: 67 | DN32: 40 | DO32: 55 | DP32: 13 | DS32: 3 | DT32: 5.1 | DU32: 97 | DV32: 95 | DW32: 91.5 | DX32: 3.5 | DY32: 3.5 | DZ32: 3.6
AE33: 0 | AF33: 0 | AG33: 0 | AH33: 0 | AI33: 0 | AJ33: 0 | AK33: =IF((MAX(0,(0.5-(($AK$21-AVERAGE($M$30:M33))/(IF(STDEV($M$30:M33)<0.01,0.01,STDEV($M$30:M33)))*SQRT(COUNT($M$30:M33))/(2*(COUNT($M$30:M33)-1))))))>1,1,(MAX(0,(0.5-(($AK$21-AVERAGE($M$30:M33))/(IF(STDEV($M$30:M33)<0.01,0.01,STDEV($M$30:M33)))*SQRT(COUNT($M$30:M33))/(2*(COUNT($M$30:M33)-1))))))) ->  | AL33: =IF((MAX(0,(0.5-(($AL$21-AVERAGE($N$30:N33))/(IF(STDEV($N$30:N33)<0.01,0.01,STDEV($N$30:N33)))*SQRT(COUNT($N$30:N33))/(2*(COUNT($N$30:N33)-1))))))>1,1,(MAX(0,(0.5-(($AL$21-AVERAGE($N$30:N33))/(IF(STDEV($N$30:N33)<0.01,0.01,STDEV($N$30:N33)))*SQRT(COUNT($N$30:N33))/(2*(COUNT($N$30:N33)-1))))))) ->  | AM33: 0 | AN33: 0 | AO33: 0 | AP33: 0 | AQ33: =IF((MAX(0,(0.5-(($AQ$21-AVERAGE($S$30:S33))/(IF(STDEV($S$30:S33)<0.01,0.01,STDEV($S$30:S33)))*SQRT(COUNT($S$30:S33))/(2*(COUNT($S$30:S33)-1))))))>1,1,(MAX(0,(0.5-(($AQ$21-AVERAGE($S$30:S33))/(IF(STDEV($S$30:S33)<0.01,0.01,STDEV($S$30:S33)))*SQRT(COUNT($S$30:S33))/(2*(COUNT($S$30:S33)-1))))))) ->  | AR33: =IF((MAX(0,(0.5-(($AR$21-AVERAGE($T$30:T33))/(IF(STDEV($T$30:T33)<0.01,0.01,STDEV($T$30:T33)))*SQRT(COUNT($T$30:T33))/(2*(COUNT($T$30:T33)-1))))))>1,1,(MAX(0,(0.5-(($AR$21-AVERAGE($T$30:T33))/(IF(STDEV($T$30:T33)<0.01,0.01,STDEV($T$30:T33)))*SQRT(COUNT($T$30:T33))/(2*(COUNT($T$30:T33)-1))))))) ->  | AS33: =IF((MAX(0,(0.5-(($AS$21-AVERAGE($AA$30:AA33))/(IF(STDEV($AA$30:AA33)<0.01,0.01,STDEV($AA$30:AA33)))*SQRT(COUNT($AA$30:AA33))/(2*(COUNT($AA$30:AA33)-1))))))>1,1,(MAX(0,(0.5-(($AS$21-AVERAGE($AA$30:AA33))/(IF(STDEV($AA$30:AA33)<0.01,0.01,STDEV($AA$30:AA33)))*SQRT(COUNT($AA$30:AA33))/(2*(COUNT($AA$30:AA33)-1))))))) ->  | AT33: =IF((MAX(0,(0.5-(($AT$21-AVERAGE($AB$30:AB33))/(IF(STDEV($AB$30:AB33)<0.01,0.01,STDEV($AB$30:AB33)))*SQRT(COUNT($AB$30:AB33))/(2*(COUNT($AB$30:AB33)-1))))))>1,1,(MAX(0,(0.5-(($AT$21-AVERAGE($AB$30:AB33))/(IF(STDEV($AB$30:AB33)<0.01,0.01,STDEV($AB$30:AB33)))*SQRT(COUNT($AB$30:AB33))/(2*(COUNT($AB$30:AB33)-1))))))) ->  | AV33: =IF((MAX(0,(0.5-((AVERAGE($M$30:M33)-$AV$22)/(IF(STDEV($M$30:M33)<0.01,0.01,STDEV($M$30:M33)))*SQRT(COUNT($M$30:M33))/(2*(COUNT($M$30:M33)-1))))))>1,1,(MAX(0,(0.5-((AVERAGE($M$30:M33)-$AV$22)/(IF(STDEV($M$30:M33)<0.01,0.01,STDEV($M$30:M33)))*SQRT(COUNT($M$30:M33))/(2*(COUNT($M$30:M33)-1))))))) ->  | AW33: =IF((MAX(0,(0.5-((AVERAGE($N$30:N33)-$AW$22)/(IF(STDEV($N$30:N33)<0.01,0.01,STDEV($N$30:N33)))*SQRT(COUNT($N$30:N33))/(2*(COUNT($N$30:N33)-1))))))>1,1,(MAX(0,(0.5-((AVERAGE($N$30:N33)-$AW$22)/(IF(STDEV($N$30:N33)<0.01,0.01,STDEV($N$30:N33)))*SQRT(COUNT($N$30:N33))/(2*(COUNT($N$30:N33)-1))))))) ->  | AX33: =IF((MAX(0,(0.5-((AVERAGE($S$30:S33)-$AX$22)/(IF(STDEV($S$30:S33)<0.01,0.01,STDEV($S$30:S33)))*SQRT(COUNT($S$30:S33))/(2*(COUNT($S$30:S33)-1))))))>1,1,(MAX(0,(0.5-((AVERAGE($S$30:S33)-$AX$22)/(IF(STDEV($S$30:S33)<0.01,0.01,STDEV($S$30:S33)))*SQRT(COUNT($S$30:S33))/(2*(COUNT($S$30:S33)-1))))))) ->  | AY33: =IF((MAX(0,(0.5-((AVERAGE($T$30:T33)-$AY$22)/(IF(STDEV($T$30:T33)<0.01,0.01,STDEV($T$30:T33)))*SQRT(COUNT($T$30:T33))/(2*(COUNT($T$30:T33)-1))))))>1,1,(MAX(0,(0.5-((AVERAGE($T$30:T33)-$AY$22)/(IF(STDEV($T$30:T33)<0.01,0.01,STDEV($T$30:T33)))*SQRT(COUNT($T$30:T33))/(2*(COUNT($T$30:T33)-1))))))) ->  | AZ33: =IF((MAX(0,(0.5-((AVERAGE($AA$30:AA33)-$AZ$22)/(IF(STDEV($AA$30:AA33)<0.01,0.01,STDEV($AA$30:AA33)))*SQRT(COUNT($AA$30:AA33))/(2*(COUNT($AA$30:AA33)-1))))))>1,1,(MAX(0,(0.5-((AVERAGE($AA$30:AA33)-$AZ$22)/(IF(STDEV($AA$30:AA33)<0.01,0.01,STDEV($AA$30:AA33)))*SQRT(COUNT($AA$30:AA33))/(2*(COUNT($AA$30:AA33)-1))))))) ->  | BA33: =IF((MAX(0,(0.5-((AVERAGE($AB$30:AB33)-$BA$22)/(IF(STDEV($AB$30:AB33)<0.01,0.01,STDEV($AB$30:AB33)))*SQRT(COUNT($AB$30:AB33))/(2*(COUNT($AB$30:AB33)-1))))))>1,1,(MAX(0,(0.5-((AVERAGE($AB$30:AB33)-$BA$22)/(IF(STDEV($AB$30:AB33)<0.01,0.01,STDEV($AB$30:AB33)))*SQRT(COUNT($AB$30:AB33))/(2*(COUNT($AB$30:AB33)-1))))))) ->  | BD33: =(0.5 * ((100-(BETADIST(AK33,((COUNT(M$30:M33))/2)-1,((COUNT(M$30:M33))/2)-1))*100) + (100-(BETADIST(AV33,((COUNT(M$30:M33))/2)-1,((COUNT(M$30:M33))/2)-1))*100) - 100) + 55) / 100 ->  | BE33: =(0.5 * ((100-(BETADIST(AL33,((COUNT(N$30:N33))/2)-1,((COUNT(N$30:N33))/2)-1))*100) + (100-(BETADIST(AW33,((COUNT(N$30:N33))/2)-1,((COUNT(N$30:N33))/2)-1))*100) - 100) + 55) / 100 ->  | BF33: =(0.5 * ((100-(BETADIST(AQ33,((COUNT(S$30:S33))/2)-1,((COUNT(S$30:S33))/2)-1))*100) + (100-(BETADIST(AX33,((COUNT(S$30:S33))/2)-1,((COUNT(S$30:S33))/2)-1))*100) - 100) + 55) / 100 ->  | BG33: =(0.5 * ((100-(BETADIST(AR33,((COUNT(T$30:T33))/2)-1,((COUNT(T$30:T33))/2)-1))*100) + (100-(BETADIST(AY33,((COUNT(T$30:T33))/2)-1,((COUNT(T$30:T33))/2)-1))*100) - 100) + 55) / 100 ->  | BH33: =(0.5 * ((100-(BETADIST(AS33,((COUNT(AA$30:AA33))/2)-1,((COUNT(AA$30:AA33))/2)-1))*100) + (100-(BETADIST(AZ33,((COUNT(AA$30:AA33))/2)-1,((COUNT(AA$30:AA33))/2)-1))*100) - 100) + 55) / 100 ->  | BI33: No Calc | DA33: 3 | DD33: 1 | DE33: 4 | DF33: YES | DJ33: 92 | DL33: 68 | DN33: 40 | DO33: 92 | DP33: 14 | DS33: 5.1 | DT33: 5.4 | DU33: 92.3 | DV33: 95.2 | DW33: 95.2
AE34: 0 | AF34: 0 | AG34: 0 | AH34: 0 | AI34: 0 | AJ34: 0 | AK34: =IF((MAX(0,(0.5-(($AK$21-AVERAGE($M$30:M34))/(IF(STDEV($M$30:M34)<0.01,0.01,STDEV($M$30:M34)))*SQRT(COUNT($M$30:M34))/(2*(COUNT($M$30:M34)-1))))))>1,1,(MAX(0,(0.5-(($AK$21-AVERAGE($M$30:M34))/(IF(STDEV($M$30:M34)<0.01,0.01,STDEV($M$30:M34)))*SQRT(COUNT($M$30:M34))/(2*(COUNT($M$30:M34)-1))))))) ->  | AL34: =IF((MAX(0,(0.5-(($AL$21-AVERAGE($N$30:N34))/(IF(STDEV($N$30:N34)<0.01,0.01,STDEV($N$30:N34)))*SQRT(COUNT($N$30:N34))/(2*(COUNT($N$30:N34)-1))))))>1,1,(MAX(0,(0.5-(($AL$21-AVERAGE($N$30:N34))/(IF(STDEV($N$30:N34)<0.01,0.01,STDEV($N$30:N34)))*SQRT(COUNT($N$30:N34))/(2*(COUNT($N$30:N34)-1))))))) ->  | AM34: 0 | AN34: 0 | AO34: 0 | AP34: 0 | AQ34: =IF((MAX(0,(0.5-(($AQ$21-AVERAGE($S$30:S34))/(IF(STDEV($S$30:S34)<0.01,0.01,STDEV($S$30:S34)))*SQRT(COUNT($S$30:S34))/(2*(COUNT($S$30:S34)-1))))))>1,1,(MAX(0,(0.5-(($AQ$21-AVERAGE($S$30:S34))/(IF(STDEV($S$30:S34)<0.01,0.01,STDEV($S$30:S34)))*SQRT(COUNT($S$30:S34))/(2*(COUNT($S$30:S34)-1))))))) ->  | AR34: =IF((MAX(0,(0.5-(($AR$21-AVERAGE($T$30:T34))/(IF(STDEV($T$30:T34)<0.01,0.01,STDEV($T$30:T34)))*SQRT(COUNT($T$30:T34))/(2*(COUNT($T$30:T34)-1))))))>1,1,(MAX(0,(0.5-(($AR$21-AVERAGE($T$30:T34))/(IF(STDEV($T$30:T34)<0.01,0.01,STDEV($T$30:T34)))*SQRT(COUNT($T$30:T34))/(2*(COUNT($T$30:T34)-1))))))) ->  | AS34: =IF((MAX(0,(0.5-(($AS$21-AVERAGE($AA$30:AA34))/(IF(STDEV($AA$30:AA34)<0.01,0.01,STDEV($AA$30:AA34)))*SQRT(COUNT($AA$30:AA34))/(2*(COUNT($AA$30:AA34)-1))))))>1,1,(MAX(0,(0.5-(($AS$21-AVERAGE($AA$30:AA34))/(IF(STDEV($AA$30:AA34)<0.01,0.01,STDEV($AA$30:AA34)))*SQRT(COUNT($AA$30:AA34))/(2*(COUNT($AA$30:AA34)-1))))))) ->  | AT34: =IF((MAX(0,(0.5-(($AT$21-AVERAGE($AB$30:AB34))/(IF(STDEV($AB$30:AB34)<0.01,0.01,STDEV($AB$30:AB34)))*SQRT(COUNT($AB$30:AB34))/(2*(COUNT($AB$30:AB34)-1))))))>1,1,(MAX(0,(0.5-(($AT$21-AVERAGE($AB$30:AB34))/(IF(STDEV($AB$30:AB34)<0.01,0.01,STDEV($AB$30:AB34)))*SQRT(COUNT($AB$30:AB34))/(2*(COUNT($AB$30:AB34)-1))))))) ->  | AV34: =IF((MAX(0,(0.5-((AVERAGE($M$30:M34)-$AV$22)/(IF(STDEV($M$30:M34)<0.01,0.01,STDEV($M$30:M34)))*SQRT(COUNT($M$30:M34))/(2*(COUNT($M$30:M34)-1))))))>1,1,(MAX(0,(0.5-((AVERAGE($M$30:M34)-$AV$22)/(IF(STDEV($M$30:M34)<0.01,0.01,STDEV($M$30:M34)))*SQRT(COUNT($M$30:M34))/(2*(COUNT($M$30:M34)-1))))))) ->  | AW34: =IF((MAX(0,(0.5-((AVERAGE($N$30:N34)-$AW$22)/(IF(STDEV($N$30:N34)<0.01,0.01,STDEV($N$30:N34)))*SQRT(COUNT($N$30:N34))/(2*(COUNT($N$30:N34)-1))))))>1,1,(MAX(0,(0.5-((AVERAGE($N$30:N34)-$AW$22)/(IF(STDEV($N$30:N34)<0.01,0.01,STDEV($N$30:N34)))*SQRT(COUNT($N$30:N34))/(2*(COUNT($N$30:N34)-1))))))) ->  | AX34: =IF((MAX(0,(0.5-((AVERAGE($S$30:S34)-$AX$22)/(IF(STDEV($S$30:S34)<0.01,0.01,STDEV($S$30:S34)))*SQRT(COUNT($S$30:S34))/(2*(COUNT($S$30:S34)-1))))))>1,1,(MAX(0,(0.5-((AVERAGE($S$30:S34)-$AX$22)/(IF(STDEV($S$30:S34)<0.01,0.01,STDEV($S$30:S34)))*SQRT(COUNT($S$30:S34))/(2*(COUNT($S$30:S34)-1))))))) ->  | AY34: =IF((MAX(0,(0.5-((AVERAGE($T$30:T34)-$AY$22)/(IF(STDEV($T$30:T34)<0.01,0.01,STDEV($T$30:T34)))*SQRT(COUNT($T$30:T34))/(2*(COUNT($T$30:T34)-1))))))>1,1,(MAX(0,(0.5-((AVERAGE($T$30:T34)-$AY$22)/(IF(STDEV($T$30:T34)<0.01,0.01,STDEV($T$30:T34)))*SQRT(COUNT($T$30:T34))/(2*(COUNT($T$30:T34)-1))))))) ->  | AZ34: =IF((MAX(0,(0.5-((AVERAGE($AA$30:AA34)-$AZ$22)/(IF(STDEV($AA$30:AA34)<0.01,0.01,STDEV($AA$30:AA34)))*SQRT(COUNT($AA$30:AA34))/(2*(COUNT($AA$30:AA34)-1))))))>1,1,(MAX(0,(0.5-((AVERAGE($AA$30:AA34)-$AZ$22)/(IF(STDEV($AA$30:AA34)<0.01,0.01,STDEV($AA$30:AA34)))*SQRT(COUNT($AA$30:AA34))/(2*(COUNT($AA$30:AA34)-1))))))) ->  | BA34: =IF((MAX(0,(0.5-((AVERAGE($AB$30:AB34)-$BA$22)/(IF(STDEV($AB$30:AB34)<0.01,0.01,STDEV($AB$30:AB34)))*SQRT(COUNT($AB$30:AB34))/(2*(COUNT($AB$30:AB34)-1))))))>1,1,(MAX(0,(0.5-((AVERAGE($AB$30:AB34)-$BA$22)/(IF(STDEV($AB$30:AB34)<0.01,0.01,STDEV($AB$30:AB34)))*SQRT(COUNT($AB$30:AB34))/(2*(COUNT($AB$30:AB34)-1))))))) ->  | BD34: =(0.5 * ((100-(BETADIST(AK34,((COUNT(M$30:M34))/2)-1,((COUNT(M$30:M34))/2)-1))*100) + (100-(BETADIST(AV34,((COUNT(M$30:M34))/2)-1,((COUNT(M$30:M34))/2)-1))*100) - 100) + 55) / 100 ->  | BE34: =(0.5 * ((100-(BETADIST(AL34,((COUNT(N$30:N34))/2)-1,((COUNT(N$30:N34))/2)-1))*100) + (100-(BETADIST(AW34,((COUNT(N$30:N34))/2)-1,((COUNT(N$30:N34))/2)-1))*100) - 100) + 55) / 100 ->  | BF34: =(0.5 * ((100-(BETADIST(AQ34,((COUNT(S$30:S34))/2)-1,((COUNT(S$30:S34))/2)-1))*100) + (100-(BETADIST(AX34,((COUNT(S$30:S34))/2)-1,((COUNT(S$30:S34))/2)-1))*100) - 100) + 55) / 100 ->  | BG34: =(0.5 * ((100-(BETADIST(AR34,((COUNT(T$30:T34))/2)-1,((COUNT(T$30:T34))/2)-1))*100) + (100-(BETADIST(AY34,((COUNT(T$30:T34))/2)-1,((COUNT(T$30:T34))/2)-1))*100) - 100) + 55) / 100 ->  | BH34: =(0.5 * ((100-(BETADIST(AS34,((COUNT(AA$30:AA34))/2)-1,((COUNT(AA$30:AA34))/2)-1))*100) + (100-(BETADIST(AZ34,((COUNT(AA$30:AA34))/2)-1,((COUNT(AA$30:AA34))/2)-1))*100) - 100) + 55) / 100 ->  | BI34: =(0.5 * ((100-(BETADIST(AT34,((COUNT(AB$30:AB34))/2)-1,((COUNT(AB$30:AB34))/2)-1))*100) + (100-(BETADIST(BA34,((COUNT(AB$30:AB34))/2)-1,((COUNT(AB$30:AB34))/2)-1))*100) - 100) + 55) / 100 ->  | DB34: 2008-11-12 | DD34: 1 | DE34: 5 | DJ34: 91 | DL34: 69 | DN34: 33 | DO34: 22 | DP34: 15 | DS34: 4.8 | DT34: 5.2 | DU34: 93.1 | DV34: 93.2 | DW34: 93.3 | DX34: 3.6 | DY34: 3.7 | DZ34: 3.8
AE35: 0 | AF35: 0 | AG35: 0 | AH35: 0 | AI35: 0 | AJ35: 0 | AK35: =IF((MAX(0,(0.5-(($AK$21-AVERAGE($M$30:M35))/(IF(STDEV($M$30:M35)<0.01,0.01,STDEV($M$30:M35)))*SQRT(COUNT($M$30:M35))/(2*(COUNT($M$30:M35)-1))))))>1,1,(MAX(0,(0.5-(($AK$21-AVERAGE($M$30:M35))/(IF(STDEV($M$30:M35)<0.01,0.01,STDEV($M$30:M35)))*SQRT(COUNT($M$30:M35))/(2*(COUNT($M$30:M35)-1))))))) ->  | AL35: =IF((MAX(0,(0.5-(($AL$21-AVERAGE($N$30:N35))/(IF(STDEV($N$30:N35)<0.01,0.01,STDEV($N$30:N35)))*SQRT(COUNT($N$30:N35))/(2*(COUNT($N$30:N35)-1))))))>1,1,(MAX(0,(0.5-(($AL$21-AVERAGE($N$30:N35))/(IF(STDEV($N$30:N35)<0.01,0.01,STDEV($N$30:N35)))*SQRT(COUNT($N$30:N35))/(2*(COUNT($N$30:N35)-1))))))) ->  | AM35: 0 | AN35: 0 | AO35: 0 | AP35: 0 | AQ35: =IF((MAX(0,(0.5-(($AQ$21-AVERAGE($S$30:S35))/(IF(STDEV($S$30:S35)<0.01,0.01,STDEV($S$30:S35)))*SQRT(COUNT($S$30:S35))/(2*(COUNT($S$30:S35)-1))))))>1,1,(MAX(0,(0.5-(($AQ$21-AVERAGE($S$30:S35))/(IF(STDEV($S$30:S35)<0.01,0.01,STDEV($S$30:S35)))*SQRT(COUNT($S$30:S35))/(2*(COUNT($S$30:S35)-1))))))) ->  | AR35: =IF((MAX(0,(0.5-(($AR$21-AVERAGE($T$30:T35))/(IF(STDEV($T$30:T35)<0.01,0.01,STDEV($T$30:T35)))*SQRT(COUNT($T$30:T35))/(2*(COUNT($T$30:T35)-1))))))>1,1,(MAX(0,(0.5-(($AR$21-AVERAGE($T$30:T35))/(IF(STDEV($T$30:T35)<0.01,0.01,STDEV($T$30:T35)))*SQRT(COUNT($T$30:T35))/(2*(COUNT($T$30:T35)-1))))))) ->  | AS35: =IF((MAX(0,(0.5-(($AS$21-AVERAGE($AA$30:AA35))/(IF(STDEV($AA$30:AA35)<0.01,0.01,STDEV($AA$30:AA35)))*SQRT(COUNT($AA$30:AA35))/(2*(COUNT($AA$30:AA35)-1))))))>1,1,(MAX(0,(0.5-(($AS$21-AVERAGE($AA$30:AA35))/(IF(STDEV($AA$30:AA35)<0.01,0.01,STDEV($AA$30:AA35)))*SQRT(COUNT($AA$30:AA35))/(2*(COUNT($AA$30:AA35)-1))))))) ->  | AT35: =IF((MAX(0,(0.5-(($AT$21-AVERAGE($AB$30:AB35))/(IF(STDEV($AB$30:AB35)<0.01,0.01,STDEV($AB$30:AB35)))*SQRT(COUNT($AB$30:AB35))/(2*(COUNT($AB$30:AB35)-1))))))>1,1,(MAX(0,(0.5-(($AT$21-AVERAGE($AB$30:AB35))/(IF(STDEV($AB$30:AB35)<0.01,0.01,STDEV($AB$30:AB35)))*SQRT(COUNT($AB$30:AB35))/(2*(COUNT($AB$30:AB35)-1))))))) ->  | AV35: =IF((MAX(0,(0.5-((AVERAGE($M$30:M35)-$AV$22)/(IF(STDEV($M$30:M35)<0.01,0.01,STDEV($M$30:M35)))*SQRT(COUNT($M$30:M35))/(2*(COUNT($M$30:M35)-1))))))>1,1,(MAX(0,(0.5-((AVERAGE($M$30:M35)-$AV$22)/(IF(STDEV($M$30:M35)<0.01,0.01,STDEV($M$30:M35)))*SQRT(COUNT($M$30:M35))/(2*(COUNT($M$30:M35)-1))))))) ->  | AW35: =IF((MAX(0,(0.5-((AVERAGE($N$30:N35)-$AW$22)/(IF(STDEV($N$30:N35)<0.01,0.01,STDEV($N$30:N35)))*SQRT(COUNT($N$30:N35))/(2*(COUNT($N$30:N35)-1))))))>1,1,(MAX(0,(0.5-((AVERAGE($N$30:N35)-$AW$22)/(IF(STDEV($N$30:N35)<0.01,0.01,STDEV($N$30:N35)))*SQRT(COUNT($N$30:N35))/(2*(COUNT($N$30:N35)-1))))))) ->  | AX35: =IF((MAX(0,(0.5-((AVERAGE($S$30:S35)-$AX$22)/(IF(STDEV($S$30:S35)<0.01,0.01,STDEV($S$30:S35)))*SQRT(COUNT($S$30:S35))/(2*(COUNT($S$30:S35)-1))))))>1,1,(MAX(0,(0.5-((AVERAGE($S$30:S35)-$AX$22)/(IF(STDEV($S$30:S35)<0.01,0.01,STDEV($S$30:S35)))*SQRT(COUNT($S$30:S35))/(2*(COUNT($S$30:S35)-1))))))) ->  | AY35: =IF((MAX(0,(0.5-((AVERAGE($T$30:T35)-$AY$22)/(IF(STDEV($T$30:T35)<0.01,0.01,STDEV($T$30:T35)))*SQRT(COUNT($T$30:T35))/(2*(COUNT($T$30:T35)-1))))))>1,1,(MAX(0,(0.5-((AVERAGE($T$30:T35)-$AY$22)/(IF(STDEV($T$30:T35)<0.01,0.01,STDEV($T$30:T35)))*SQRT(COUNT($T$30:T35))/(2*(COUNT($T$30:T35)-1))))))) ->  | AZ35: =IF((MAX(0,(0.5-((AVERAGE($AA$30:AA35)-$AZ$22)/(IF(STDEV($AA$30:AA35)<0.01,0.01,STDEV($AA$30:AA35)))*SQRT(COUNT($AA$30:AA35))/(2*(COUNT($AA$30:AA35)-1))))))>1,1,(MAX(0,(0.5-((AVERAGE($AA$30:AA35)-$AZ$22)/(IF(STDEV($AA$30:AA35)<0.01,0.01,STDEV($AA$30:AA35)))*SQRT(COUNT($AA$30:AA35))/(2*(COUNT($AA$30:AA35)-1))))))) ->  | BA35: =IF((MAX(0,(0.5-((AVERAGE($AB$30:AB35)-$BA$22)/(IF(STDEV($AB$30:AB35)<0.01,0.01,STDEV($AB$30:AB35)))*SQRT(COUNT($AB$30:AB35))/(2*(COUNT($AB$30:AB35)-1))))))>1,1,(MAX(0,(0.5-((AVERAGE($AB$30:AB35)-$BA$22)/(IF(STDEV($AB$30:AB35)<0.01,0.01,STDEV($AB$30:AB35)))*SQRT(COUNT($AB$30:AB35))/(2*(COUNT($AB$30:AB35)-1))))))) ->  | BD35: =(0.5 * ((100-(BETADIST(AK35,((COUNT(M$30:M35))/2)-1,((COUNT(M$30:M35))/2)-1))*100) + (100-(BETADIST(AV35,((COUNT(M$30:M35))/2)-1,((COUNT(M$30:M35))/2)-1))*100) - 100) + 55) / 100 ->  | BE35: =(0.5 * ((100-(BETADIST(AL35,((COUNT(N$30:N35))/2)-1,((COUNT(N$30:N35))/2)-1))*100) + (100-(BETADIST(AW35,((COUNT(N$30:N35))/2)-1,((COUNT(N$30:N35))/2)-1))*100) - 100) + 55) / 100 ->  | BF35: =(0.5 * ((100-(BETADIST(AQ35,((COUNT(S$30:S35))/2)-1,((COUNT(S$30:S35))/2)-1))*100) + (100-(BETADIST(AX35,((COUNT(S$30:S35))/2)-1,((COUNT(S$30:S35))/2)-1))*100) - 100) + 55) / 100 ->  | BG35: =(0.5 * ((100-(BETADIST(AR35,((COUNT(T$30:T35))/2)-1,((COUNT(T$30:T35))/2)-1))*100) + (100-(BETADIST(AY35,((COUNT(T$30:T35))/2)-1,((COUNT(T$30:T35))/2)-1))*100) - 100) + 55) / 100 ->  | BH35: =(0.5 * ((100-(BETADIST(AS35,((COUNT(AA$30:AA35))/2)-1,((COUNT(AA$30:AA35))/2)-1))*100) + (100-(BETADIST(AZ35,((COUNT(AA$30:AA35))/2)-1,((COUNT(AA$30:AA35))/2)-1))*100) - 100) + 55) / 100 ->  | BI35: =(0.5 * ((100-(BETADIST(AT35,((COUNT(AB$30:AB35))/2)-1,((COUNT(AB$30:AB35))/2)-1))*100) + (100-(BETADIST(BA35,((COUNT(AB$30:AB35))/2)-1,((COUNT(AB$30:AB35))/2)-1))*100) - 100) + 55) / 100 ->  | DB35: 2009-07-16 | DD35: 1 | DE35: 6 | DF35: YES | DJ35: 90 | DL35: 70 | DN35: 40 | DP35: 16 | DS35: 6.8 | DT35: 5.09 | DU35: 95.1 | DV35: 95.2 | DW35: 95.2
AE36: 0 | AF36: 0 | AG36: 0 | AH36: 0 | AI36: 0 | AJ36: 0 | AK36: =IF((MAX(0,(0.5-(($AK$21-AVERAGE($M$30:M36))/(IF(STDEV($M$30:M36)<0.01,0.01,STDEV($M$30:M36)))*SQRT(COUNT($M$30:M36))/(2*(COUNT($M$30:M36)-1))))))>1,1,(MAX(0,(0.5-(($AK$21-AVERAGE($M$30:M36))/(IF(STDEV($M$30:M36)<0.01,0.01,STDEV($M$30:M36)))*SQRT(COUNT($M$30:M36))/(2*(COUNT($M$30:M36)-1))))))) ->  | AL36: =IF((MAX(0,(0.5-(($AL$21-AVERAGE($N$30:N36))/(IF(STDEV($N$30:N36)<0.01,0.01,STDEV($N$30:N36)))*SQRT(COUNT($N$30:N36))/(2*(COUNT($N$30:N36)-1))))))>1,1,(MAX(0,(0.5-(($AL$21-AVERAGE($N$30:N36))/(IF(STDEV($N$30:N36)<0.01,0.01,STDEV($N$30:N36)))*SQRT(COUNT($N$30:N36))/(2*(COUNT($N$30:N36)-1))))))) ->  | AM36: 0 | AN36: 0 | AO36: 0 | AP36: 0 | AQ36: =IF((MAX(0,(0.5-(($AQ$21-AVERAGE($S$30:S36))/(IF(STDEV($S$30:S36)<0.01,0.01,STDEV($S$30:S36)))*SQRT(COUNT($S$30:S36))/(2*(COUNT($S$30:S36)-1))))))>1,1,(MAX(0,(0.5-(($AQ$21-AVERAGE($S$30:S36))/(IF(STDEV($S$30:S36)<0.01,0.01,STDEV($S$30:S36)))*SQRT(COUNT($S$30:S36))/(2*(COUNT($S$30:S36)-1))))))) ->  | AR36: =IF((MAX(0,(0.5-(($AR$21-AVERAGE($T$30:T36))/(IF(STDEV($T$30:T36)<0.01,0.01,STDEV($T$30:T36)))*SQRT(COUNT($T$30:T36))/(2*(COUNT($T$30:T36)-1))))))>1,1,(MAX(0,(0.5-(($AR$21-AVERAGE($T$30:T36))/(IF(STDEV($T$30:T36)<0.01,0.01,STDEV($T$30:T36)))*SQRT(COUNT($T$30:T36))/(2*(COUNT($T$30:T36)-1))))))) ->  | AS36: =IF((MAX(0,(0.5-(($AS$21-AVERAGE($AA$30:AA36))/(IF(STDEV($AA$30:AA36)<0.01,0.01,STDEV($AA$30:AA36)))*SQRT(COUNT($AA$30:AA36))/(2*(COUNT($AA$30:AA36)-1))))))>1,1,(MAX(0,(0.5-(($AS$21-AVERAGE($AA$30:AA36))/(IF(STDEV($AA$30:AA36)<0.01,0.01,STDEV($AA$30:AA36)))*SQRT(COUNT($AA$30:AA36))/(2*(COUNT($AA$30:AA36)-1))))))) ->  | AT36: =IF((MAX(0,(0.5-(($AT$21-AVERAGE($AB$30:AB36))/(IF(STDEV($AB$30:AB36)<0.01,0.01,STDEV($AB$30:AB36)))*SQRT(COUNT($AB$30:AB36))/(2*(COUNT($AB$30:AB36)-1))))))>1,1,(MAX(0,(0.5-(($AT$21-AVERAGE($AB$30:AB36))/(IF(STDEV($AB$30:AB36)<0.01,0.01,STDEV($AB$30:AB36)))*SQRT(COUNT($AB$30:AB36))/(2*(COUNT($AB$30:AB36)-1))))))) ->  | AV36: =IF((MAX(0,(0.5-((AVERAGE($M$30:M36)-$AV$22)/(IF(STDEV($M$30:M36)<0.01,0.01,STDEV($M$30:M36)))*SQRT(COUNT($M$30:M36))/(2*(COUNT($M$30:M36)-1))))))>1,1,(MAX(0,(0.5-((AVERAGE($M$30:M36)-$AV$22)/(IF(STDEV($M$30:M36)<0.01,0.01,STDEV($M$30:M36)))*SQRT(COUNT($M$30:M36))/(2*(COUNT($M$30:M36)-1))))))) ->  | AW36: =IF((MAX(0,(0.5-((AVERAGE($N$30:N36)-$AW$22)/(IF(STDEV($N$30:N36)<0.01,0.01,STDEV($N$30:N36)))*SQRT(COUNT($N$30:N36))/(2*(COUNT($N$30:N36)-1))))))>1,1,(MAX(0,(0.5-((AVERAGE($N$30:N36)-$AW$22)/(IF(STDEV($N$30:N36)<0.01,0.01,STDEV($N$30:N36)))*SQRT(COUNT($N$30:N36))/(2*(COUNT($N$30:N36)-1))))))) ->  | AX36: =IF((MAX(0,(0.5-((AVERAGE($S$30:S36)-$AX$22)/(IF(STDEV($S$30:S36)<0.01,0.01,STDEV($S$30:S36)))*SQRT(COUNT($S$30:S36))/(2*(COUNT($S$30:S36)-1))))))>1,1,(MAX(0,(0.5-((AVERAGE($S$30:S36)-$AX$22)/(IF(STDEV($S$30:S36)<0.01,0.01,STDEV($S$30:S36)))*SQRT(COUNT($S$30:S36))/(2*(COUNT($S$30:S36)-1))))))) ->  | AY36: =IF((MAX(0,(0.5-((AVERAGE($T$30:T36)-$AY$22)/(IF(STDEV($T$30:T36)<0.01,0.01,STDEV($T$30:T36)))*SQRT(COUNT($T$30:T36))/(2*(COUNT($T$30:T36)-1))))))>1,1,(MAX(0,(0.5-((AVERAGE($T$30:T36)-$AY$22)/(IF(STDEV($T$30:T36)<0.01,0.01,STDEV($T$30:T36)))*SQRT(COUNT($T$30:T36))/(2*(COUNT($T$30:T36)-1))))))) ->  | AZ36: =IF((MAX(0,(0.5-((AVERAGE($AA$30:AA36)-$AZ$22)/(IF(STDEV($AA$30:AA36)<0.01,0.01,STDEV($AA$30:AA36)))*SQRT(COUNT($AA$30:AA36))/(2*(COUNT($AA$30:AA36)-1))))))>1,1,(MAX(0,(0.5-((AVERAGE($AA$30:AA36)-$AZ$22)/(IF(STDEV($AA$30:AA36)<0.01,0.01,STDEV($AA$30:AA36)))*SQRT(COUNT($AA$30:AA36))/(2*(COUNT($AA$30:AA36)-1))))))) ->  | BA36: =IF((MAX(0,(0.5-((AVERAGE($AB$30:AB36)-$BA$22)/(IF(STDEV($AB$30:AB36)<0.01,0.01,STDEV($AB$30:AB36)))*SQRT(COUNT($AB$30:AB36))/(2*(COUNT($AB$30:AB36)-1))))))>1,1,(MAX(0,(0.5-((AVERAGE($AB$30:AB36)-$BA$22)/(IF(STDEV($AB$30:AB36)<0.01,0.01,STDEV($AB$30:AB36)))*SQRT(COUNT($AB$30:AB36))/(2*(COUNT($AB$30:AB36)-1))))))) ->  | BD36: =(0.5 * ((100-(BETADIST(AK36,((COUNT(M$30:M36))/2)-1,((COUNT(M$30:M36))/2)-1))*100) + (100-(BETADIST(AV36,((COUNT(M$30:M36))/2)-1,((COUNT(M$30:M36))/2)-1))*100) - 100) + 55) / 100 ->  | BE36: =(0.5 * ((100-(BETADIST(AL36,((COUNT(N$30:N36))/2)-1,((COUNT(N$30:N36))/2)-1))*100) + (100-(BETADIST(AW36,((COUNT(N$30:N36))/2)-1,((COUNT(N$30:N36))/2)-1))*100) - 100) + 55) / 100 ->  | BF36: =(0.5 * ((100-(BETADIST(AQ36,((COUNT(S$30:S36))/2)-1,((COUNT(S$30:S36))/2)-1))*100) + (100-(BETADIST(AX36,((COUNT(S$30:S36))/2)-1,((COUNT(S$30:S36))/2)-1))*100) - 100) + 55) / 100 ->  | BG36: =(0.5 * ((100-(BETADIST(AR36,((COUNT(T$30:T36))/2)-1,((COUNT(T$30:T36))/2)-1))*100) + (100-(BETADIST(AY36,((COUNT(T$30:T36))/2)-1,((COUNT(T$30:T36))/2)-1))*100) - 100) + 55) / 100 ->  | BH36: =(0.5 * ((100-(BETADIST(AS36,((COUNT(AA$30:AA36))/2)-1,((COUNT(AA$30:AA36))/2)-1))*100) + (100-(BETADIST(AZ36,((COUNT(AA$30:AA36))/2)-1,((COUNT(AA$30:AA36))/2)-1))*100) - 100) + 55) / 100 ->  | BI36: =(0.5 * ((100-(BETADIST(AT36,((COUNT(AB$30:AB36))/2)-1,((COUNT(AB$30:AB36))/2)-1))*100) + (100-(BETADIST(BA36,((COUNT(AB$30:AB36))/2)-1,((COUNT(AB$30:AB36))/2)-1))*100) - 100) + 55) / 100 ->  | DD36: 1 | DE36: 7 | DF36: NO | DJ36: 89 | DL36: 71 | DN36: 40 | DP36: 17 | DS36: 5.8 | DT36: 5.04 | DU36: 94.1 | DV36: 94.2 | DW36: 94.1 | DX36: 4.1 | DY36: 4.2 | DZ36: 4.3
AE37: 0 | AF37: 0 | AG37: 0 | AH37: 0 | AI37: 0 | AJ37: 0 | AK37: =IF((MAX(0,(0.5-(($AK$21-AVERAGE($M$30:M37))/(IF(STDEV($M$30:M37)<0.01,0.01,STDEV($M$30:M37)))*SQRT(COUNT($M$30:M37))/(2*(COUNT($M$30:M37)-1))))))>1,1,(MAX(0,(0.5-(($AK$21-AVERAGE($M$30:M37))/(IF(STDEV($M$30:M37)<0.01,0.01,STDEV($M$30:M37)))*SQRT(COUNT($M$30:M37))/(2*(COUNT($M$30:M37)-1))))))) ->  | AL37: =IF((MAX(0,(0.5-(($AL$21-AVERAGE($N$30:N37))/(IF(STDEV($N$30:N37)<0.01,0.01,STDEV($N$30:N37)))*SQRT(COUNT($N$30:N37))/(2*(COUNT($N$30:N37)-1))))))>1,1,(MAX(0,(0.5-(($AL$21-AVERAGE($N$30:N37))/(IF(STDEV($N$30:N37)<0.01,0.01,STDEV($N$30:N37)))*SQRT(COUNT($N$30:N37))/(2*(COUNT($N$30:N37)-1))))))) ->  | AM37: 0 | AN37: 0 | AO37: 0 | AP37: 0 | AQ37: =IF((MAX(0,(0.5-(($AQ$21-AVERAGE($S$30:S37))/(IF(STDEV($S$30:S37)<0.01,0.01,STDEV($S$30:S37)))*SQRT(COUNT($S$30:S37))/(2*(COUNT($S$30:S37)-1))))))>1,1,(MAX(0,(0.5-(($AQ$21-AVERAGE($S$30:S37))/(IF(STDEV($S$30:S37)<0.01,0.01,STDEV($S$30:S37)))*SQRT(COUNT($S$30:S37))/(2*(COUNT($S$30:S37)-1))))))) ->  | AR37: =IF((MAX(0,(0.5-(($AR$21-AVERAGE($T$30:T37))/(IF(STDEV($T$30:T37)<0.01,0.01,STDEV($T$30:T37)))*SQRT(COUNT($T$30:T37))/(2*(COUNT($T$30:T37)-1))))))>1,1,(MAX(0,(0.5-(($AR$21-AVERAGE($T$30:T37))/(IF(STDEV($T$30:T37)<0.01,0.01,STDEV($T$30:T37)))*SQRT(COUNT($T$30:T37))/(2*(COUNT($T$30:T37)-1))))))) ->  | AS37: =IF((MAX(0,(0.5-(($AS$21-AVERAGE($AA$30:AA37))/(IF(STDEV($AA$30:AA37)<0.01,0.01,STDEV($AA$30:AA37)))*SQRT(COUNT($AA$30:AA37))/(2*(COUNT($AA$30:AA37)-1))))))>1,1,(MAX(0,(0.5-(($AS$21-AVERAGE($AA$30:AA37))/(IF(STDEV($AA$30:AA37)<0.01,0.01,STDEV($AA$30:AA37)))*SQRT(COUNT($AA$30:AA37))/(2*(COUNT($AA$30:AA37)-1))))))) ->  | AT37: =IF((MAX(0,(0.5-(($AT$21-AVERAGE($AB$30:AB37))/(IF(STDEV($AB$30:AB37)<0.01,0.01,STDEV($AB$30:AB37)))*SQRT(COUNT($AB$30:AB37))/(2*(COUNT($AB$30:AB37)-1))))))>1,1,(MAX(0,(0.5-(($AT$21-AVERAGE($AB$30:AB37))/(IF(STDEV($AB$30:AB37)<0.01,0.01,STDEV($AB$30:AB37)))*SQRT(COUNT($AB$30:AB37))/(2*(COUNT($AB$30:AB37)-1))))))) ->  | AV37: =IF((MAX(0,(0.5-((AVERAGE($M$30:M37)-$AV$22)/(IF(STDEV($M$30:M37)<0.01,0.01,STDEV($M$30:M37)))*SQRT(COUNT($M$30:M37))/(2*(COUNT($M$30:M37)-1))))))>1,1,(MAX(0,(0.5-((AVERAGE($M$30:M37)-$AV$22)/(IF(STDEV($M$30:M37)<0.01,0.01,STDEV($M$30:M37)))*SQRT(COUNT($M$30:M37))/(2*(COUNT($M$30:M37)-1))))))) ->  | AW37: =IF((MAX(0,(0.5-((AVERAGE($N$30:N37)-$AW$22)/(IF(STDEV($N$30:N37)<0.01,0.01,STDEV($N$30:N37)))*SQRT(COUNT($N$30:N37))/(2*(COUNT($N$30:N37)-1))))))>1,1,(MAX(0,(0.5-((AVERAGE($N$30:N37)-$AW$22)/(IF(STDEV($N$30:N37)<0.01,0.01,STDEV($N$30:N37)))*SQRT(COUNT($N$30:N37))/(2*(COUNT($N$30:N37)-1))))))) ->  | AX37: =IF((MAX(0,(0.5-((AVERAGE($S$30:S37)-$AX$22)/(IF(STDEV($S$30:S37)<0.01,0.01,STDEV($S$30:S37)))*SQRT(COUNT($S$30:S37))/(2*(COUNT($S$30:S37)-1))))))>1,1,(MAX(0,(0.5-((AVERAGE($S$30:S37)-$AX$22)/(IF(STDEV($S$30:S37)<0.01,0.01,STDEV($S$30:S37)))*SQRT(COUNT($S$30:S37))/(2*(COUNT($S$30:S37)-1))))))) ->  | AY37: =IF((MAX(0,(0.5-((AVERAGE($T$30:T37)-$AY$22)/(IF(STDEV($T$30:T37)<0.01,0.01,STDEV($T$30:T37)))*SQRT(COUNT($T$30:T37))/(2*(COUNT($T$30:T37)-1))))))>1,1,(MAX(0,(0.5-((AVERAGE($T$30:T37)-$AY$22)/(IF(STDEV($T$30:T37)<0.01,0.01,STDEV($T$30:T37)))*SQRT(COUNT($T$30:T37))/(2*(COUNT($T$30:T37)-1))))))) ->  | AZ37: =IF((MAX(0,(0.5-((AVERAGE($AA$30:AA37)-$AZ$22)/(IF(STDEV($AA$30:AA37)<0.01,0.01,STDEV($AA$30:AA37)))*SQRT(COUNT($AA$30:AA37))/(2*(COUNT($AA$30:AA37)-1))))))>1,1,(MAX(0,(0.5-((AVERAGE($AA$30:AA37)-$AZ$22)/(IF(STDEV($AA$30:AA37)<0.01,0.01,STDEV($AA$30:AA37)))*SQRT(COUNT($AA$30:AA37))/(2*(COUNT($AA$30:AA37)-1))))))) ->  | BA37: =IF((MAX(0,(0.5-((AVERAGE($AB$30:AB37)-$BA$22)/(IF(STDEV($AB$30:AB37)<0.01,0.01,STDEV($AB$30:AB37)))*SQRT(COUNT($AB$30:AB37))/(2*(COUNT($AB$30:AB37)-1))))))>1,1,(MAX(0,(0.5-((AVERAGE($AB$30:AB37)-$BA$22)/(IF(STDEV($AB$30:AB37)<0.01,0.01,STDEV($AB$30:AB37)))*SQRT(COUNT($AB$30:AB37))/(2*(COUNT($AB$30:AB37)-1))))))) ->  | BD37: =(0.5 * ((100-(BETADIST(AK37,((COUNT(M$30:M37))/2)-1,((COUNT(M$30:M37))/2)-1))*100) + (100-(BETADIST(AV37,((COUNT(M$30:M37))/2)-1,((COUNT(M$30:M37))/2)-1))*100) - 100) + 55) / 100 ->  | BE37: =(0.5 * ((100-(BETADIST(AL37,((COUNT(N$30:N37))/2)-1,((COUNT(N$30:N37))/2)-1))*100) + (100-(BETADIST(AW37,((COUNT(N$30:N37))/2)-1,((COUNT(N$30:N37))/2)-1))*100) - 100) + 55) / 100 ->  | BF37: =(0.5 * ((100-(BETADIST(AQ37,((COUNT(S$30:S37))/2)-1,((COUNT(S$30:S37))/2)-1))*100) + (100-(BETADIST(AX37,((COUNT(S$30:S37))/2)-1,((COUNT(S$30:S37))/2)-1))*100) - 100) + 55) / 100 ->  | BG37: =(0.5 * ((100-(BETADIST(AR37,((COUNT(T$30:T37))/2)-1,((COUNT(T$30:T37))/2)-1))*100) + (100-(BETADIST(AY37,((COUNT(T$30:T37))/2)-1,((COUNT(T$30:T37))/2)-1))*100) - 100) + 55) / 100 ->  | BH37: =(0.5 * ((100-(BETADIST(AS37,((COUNT(AA$30:AA37))/2)-1,((COUNT(AA$30:AA37))/2)-1))*100) + (100-(BETADIST(AZ37,((COUNT(AA$30:AA37))/2)-1,((COUNT(AA$30:AA37))/2)-1))*100) - 100) + 55) / 100 ->  | BI37: =(0.5 * ((100-(BETADIST(AT37,((COUNT(AB$30:AB37))/2)-1,((COUNT(AB$30:AB37))/2)-1))*100) + (100-(BETADIST(BA37,((COUNT(AB$30:AB37))/2)-1,((COUNT(AB$30:AB37))/2)-1))*100) - 100) + 55) / 100 ->  | DD37: 1 | DE37: 8 | DJ37: 88 | DL37: 92 | DN37: 40 | DP37: 18 | DS37: 4.9 | DT37: 4.98 | DU37: 92.5 | DV37: 92.3 | DW37: 92.4
AE38: 0 | AF38: 0 | AG38: 0 | AH38: 0 | AI38: 0 | AJ38: 0 | AK38: =IF((MAX(0,(0.5-(($AK$21-AVERAGE($M$30:M38))/(IF(STDEV($M$30:M38)<0.01,0.01,STDEV($M$30:M38)))*SQRT(COUNT($M$30:M38))/(2*(COUNT($M$30:M38)-1))))))>1,1,(MAX(0,(0.5-(($AK$21-AVERAGE($M$30:M38))/(IF(STDEV($M$30:M38)<0.01,0.01,STDEV($M$30:M38)))*SQRT(COUNT($M$30:M38))/(2*(COUNT($M$30:M38)-1))))))) ->  | AL38: =IF((MAX(0,(0.5-(($AL$21-AVERAGE($N$30:N38))/(IF(STDEV($N$30:N38)<0.01,0.01,STDEV($N$30:N38)))*SQRT(COUNT($N$30:N38))/(2*(COUNT($N$30:N38)-1))))))>1,1,(MAX(0,(0.5-(($AL$21-AVERAGE($N$30:N38))/(IF(STDEV($N$30:N38)<0.01,0.01,STDEV($N$30:N38)))*SQRT(COUNT($N$30:N38))/(2*(COUNT($N$30:N38)-1))))))) ->  | AM38: 0 | AN38: 0 | AO38: 0 | AP38: 0 | AQ38: =IF((MAX(0,(0.5-(($AQ$21-AVERAGE($S$30:S38))/(IF(STDEV($S$30:S38)<0.01,0.01,STDEV($S$30:S38)))*SQRT(COUNT($S$30:S38))/(2*(COUNT($S$30:S38)-1))))))>1,1,(MAX(0,(0.5-(($AQ$21-AVERAGE($S$30:S38))/(IF(STDEV($S$30:S38)<0.01,0.01,STDEV($S$30:S38)))*SQRT(COUNT($S$30:S38))/(2*(COUNT($S$30:S38)-1))))))) ->  | AR38: =IF((MAX(0,(0.5-(($AR$21-AVERAGE($T$30:T38))/(IF(STDEV($T$30:T38)<0.01,0.01,STDEV($T$30:T38)))*SQRT(COUNT($T$30:T38))/(2*(COUNT($T$30:T38)-1))))))>1,1,(MAX(0,(0.5-(($AR$21-AVERAGE($T$30:T38))/(IF(STDEV($T$30:T38)<0.01,0.01,STDEV($T$30:T38)))*SQRT(COUNT($T$30:T38))/(2*(COUNT($T$30:T38)-1))))))) ->  | AS38: =IF((MAX(0,(0.5-(($AS$21-AVERAGE($AA$30:AA38))/(IF(STDEV($AA$30:AA38)<0.01,0.01,STDEV($AA$30:AA38)))*SQRT(COUNT($AA$30:AA38))/(2*(COUNT($AA$30:AA38)-1))))))>1,1,(MAX(0,(0.5-(($AS$21-AVERAGE($AA$30:AA38))/(IF(STDEV($AA$30:AA38)<0.01,0.01,STDEV($AA$30:AA38)))*SQRT(COUNT($AA$30:AA38))/(2*(COUNT($AA$30:AA38)-1))))))) ->  | AT38: =IF((MAX(0,(0.5-(($AT$21-AVERAGE($AB$30:AB38))/(IF(STDEV($AB$30:AB38)<0.01,0.01,STDEV($AB$30:AB38)))*SQRT(COUNT($AB$30:AB38))/(2*(COUNT($AB$30:AB38)-1))))))>1,1,(MAX(0,(0.5-(($AT$21-AVERAGE($AB$30:AB38))/(IF(STDEV($AB$30:AB38)<0.01,0.01,STDEV($AB$30:AB38)))*SQRT(COUNT($AB$30:AB38))/(2*(COUNT($AB$30:AB38)-1))))))) ->  | AV38: =IF((MAX(0,(0.5-((AVERAGE($M$30:M38)-$AV$22)/(IF(STDEV($M$30:M38)<0.01,0.01,STDEV($M$30:M38)))*SQRT(COUNT($M$30:M38))/(2*(COUNT($M$30:M38)-1))))))>1,1,(MAX(0,(0.5-((AVERAGE($M$30:M38)-$AV$22)/(IF(STDEV($M$30:M38)<0.01,0.01,STDEV($M$30:M38)))*SQRT(COUNT($M$30:M38))/(2*(COUNT($M$30:M38)-1))))))) ->  | AW38: =IF((MAX(0,(0.5-((AVERAGE($N$30:N38)-$AW$22)/(IF(STDEV($N$30:N38)<0.01,0.01,STDEV($N$30:N38)))*SQRT(COUNT($N$30:N38))/(2*(COUNT($N$30:N38)-1))))))>1,1,(MAX(0,(0.5-((AVERAGE($N$30:N38)-$AW$22)/(IF(STDEV($N$30:N38)<0.01,0.01,STDEV($N$30:N38)))*SQRT(COUNT($N$30:N38))/(2*(COUNT($N$30:N38)-1))))))) ->  | AX38: =IF((MAX(0,(0.5-((AVERAGE($S$30:S38)-$AX$22)/(IF(STDEV($S$30:S38)<0.01,0.01,STDEV($S$30:S38)))*SQRT(COUNT($S$30:S38))/(2*(COUNT($S$30:S38)-1))))))>1,1,(MAX(0,(0.5-((AVERAGE($S$30:S38)-$AX$22)/(IF(STDEV($S$30:S38)<0.01,0.01,STDEV($S$30:S38)))*SQRT(COUNT($S$30:S38))/(2*(COUNT($S$30:S38)-1))))))) ->  | AY38: =IF((MAX(0,(0.5-((AVERAGE($T$30:T38)-$AY$22)/(IF(STDEV($T$30:T38)<0.01,0.01,STDEV($T$30:T38)))*SQRT(COUNT($T$30:T38))/(2*(COUNT($T$30:T38)-1))))))>1,1,(MAX(0,(0.5-((AVERAGE($T$30:T38)-$AY$22)/(IF(STDEV($T$30:T38)<0.01,0.01,STDEV($T$30:T38)))*SQRT(COUNT($T$30:T38))/(2*(COUNT($T$30:T38)-1))))))) ->  | AZ38: =IF((MAX(0,(0.5-((AVERAGE($AA$30:AA38)-$AZ$22)/(IF(STDEV($AA$30:AA38)<0.01,0.01,STDEV($AA$30:AA38)))*SQRT(COUNT($AA$30:AA38))/(2*(COUNT($AA$30:AA38)-1))))))>1,1,(MAX(0,(0.5-((AVERAGE($AA$30:AA38)-$AZ$22)/(IF(STDEV($AA$30:AA38)<0.01,0.01,STDEV($AA$30:AA38)))*SQRT(COUNT($AA$30:AA38))/(2*(COUNT($AA$30:AA38)-1))))))) ->  | BA38: =IF((MAX(0,(0.5-((AVERAGE($AB$30:AB38)-$BA$22)/(IF(STDEV($AB$30:AB38)<0.01,0.01,STDEV($AB$30:AB38)))*SQRT(COUNT($AB$30:AB38))/(2*(COUNT($AB$30:AB38)-1))))))>1,1,(MAX(0,(0.5-((AVERAGE($AB$30:AB38)-$BA$22)/(IF(STDEV($AB$30:AB38)<0.01,0.01,STDEV($AB$30:AB38)))*SQRT(COUNT($AB$30:AB38))/(2*(COUNT($AB$30:AB38)-1))))))) ->  | BD38: =(0.5 * ((100-(BETADIST(AK38,((COUNT(M$30:M38))/2)-1,((COUNT(M$30:M38))/2)-1))*100) + (100-(BETADIST(AV38,((COUNT(M$30:M38))/2)-1,((COUNT(M$30:M38))/2)-1))*100) - 100) + 55) / 100 ->  | BE38: =(0.5 * ((100-(BETADIST(AL38,((COUNT(N$30:N38))/2)-1,((COUNT(N$30:N38))/2)-1))*100) + (100-(BETADIST(AW38,((COUNT(N$30:N38))/2)-1,((COUNT(N$30:N38))/2)-1))*100) - 100) + 55) / 100 ->  | BF38: =(0.5 * ((100-(BETADIST(AQ38,((COUNT(S$30:S38))/2)-1,((COUNT(S$30:S38))/2)-1))*100) + (100-(BETADIST(AX38,((COUNT(S$30:S38))/2)-1,((COUNT(S$30:S38))/2)-1))*100) - 100) + 55) / 100 ->  | BG38: =(0.5 * ((100-(BETADIST(AR38,((COUNT(T$30:T38))/2)-1,((COUNT(T$30:T38))/2)-1))*100) + (100-(BETADIST(AY38,((COUNT(T$30:T38))/2)-1,((COUNT(T$30:T38))/2)-1))*100) - 100) + 55) / 100 ->  | BH38: =(0.5 * ((100-(BETADIST(AS38,((COUNT(AA$30:AA38))/2)-1,((COUNT(AA$30:AA38))/2)-1))*100) + (100-(BETADIST(AZ38,((COUNT(AA$30:AA38))/2)-1,((COUNT(AA$30:AA38))/2)-1))*100) - 100) + 55) / 100 ->  | BI38: =(0.5 * ((100-(BETADIST(AT38,((COUNT(AB$30:AB38))/2)-1,((COUNT(AB$30:AB38))/2)-1))*100) + (100-(BETADIST(BA38,((COUNT(AB$30:AB38))/2)-1,((COUNT(AB$30:AB38))/2)-1))*100) - 100) + 55) / 100 ->  | DB38: 2009-07-17 | DD38: 1 | DE38: 9 | DF38: YES | DJ38: 91 | DL38: 93 | DN38: 40 | DP38: 19 | DS38: 10 | DT38: 5.1 | DU38: 90.1 | DV38: 90.2 | DW38: 90.3 | DX38: 4 | DY38: 4 | DZ38: 4
AE39: 0 | AF39: 0 | AG39: 0 | AH39: 0 | AI39: 0 | AJ39: 0 | AK39: =IF((MAX(0,(0.5-(($AK$21-AVERAGE($M$30:M39))/(IF(STDEV($M$30:M39)<0.01,0.01,STDEV($M$30:M39)))*SQRT(COUNT($M$30:M39))/(2*(COUNT($M$30:M39)-1))))))>1,1,(MAX(0,(0.5-(($AK$21-AVERAGE($M$30:M39))/(IF(STDEV($M$30:M39)<0.01,0.01,STDEV($M$30:M39)))*SQRT(COUNT($M$30:M39))/(2*(COUNT($M$30:M39)-1))))))) ->  | AL39: =IF((MAX(0,(0.5-(($AL$21-AVERAGE($N$30:N39))/(IF(STDEV($N$30:N39)<0.01,0.01,STDEV($N$30:N39)))*SQRT(COUNT($N$30:N39))/(2*(COUNT($N$30:N39)-1))))))>1,1,(MAX(0,(0.5-(($AL$21-AVERAGE($N$30:N39))/(IF(STDEV($N$30:N39)<0.01,0.01,STDEV($N$30:N39)))*SQRT(COUNT($N$30:N39))/(2*(COUNT($N$30:N39)-1))))))) ->  | AM39: 0 | AN39: 0 | AO39: 0 | AP39: 0 | AQ39: =IF((MAX(0,(0.5-(($AQ$21-AVERAGE($S$30:S39))/(IF(STDEV($S$30:S39)<0.01,0.01,STDEV($S$30:S39)))*SQRT(COUNT($S$30:S39))/(2*(COUNT($S$30:S39)-1))))))>1,1,(MAX(0,(0.5-(($AQ$21-AVERAGE($S$30:S39))/(IF(STDEV($S$30:S39)<0.01,0.01,STDEV($S$30:S39)))*SQRT(COUNT($S$30:S39))/(2*(COUNT($S$30:S39)-1))))))) ->  | AR39: =IF((MAX(0,(0.5-(($AR$21-AVERAGE($T$30:T39))/(IF(STDEV($T$30:T39)<0.01,0.01,STDEV($T$30:T39)))*SQRT(COUNT($T$30:T39))/(2*(COUNT($T$30:T39)-1))))))>1,1,(MAX(0,(0.5-(($AR$21-AVERAGE($T$30:T39))/(IF(STDEV($T$30:T39)<0.01,0.01,STDEV($T$30:T39)))*SQRT(COUNT($T$30:T39))/(2*(COUNT($T$30:T39)-1))))))) ->  | AS39: =IF((MAX(0,(0.5-(($AS$21-AVERAGE($AA$30:AA39))/(IF(STDEV($AA$30:AA39)<0.01,0.01,STDEV($AA$30:AA39)))*SQRT(COUNT($AA$30:AA39))/(2*(COUNT($AA$30:AA39)-1))))))>1,1,(MAX(0,(0.5-(($AS$21-AVERAGE($AA$30:AA39))/(IF(STDEV($AA$30:AA39)<0.01,0.01,STDEV($AA$30:AA39)))*SQRT(COUNT($AA$30:AA39))/(2*(COUNT($AA$30:AA39)-1))))))) ->  | AT39: =IF((MAX(0,(0.5-(($AT$21-AVERAGE($AB$30:AB39))/(IF(STDEV($AB$30:AB39)<0.01,0.01,STDEV($AB$30:AB39)))*SQRT(COUNT($AB$30:AB39))/(2*(COUNT($AB$30:AB39)-1))))))>1,1,(MAX(0,(0.5-(($AT$21-AVERAGE($AB$30:AB39))/(IF(STDEV($AB$30:AB39)<0.01,0.01,STDEV($AB$30:AB39)))*SQRT(COUNT($AB$30:AB39))/(2*(COUNT($AB$30:AB39)-1))))))) ->  | AV39: =IF((MAX(0,(0.5-((AVERAGE($M$30:M39)-$AV$22)/(IF(STDEV($M$30:M39)<0.01,0.01,STDEV($M$30:M39)))*SQRT(COUNT($M$30:M39))/(2*(COUNT($M$30:M39)-1))))))>1,1,(MAX(0,(0.5-((AVERAGE($M$30:M39)-$AV$22)/(IF(STDEV($M$30:M39)<0.01,0.01,STDEV($M$30:M39)))*SQRT(COUNT($M$30:M39))/(2*(COUNT($M$30:M39)-1))))))) ->  | AW39: =IF((MAX(0,(0.5-((AVERAGE($N$30:N39)-$AW$22)/(IF(STDEV($N$30:N39)<0.01,0.01,STDEV($N$30:N39)))*SQRT(COUNT($N$30:N39))/(2*(COUNT($N$30:N39)-1))))))>1,1,(MAX(0,(0.5-((AVERAGE($N$30:N39)-$AW$22)/(IF(STDEV($N$30:N39)<0.01,0.01,STDEV($N$30:N39)))*SQRT(COUNT($N$30:N39))/(2*(COUNT($N$30:N39)-1))))))) ->  | AX39: =IF((MAX(0,(0.5-((AVERAGE($S$30:S39)-$AX$22)/(IF(STDEV($S$30:S39)<0.01,0.01,STDEV($S$30:S39)))*SQRT(COUNT($S$30:S39))/(2*(COUNT($S$30:S39)-1))))))>1,1,(MAX(0,(0.5-((AVERAGE($S$30:S39)-$AX$22)/(IF(STDEV($S$30:S39)<0.01,0.01,STDEV($S$30:S39)))*SQRT(COUNT($S$30:S39))/(2*(COUNT($S$30:S39)-1))))))) ->  | AY39: =IF((MAX(0,(0.5-((AVERAGE($T$30:T39)-$AY$22)/(IF(STDEV($T$30:T39)<0.01,0.01,STDEV($T$30:T39)))*SQRT(COUNT($T$30:T39))/(2*(COUNT($T$30:T39)-1))))))>1,1,(MAX(0,(0.5-((AVERAGE($T$30:T39)-$AY$22)/(IF(STDEV($T$30:T39)<0.01,0.01,STDEV($T$30:T39)))*SQRT(COUNT($T$30:T39))/(2*(COUNT($T$30:T39)-1))))))) ->  | AZ39: =IF((MAX(0,(0.5-((AVERAGE($AA$30:AA39)-$AZ$22)/(IF(STDEV($AA$30:AA39)<0.01,0.01,STDEV($AA$30:AA39)))*SQRT(COUNT($AA$30:AA39))/(2*(COUNT($AA$30:AA39)-1))))))>1,1,(MAX(0,(0.5-((AVERAGE($AA$30:AA39)-$AZ$22)/(IF(STDEV($AA$30:AA39)<0.01,0.01,STDEV($AA$30:AA39)))*SQRT(COUNT($AA$30:AA39))/(2*(COUNT($AA$30:AA39)-1))))))) ->  | BA39: =IF((MAX(0,(0.5-((AVERAGE($AB$30:AB39)-$BA$22)/(IF(STDEV($AB$30:AB39)<0.01,0.01,STDEV($AB$30:AB39)))*SQRT(COUNT($AB$30:AB39))/(2*(COUNT($AB$30:AB39)-1))))))>1,1,(MAX(0,(0.5-((AVERAGE($AB$30:AB39)-$BA$22)/(IF(STDEV($AB$30:AB39)<0.01,0.01,STDEV($AB$30:AB39)))*SQRT(COUNT($AB$30:AB39))/(2*(COUNT($AB$30:AB39)-1))))))) ->  | BD39: =(0.5 * ((100-(BETADIST(AK39,((COUNT(M$30:M39))/2)-1,((COUNT(M$30:M39))/2)-1))*100) + (100-(BETADIST(AV39,((COUNT(M$30:M39))/2)-1,((COUNT(M$30:M39))/2)-1))*100) - 100) + 55) / 100 ->  | BE39: =(0.5 * ((100-(BETADIST(AL39,((COUNT(N$30:N39))/2)-1,((COUNT(N$30:N39))/2)-1))*100) + (100-(BETADIST(AW39,((COUNT(N$30:N39))/2)-1,((COUNT(N$30:N39))/2)-1))*100) - 100) + 55) / 100 ->  | BF39: =(0.5 * ((100-(BETADIST(AQ39,((COUNT(S$30:S39))/2)-1,((COUNT(S$30:S39))/2)-1))*100) + (100-(BETADIST(AX39,((COUNT(S$30:S39))/2)-1,((COUNT(S$30:S39))/2)-1))*100) - 100) + 55) / 100 ->  | BG39: =(0.5 * ((100-(BETADIST(AR39,((COUNT(T$30:T39))/2)-1,((COUNT(T$30:T39))/2)-1))*100) + (100-(BETADIST(AY39,((COUNT(T$30:T39))/2)-1,((COUNT(T$30:T39))/2)-1))*100) - 100) + 55) / 100 ->  | BH39: =(0.5 * ((100-(BETADIST(AS39,((COUNT(AA$30:AA39))/2)-1,((COUNT(AA$30:AA39))/2)-1))*100) + (100-(BETADIST(AZ39,((COUNT(AA$30:AA39))/2)-1,((COUNT(AA$30:AA39))/2)-1))*100) - 100) + 55) / 100 ->  | BI39: =(0.5 * ((100-(BETADIST(AT39,((COUNT(AB$30:AB39))/2)-1,((COUNT(AB$30:AB39))/2)-1))*100) + (100-(BETADIST(BA39,((COUNT(AB$30:AB39))/2)-1,((COUNT(AB$30:AB39))/2)-1))*100) - 100) + 55) / 100 ->  | DD39: 1 | DE39: 10 | DJ39: 88 | DN39: 41 | DP39: 20 | DS39: 8 | DT39: 5.19 | DU39: 90.4 | DV39: 93.3 | DW39: 95.2
AE40: 0 | AF40: 0 | AG40: 0 | AH40: 0 | AI40: 0 | AJ40: 0 | AK40: =IF((MAX(0,(0.5-(($AK$21-AVERAGE($M$30:M40))/(IF(STDEV($M$30:M40)<0.01,0.01,STDEV($M$30:M40)))*SQRT(COUNT($M$30:M40))/(2*(COUNT($M$30:M40)-1))))))>1,1,(MAX(0,(0.5-(($AK$21-AVERAGE($M$30:M40))/(IF(STDEV($M$30:M40)<0.01,0.01,STDEV($M$30:M40)))*SQRT(COUNT($M$30:M40))/(2*(COUNT($M$30:M40)-1))))))) ->  | AL40: =IF((MAX(0,(0.5-(($AL$21-AVERAGE($N$30:N40))/(IF(STDEV($N$30:N40)<0.01,0.01,STDEV($N$30:N40)))*SQRT(COUNT($N$30:N40))/(2*(COUNT($N$30:N40)-1))))))>1,1,(MAX(0,(0.5-(($AL$21-AVERAGE($N$30:N40))/(IF(STDEV($N$30:N40)<0.01,0.01,STDEV($N$30:N40)))*SQRT(COUNT($N$30:N40))/(2*(COUNT($N$30:N40)-1))))))) ->  | AM40: 0 | AN40: 0 | AO40: 0 | AP40: 0 | AQ40: =IF((MAX(0,(0.5-(($AQ$21-AVERAGE($S$30:S40))/(IF(STDEV($S$30:S40)<0.01,0.01,STDEV($S$30:S40)))*SQRT(COUNT($S$30:S40))/(2*(COUNT($S$30:S40)-1))))))>1,1,(MAX(0,(0.5-(($AQ$21-AVERAGE($S$30:S40))/(IF(STDEV($S$30:S40)<0.01,0.01,STDEV($S$30:S40)))*SQRT(COUNT($S$30:S40))/(2*(COUNT($S$30:S40)-1))))))) ->  | AR40: =IF((MAX(0,(0.5-(($AR$21-AVERAGE($T$30:T40))/(IF(STDEV($T$30:T40)<0.01,0.01,STDEV($T$30:T40)))*SQRT(COUNT($T$30:T40))/(2*(COUNT($T$30:T40)-1))))))>1,1,(MAX(0,(0.5-(($AR$21-AVERAGE($T$30:T40))/(IF(STDEV($T$30:T40)<0.01,0.01,STDEV($T$30:T40)))*SQRT(COUNT($T$30:T40))/(2*(COUNT($T$30:T40)-1))))))) ->  | AS40: =IF((MAX(0,(0.5-(($AS$21-AVERAGE($AA$30:AA40))/(IF(STDEV($AA$30:AA40)<0.01,0.01,STDEV($AA$30:AA40)))*SQRT(COUNT($AA$30:AA40))/(2*(COUNT($AA$30:AA40)-1))))))>1,1,(MAX(0,(0.5-(($AS$21-AVERAGE($AA$30:AA40))/(IF(STDEV($AA$30:AA40)<0.01,0.01,STDEV($AA$30:AA40)))*SQRT(COUNT($AA$30:AA40))/(2*(COUNT($AA$30:AA40)-1))))))) ->  | AT40: =IF((MAX(0,(0.5-(($AT$21-AVERAGE($AB$30:AB40))/(IF(STDEV($AB$30:AB40)<0.01,0.01,STDEV($AB$30:AB40)))*SQRT(COUNT($AB$30:AB40))/(2*(COUNT($AB$30:AB40)-1))))))>1,1,(MAX(0,(0.5-(($AT$21-AVERAGE($AB$30:AB40))/(IF(STDEV($AB$30:AB40)<0.01,0.01,STDEV($AB$30:AB40)))*SQRT(COUNT($AB$30:AB40))/(2*(COUNT($AB$30:AB40)-1))))))) ->  | AV40: =IF((MAX(0,(0.5-((AVERAGE($M$30:M40)-$AV$22)/(IF(STDEV($M$30:M40)<0.01,0.01,STDEV($M$30:M40)))*SQRT(COUNT($M$30:M40))/(2*(COUNT($M$30:M40)-1))))))>1,1,(MAX(0,(0.5-((AVERAGE($M$30:M40)-$AV$22)/(IF(STDEV($M$30:M40)<0.01,0.01,STDEV($M$30:M40)))*SQRT(COUNT($M$30:M40))/(2*(COUNT($M$30:M40)-1))))))) ->  | AW40: =IF((MAX(0,(0.5-((AVERAGE($N$30:N40)-$AW$22)/(IF(STDEV($N$30:N40)<0.01,0.01,STDEV($N$30:N40)))*SQRT(COUNT($N$30:N40))/(2*(COUNT($N$30:N40)-1))))))>1,1,(MAX(0,(0.5-((AVERAGE($N$30:N40)-$AW$22)/(IF(STDEV($N$30:N40)<0.01,0.01,STDEV($N$30:N40)))*SQRT(COUNT($N$30:N40))/(2*(COUNT($N$30:N40)-1))))))) ->  | AX40: =IF((MAX(0,(0.5-((AVERAGE($S$30:S40)-$AX$22)/(IF(STDEV($S$30:S40)<0.01,0.01,STDEV($S$30:S40)))*SQRT(COUNT($S$30:S40))/(2*(COUNT($S$30:S40)-1))))))>1,1,(MAX(0,(0.5-((AVERAGE($S$30:S40)-$AX$22)/(IF(STDEV($S$30:S40)<0.01,0.01,STDEV($S$30:S40)))*SQRT(COUNT($S$30:S40))/(2*(COUNT($S$30:S40)-1))))))) ->  | AY40: =IF((MAX(0,(0.5-((AVERAGE($T$30:T40)-$AY$22)/(IF(STDEV($T$30:T40)<0.01,0.01,STDEV($T$30:T40)))*SQRT(COUNT($T$30:T40))/(2*(COUNT($T$30:T40)-1))))))>1,1,(MAX(0,(0.5-((AVERAGE($T$30:T40)-$AY$22)/(IF(STDEV($T$30:T40)<0.01,0.01,STDEV($T$30:T40)))*SQRT(COUNT($T$30:T40))/(2*(COUNT($T$30:T40)-1))))))) ->  | AZ40: =IF((MAX(0,(0.5-((AVERAGE($AA$30:AA40)-$AZ$22)/(IF(STDEV($AA$30:AA40)<0.01,0.01,STDEV($AA$30:AA40)))*SQRT(COUNT($AA$30:AA40))/(2*(COUNT($AA$30:AA40)-1))))))>1,1,(MAX(0,(0.5-((AVERAGE($AA$30:AA40)-$AZ$22)/(IF(STDEV($AA$30:AA40)<0.01,0.01,STDEV($AA$30:AA40)))*SQRT(COUNT($AA$30:AA40))/(2*(COUNT($AA$30:AA40)-1))))))) ->  | BA40: =IF((MAX(0,(0.5-((AVERAGE($AB$30:AB40)-$BA$22)/(IF(STDEV($AB$30:AB40)<0.01,0.01,STDEV($AB$30:AB40)))*SQRT(COUNT($AB$30:AB40))/(2*(COUNT($AB$30:AB40)-1))))))>1,1,(MAX(0,(0.5-((AVERAGE($AB$30:AB40)-$BA$22)/(IF(STDEV($AB$30:AB40)<0.01,0.01,STDEV($AB$30:AB40)))*SQRT(COUNT($AB$30:AB40))/(2*(COUNT($AB$30:AB40)-1))))))) ->  | BD40: =(0.5 * ((100-(BETADIST(AK40,((COUNT(M$30:M40))/2)-1,((COUNT(M$30:M40))/2)-1))*100) + (100-(BETADIST(AV40,((COUNT(M$30:M40))/2)-1,((COUNT(M$30:M40))/2)-1))*100) - 100) + 55) / 100 ->  | BE40: =(0.5 * ((100-(BETADIST(AL40,((COUNT(N$30:N40))/2)-1,((COUNT(N$30:N40))/2)-1))*100) + (100-(BETADIST(AW40,((COUNT(N$30:N40))/2)-1,((COUNT(N$30:N40))/2)-1))*100) - 100) + 55) / 100 ->  | BF40: =(0.5 * ((100-(BETADIST(AQ40,((COUNT(S$30:S40))/2)-1,((COUNT(S$30:S40))/2)-1))*100) + (100-(BETADIST(AX40,((COUNT(S$30:S40))/2)-1,((COUNT(S$30:S40))/2)-1))*100) - 100) + 55) / 100 ->  | BG40: =(0.5 * ((100-(BETADIST(AR40,((COUNT(T$30:T40))/2)-1,((COUNT(T$30:T40))/2)-1))*100) + (100-(BETADIST(AY40,((COUNT(T$30:T40))/2)-1,((COUNT(T$30:T40))/2)-1))*100) - 100) + 55) / 100 ->  | BH40: =(0.5 * ((100-(BETADIST(AS40,((COUNT(AA$30:AA40))/2)-1,((COUNT(AA$30:AA40))/2)-1))*100) + (100-(BETADIST(AZ40,((COUNT(AA$30:AA40))/2)-1,((COUNT(AA$30:AA40))/2)-1))*100) - 100) + 55) / 100 ->  | BI40: =(0.5 * ((100-(BETADIST(AT40,((COUNT(AB$30:AB40))/2)-1,((COUNT(AB$30:AB40))/2)-1))*100) + (100-(BETADIST(BA40,((COUNT(AB$30:AB40))/2)-1,((COUNT(AB$30:AB40))/2)-1))*100) - 100) + 55) / 100 ->  | DD40: 1 | DE40: 11 | DJ40: 87 | DN40: 41 | DP40: 21 | DS40: 9 | DT40: 5.1 | DU40: 90.5 | DV40: 90.1 | DW40: 90.2 | DX40: 4.2 | DY40: 4.3 | DZ40: 4.4
AE41: 0 | AF41: 0 | AG41: 0 | AH41: 0 | AI41: 0 | AJ41: 0 | AK41: =IF((MAX(0,(0.5-(($AK$21-AVERAGE($M$30:M41))/(IF(STDEV($M$30:M41)<0.01,0.01,STDEV($M$30:M41)))*SQRT(COUNT($M$30:M41))/(2*(COUNT($M$30:M41)-1))))))>1,1,(MAX(0,(0.5-(($AK$21-AVERAGE($M$30:M41))/(IF(STDEV($M$30:M41)<0.01,0.01,STDEV($M$30:M41)))*SQRT(COUNT($M$30:M41))/(2*(COUNT($M$30:M41)-1))))))) ->  | AL41: =IF((MAX(0,(0.5-(($AL$21-AVERAGE($N$30:N41))/(IF(STDEV($N$30:N41)<0.01,0.01,STDEV($N$30:N41)))*SQRT(COUNT($N$30:N41))/(2*(COUNT($N$30:N41)-1))))))>1,1,(MAX(0,(0.5-(($AL$21-AVERAGE($N$30:N41))/(IF(STDEV($N$30:N41)<0.01,0.01,STDEV($N$30:N41)))*SQRT(COUNT($N$30:N41))/(2*(COUNT($N$30:N41)-1))))))) ->  | AM41: 0 | AN41: 0 | AO41: 0 | AP41: 0 | AQ41: =IF((MAX(0,(0.5-(($AQ$21-AVERAGE($S$30:S41))/(IF(STDEV($S$30:S41)<0.01,0.01,STDEV($S$30:S41)))*SQRT(COUNT($S$30:S41))/(2*(COUNT($S$30:S41)-1))))))>1,1,(MAX(0,(0.5-(($AQ$21-AVERAGE($S$30:S41))/(IF(STDEV($S$30:S41)<0.01,0.01,STDEV($S$30:S41)))*SQRT(COUNT($S$30:S41))/(2*(COUNT($S$30:S41)-1))))))) ->  | AR41: =IF((MAX(0,(0.5-(($AR$21-AVERAGE($T$30:T41))/(IF(STDEV($T$30:T41)<0.01,0.01,STDEV($T$30:T41)))*SQRT(COUNT($T$30:T41))/(2*(COUNT($T$30:T41)-1))))))>1,1,(MAX(0,(0.5-(($AR$21-AVERAGE($T$30:T41))/(IF(STDEV($T$30:T41)<0.01,0.01,STDEV($T$30:T41)))*SQRT(COUNT($T$30:T41))/(2*(COUNT($T$30:T41)-1))))))) ->  | AS41: =IF((MAX(0,(0.5-(($AS$21-AVERAGE($AA$30:AA41))/(IF(STDEV($AA$30:AA41)<0.01,0.01,STDEV($AA$30:AA41)))*SQRT(COUNT($AA$30:AA41))/(2*(COUNT($AA$30:AA41)-1))))))>1,1,(MAX(0,(0.5-(($AS$21-AVERAGE($AA$30:AA41))/(IF(STDEV($AA$30:AA41)<0.01,0.01,STDEV($AA$30:AA41)))*SQRT(COUNT($AA$30:AA41))/(2*(COUNT($AA$30:AA41)-1))))))) ->  | AT41: =IF((MAX(0,(0.5-(($AT$21-AVERAGE($AB$30:AB41))/(IF(STDEV($AB$30:AB41)<0.01,0.01,STDEV($AB$30:AB41)))*SQRT(COUNT($AB$30:AB41))/(2*(COUNT($AB$30:AB41)-1))))))>1,1,(MAX(0,(0.5-(($AT$21-AVERAGE($AB$30:AB41))/(IF(STDEV($AB$30:AB41)<0.01,0.01,STDEV($AB$30:AB41)))*SQRT(COUNT($AB$30:AB41))/(2*(COUNT($AB$30:AB41)-1))))))) ->  | AV41: =IF((MAX(0,(0.5-((AVERAGE($M$30:M41)-$AV$22)/(IF(STDEV($M$30:M41)<0.01,0.01,STDEV($M$30:M41)))*SQRT(COUNT($M$30:M41))/(2*(COUNT($M$30:M41)-1))))))>1,1,(MAX(0,(0.5-((AVERAGE($M$30:M41)-$AV$22)/(IF(STDEV($M$30:M41)<0.01,0.01,STDEV($M$30:M41)))*SQRT(COUNT($M$30:M41))/(2*(COUNT($M$30:M41)-1))))))) ->  | AW41: =IF((MAX(0,(0.5-((AVERAGE($N$30:N41)-$AW$22)/(IF(STDEV($N$30:N41)<0.01,0.01,STDEV($N$30:N41)))*SQRT(COUNT($N$30:N41))/(2*(COUNT($N$30:N41)-1))))))>1,1,(MAX(0,(0.5-((AVERAGE($N$30:N41)-$AW$22)/(IF(STDEV($N$30:N41)<0.01,0.01,STDEV($N$30:N41)))*SQRT(COUNT($N$30:N41))/(2*(COUNT($N$30:N41)-1))))))) ->  | AX41: =IF((MAX(0,(0.5-((AVERAGE($S$30:S41)-$AX$22)/(IF(STDEV($S$30:S41)<0.01,0.01,STDEV($S$30:S41)))*SQRT(COUNT($S$30:S41))/(2*(COUNT($S$30:S41)-1))))))>1,1,(MAX(0,(0.5-((AVERAGE($S$30:S41)-$AX$22)/(IF(STDEV($S$30:S41)<0.01,0.01,STDEV($S$30:S41)))*SQRT(COUNT($S$30:S41))/(2*(COUNT($S$30:S41)-1))))))) ->  | AY41: =IF((MAX(0,(0.5-((AVERAGE($T$30:T41)-$AY$22)/(IF(STDEV($T$30:T41)<0.01,0.01,STDEV($T$30:T41)))*SQRT(COUNT($T$30:T41))/(2*(COUNT($T$30:T41)-1))))))>1,1,(MAX(0,(0.5-((AVERAGE($T$30:T41)-$AY$22)/(IF(STDEV($T$30:T41)<0.01,0.01,STDEV($T$30:T41)))*SQRT(COUNT($T$30:T41))/(2*(COUNT($T$30:T41)-1))))))) ->  | AZ41: =IF((MAX(0,(0.5-((AVERAGE($AA$30:AA41)-$AZ$22)/(IF(STDEV($AA$30:AA41)<0.01,0.01,STDEV($AA$30:AA41)))*SQRT(COUNT($AA$30:AA41))/(2*(COUNT($AA$30:AA41)-1))))))>1,1,(MAX(0,(0.5-((AVERAGE($AA$30:AA41)-$AZ$22)/(IF(STDEV($AA$30:AA41)<0.01,0.01,STDEV($AA$30:AA41)))*SQRT(COUNT($AA$30:AA41))/(2*(COUNT($AA$30:AA41)-1))))))) ->  | BA41: =IF((MAX(0,(0.5-((AVERAGE($AB$30:AB41)-$BA$22)/(IF(STDEV($AB$30:AB41)<0.01,0.01,STDEV($AB$30:AB41)))*SQRT(COUNT($AB$30:AB41))/(2*(COUNT($AB$30:AB41)-1))))))>1,1,(MAX(0,(0.5-((AVERAGE($AB$30:AB41)-$BA$22)/(IF(STDEV($AB$30:AB41)<0.01,0.01,STDEV($AB$30:AB41)))*SQRT(COUNT($AB$30:AB41))/(2*(COUNT($AB$30:AB41)-1))))))) ->  | BD41: =(0.5 * ((100-(BETADIST(AK41,((COUNT(M$30:M41))/2)-1,((COUNT(M$30:M41))/2)-1))*100) + (100-(BETADIST(AV41,((COUNT(M$30:M41))/2)-1,((COUNT(M$30:M41))/2)-1))*100) - 100) + 55) / 100 ->  | BE41: =(0.5 * ((100-(BETADIST(AL41,((COUNT(N$30:N41))/2)-1,((COUNT(N$30:N41))/2)-1))*100) + (100-(BETADIST(AW41,((COUNT(N$30:N41))/2)-1,((COUNT(N$30:N41))/2)-1))*100) - 100) + 55) / 100 ->  | BF41: =(0.5 * ((100-(BETADIST(AQ41,((COUNT(S$30:S41))/2)-1,((COUNT(S$30:S41))/2)-1))*100) + (100-(BETADIST(AX41,((COUNT(S$30:S41))/2)-1,((COUNT(S$30:S41))/2)-1))*100) - 100) + 55) / 100 ->  | BG41: =(0.5 * ((100-(BETADIST(AR41,((COUNT(T$30:T41))/2)-1,((COUNT(T$30:T41))/2)-1))*100) + (100-(BETADIST(AY41,((COUNT(T$30:T41))/2)-1,((COUNT(T$30:T41))/2)-1))*100) - 100) + 55) / 100 ->  | BH41: =(0.5 * ((100-(BETADIST(AS41,((COUNT(AA$30:AA41))/2)-1,((COUNT(AA$30:AA41))/2)-1))*100) + (100-(BETADIST(AZ41,((COUNT(AA$30:AA41))/2)-1,((COUNT(AA$30:AA41))/2)-1))*100) - 100) + 55) / 100 ->  | BI41: =(0.5 * ((100-(BETADIST(AT41,((COUNT(AB$30:AB41))/2)-1,((COUNT(AB$30:AB41))/2)-1))*100) + (100-(BETADIST(BA41,((COUNT(AB$30:AB41))/2)-1,((COUNT(AB$30:AB41))/2)-1))*100) - 100) + 55) / 100 ->  | DA41: G3 | DD41: 1 | DE41: 12 | DJ41: 90 | DN41: 38 | DP41: 20 | DS41: 10 | DT41: 5.2 | DU41: 89.1 | DV41: 89.2 | DW41: 89.3
AE42: 0 | AF42: 0 | AG42: 0 | AH42: 0 | AI42: 0 | AJ42: 0 | AK42: =IF((MAX(0,(0.5-(($AK$21-AVERAGE($M$30:M42))/(IF(STDEV($M$30:M42)<0.01,0.01,STDEV($M$30:M42)))*SQRT(COUNT($M$30:M42))/(2*(COUNT($M$30:M42)-1))))))>1,1,(MAX(0,(0.5-(($AK$21-AVERAGE($M$30:M42))/(IF(STDEV($M$30:M42)<0.01,0.01,STDEV($M$30:M42)))*SQRT(COUNT($M$30:M42))/(2*(COUNT($M$30:M42)-1))))))) ->  | AL42: =IF((MAX(0,(0.5-(($AL$21-AVERAGE($N$30:N42))/(IF(STDEV($N$30:N42)<0.01,0.01,STDEV($N$30:N42)))*SQRT(COUNT($N$30:N42))/(2*(COUNT($N$30:N42)-1))))))>1,1,(MAX(0,(0.5-(($AL$21-AVERAGE($N$30:N42))/(IF(STDEV($N$30:N42)<0.01,0.01,STDEV($N$30:N42)))*SQRT(COUNT($N$30:N42))/(2*(COUNT($N$30:N42)-1))))))) ->  | AM42: 0 | AN42: 0 | AO42: 0 | AP42: 0 | AQ42: =IF((MAX(0,(0.5-(($AQ$21-AVERAGE($S$30:S42))/(IF(STDEV($S$30:S42)<0.01,0.01,STDEV($S$30:S42)))*SQRT(COUNT($S$30:S42))/(2*(COUNT($S$30:S42)-1))))))>1,1,(MAX(0,(0.5-(($AQ$21-AVERAGE($S$30:S42))/(IF(STDEV($S$30:S42)<0.01,0.01,STDEV($S$30:S42)))*SQRT(COUNT($S$30:S42))/(2*(COUNT($S$30:S42)-1))))))) ->  | AR42: =IF((MAX(0,(0.5-(($AR$21-AVERAGE($T$30:T42))/(IF(STDEV($T$30:T42)<0.01,0.01,STDEV($T$30:T42)))*SQRT(COUNT($T$30:T42))/(2*(COUNT($T$30:T42)-1))))))>1,1,(MAX(0,(0.5-(($AR$21-AVERAGE($T$30:T42))/(IF(STDEV($T$30:T42)<0.01,0.01,STDEV($T$30:T42)))*SQRT(COUNT($T$30:T42))/(2*(COUNT($T$30:T42)-1))))))) ->  | AS42: =IF((MAX(0,(0.5-(($AS$21-AVERAGE($AA$30:AA42))/(IF(STDEV($AA$30:AA42)<0.01,0.01,STDEV($AA$30:AA42)))*SQRT(COUNT($AA$30:AA42))/(2*(COUNT($AA$30:AA42)-1))))))>1,1,(MAX(0,(0.5-(($AS$21-AVERAGE($AA$30:AA42))/(IF(STDEV($AA$30:AA42)<0.01,0.01,STDEV($AA$30:AA42)))*SQRT(COUNT($AA$30:AA42))/(2*(COUNT($AA$30:AA42)-1))))))) ->  | AT42: =IF((MAX(0,(0.5-(($AT$21-AVERAGE($AB$30:AB42))/(IF(STDEV($AB$30:AB42)<0.01,0.01,STDEV($AB$30:AB42)))*SQRT(COUNT($AB$30:AB42))/(2*(COUNT($AB$30:AB42)-1))))))>1,1,(MAX(0,(0.5-(($AT$21-AVERAGE($AB$30:AB42))/(IF(STDEV($AB$30:AB42)<0.01,0.01,STDEV($AB$30:AB42)))*SQRT(COUNT($AB$30:AB42))/(2*(COUNT($AB$30:AB42)-1))))))) ->  | AV42: =IF((MAX(0,(0.5-((AVERAGE($M$30:M42)-$AV$22)/(IF(STDEV($M$30:M42)<0.01,0.01,STDEV($M$30:M42)))*SQRT(COUNT($M$30:M42))/(2*(COUNT($M$30:M42)-1))))))>1,1,(MAX(0,(0.5-((AVERAGE($M$30:M42)-$AV$22)/(IF(STDEV($M$30:M42)<0.01,0.01,STDEV($M$30:M42)))*SQRT(COUNT($M$30:M42))/(2*(COUNT($M$30:M42)-1))))))) ->  | AW42: =IF((MAX(0,(0.5-((AVERAGE($N$30:N42)-$AW$22)/(IF(STDEV($N$30:N42)<0.01,0.01,STDEV($N$30:N42)))*SQRT(COUNT($N$30:N42))/(2*(COUNT($N$30:N42)-1))))))>1,1,(MAX(0,(0.5-((AVERAGE($N$30:N42)-$AW$22)/(IF(STDEV($N$30:N42)<0.01,0.01,STDEV($N$30:N42)))*SQRT(COUNT($N$30:N42))/(2*(COUNT($N$30:N42)-1))))))) ->  | AX42: =IF((MAX(0,(0.5-((AVERAGE($S$30:S42)-$AX$22)/(IF(STDEV($S$30:S42)<0.01,0.01,STDEV($S$30:S42)))*SQRT(COUNT($S$30:S42))/(2*(COUNT($S$30:S42)-1))))))>1,1,(MAX(0,(0.5-((AVERAGE($S$30:S42)-$AX$22)/(IF(STDEV($S$30:S42)<0.01,0.01,STDEV($S$30:S42)))*SQRT(COUNT($S$30:S42))/(2*(COUNT($S$30:S42)-1))))))) ->  | AY42: =IF((MAX(0,(0.5-((AVERAGE($T$30:T42)-$AY$22)/(IF(STDEV($T$30:T42)<0.01,0.01,STDEV($T$30:T42)))*SQRT(COUNT($T$30:T42))/(2*(COUNT($T$30:T42)-1))))))>1,1,(MAX(0,(0.5-((AVERAGE($T$30:T42)-$AY$22)/(IF(STDEV($T$30:T42)<0.01,0.01,STDEV($T$30:T42)))*SQRT(COUNT($T$30:T42))/(2*(COUNT($T$30:T42)-1))))))) ->  | AZ42: =IF((MAX(0,(0.5-((AVERAGE($AA$30:AA42)-$AZ$22)/(IF(STDEV($AA$30:AA42)<0.01,0.01,STDEV($AA$30:AA42)))*SQRT(COUNT($AA$30:AA42))/(2*(COUNT($AA$30:AA42)-1))))))>1,1,(MAX(0,(0.5-((AVERAGE($AA$30:AA42)-$AZ$22)/(IF(STDEV($AA$30:AA42)<0.01,0.01,STDEV($AA$30:AA42)))*SQRT(COUNT($AA$30:AA42))/(2*(COUNT($AA$30:AA42)-1))))))) ->  | BA42: =IF((MAX(0,(0.5-((AVERAGE($AB$30:AB42)-$BA$22)/(IF(STDEV($AB$30:AB42)<0.01,0.01,STDEV($AB$30:AB42)))*SQRT(COUNT($AB$30:AB42))/(2*(COUNT($AB$30:AB42)-1))))))>1,1,(MAX(0,(0.5-((AVERAGE($AB$30:AB42)-$BA$22)/(IF(STDEV($AB$30:AB42)<0.01,0.01,STDEV($AB$30:AB42)))*SQRT(COUNT($AB$30:AB42))/(2*(COUNT($AB$30:AB42)-1))))))) ->  | BD42: =(0.5 * ((100-(BETADIST(AK42,((COUNT(M$30:M42))/2)-1,((COUNT(M$30:M42))/2)-1))*100) + (100-(BETADIST(AV42,((COUNT(M$30:M42))/2)-1,((COUNT(M$30:M42))/2)-1))*100) - 100) + 55) / 100 ->  | BE42: =(0.5 * ((100-(BETADIST(AL42,((COUNT(N$30:N42))/2)-1,((COUNT(N$30:N42))/2)-1))*100) + (100-(BETADIST(AW42,((COUNT(N$30:N42))/2)-1,((COUNT(N$30:N42))/2)-1))*100) - 100) + 55) / 100 ->  | BF42: =(0.5 * ((100-(BETADIST(AQ42,((COUNT(S$30:S42))/2)-1,((COUNT(S$30:S42))/2)-1))*100) + (100-(BETADIST(AX42,((COUNT(S$30:S42))/2)-1,((COUNT(S$30:S42))/2)-1))*100) - 100) + 55) / 100 ->  | BG42: =(0.5 * ((100-(BETADIST(AR42,((COUNT(T$30:T42))/2)-1,((COUNT(T$30:T42))/2)-1))*100) + (100-(BETADIST(AY42,((COUNT(T$30:T42))/2)-1,((COUNT(T$30:T42))/2)-1))*100) - 100) + 55) / 100 ->  | BH42: =(0.5 * ((100-(BETADIST(AS42,((COUNT(AA$30:AA42))/2)-1,((COUNT(AA$30:AA42))/2)-1))*100) + (100-(BETADIST(AZ42,((COUNT(AA$30:AA42))/2)-1,((COUNT(AA$30:AA42))/2)-1))*100) - 100) + 55) / 100 ->  | BI42: =(0.5 * ((100-(BETADIST(AT42,((COUNT(AB$30:AB42))/2)-1,((COUNT(AB$30:AB42))/2)-1))*100) + (100-(BETADIST(BA42,((COUNT(AB$30:AB42))/2)-1,((COUNT(AB$30:AB42))/2)-1))*100) - 100) + 55) / 100 ->  | DB42: 2009-07-20 | DD42: 1 | DE42: 13 | DJ42: 91 | DL42: 94 | DN42: 33 | DP42: 19 | DS42: 5.4 | DT42: 5.14 | DU42: 93.2 | DV42: 92.5 | DW42: 94.6 | DX42: 3.8 | DY42: 3.9 | DZ42: 4
AE43: 0 | AF43: 0 | AG43: 0 | AH43: 0 | AI43: 0 | AJ43: 0 | AK43: =IF((MAX(0,(0.5-(($AK$21-AVERAGE($M$30:M43))/(IF(STDEV($M$30:M43)<0.01,0.01,STDEV($M$30:M43)))*SQRT(COUNT($M$30:M43))/(2*(COUNT($M$30:M43)-1))))))>1,1,(MAX(0,(0.5-(($AK$21-AVERAGE($M$30:M43))/(IF(STDEV($M$30:M43)<0.01,0.01,STDEV($M$30:M43)))*SQRT(COUNT($M$30:M43))/(2*(COUNT($M$30:M43)-1))))))) ->  | AL43: =IF((MAX(0,(0.5-(($AL$21-AVERAGE($N$30:N43))/(IF(STDEV($N$30:N43)<0.01,0.01,STDEV($N$30:N43)))*SQRT(COUNT($N$30:N43))/(2*(COUNT($N$30:N43)-1))))))>1,1,(MAX(0,(0.5-(($AL$21-AVERAGE($N$30:N43))/(IF(STDEV($N$30:N43)<0.01,0.01,STDEV($N$30:N43)))*SQRT(COUNT($N$30:N43))/(2*(COUNT($N$30:N43)-1))))))) ->  | AM43: 0 | AN43: 0 | AO43: 0 | AP43: 0 | AQ43: =IF((MAX(0,(0.5-(($AQ$21-AVERAGE($S$30:S43))/(IF(STDEV($S$30:S43)<0.01,0.01,STDEV($S$30:S43)))*SQRT(COUNT($S$30:S43))/(2*(COUNT($S$30:S43)-1))))))>1,1,(MAX(0,(0.5-(($AQ$21-AVERAGE($S$30:S43))/(IF(STDEV($S$30:S43)<0.01,0.01,STDEV($S$30:S43)))*SQRT(COUNT($S$30:S43))/(2*(COUNT($S$30:S43)-1))))))) ->  | AR43: =IF((MAX(0,(0.5-(($AR$21-AVERAGE($T$30:T43))/(IF(STDEV($T$30:T43)<0.01,0.01,STDEV($T$30:T43)))*SQRT(COUNT($T$30:T43))/(2*(COUNT($T$30:T43)-1))))))>1,1,(MAX(0,(0.5-(($AR$21-AVERAGE($T$30:T43))/(IF(STDEV($T$30:T43)<0.01,0.01,STDEV($T$30:T43)))*SQRT(COUNT($T$30:T43))/(2*(COUNT($T$30:T43)-1))))))) ->  | AS43: =IF((MAX(0,(0.5-(($AS$21-AVERAGE($AA$30:AA43))/(IF(STDEV($AA$30:AA43)<0.01,0.01,STDEV($AA$30:AA43)))*SQRT(COUNT($AA$30:AA43))/(2*(COUNT($AA$30:AA43)-1))))))>1,1,(MAX(0,(0.5-(($AS$21-AVERAGE($AA$30:AA43))/(IF(STDEV($AA$30:AA43)<0.01,0.01,STDEV($AA$30:AA43)))*SQRT(COUNT($AA$30:AA43))/(2*(COUNT($AA$30:AA43)-1))))))) ->  | AT43: =IF((MAX(0,(0.5-(($AT$21-AVERAGE($AB$30:AB43))/(IF(STDEV($AB$30:AB43)<0.01,0.01,STDEV($AB$30:AB43)))*SQRT(COUNT($AB$30:AB43))/(2*(COUNT($AB$30:AB43)-1))))))>1,1,(MAX(0,(0.5-(($AT$21-AVERAGE($AB$30:AB43))/(IF(STDEV($AB$30:AB43)<0.01,0.01,STDEV($AB$30:AB43)))*SQRT(COUNT($AB$30:AB43))/(2*(COUNT($AB$30:AB43)-1))))))) ->  | AV43: =IF((MAX(0,(0.5-((AVERAGE($M$30:M43)-$AV$22)/(IF(STDEV($M$30:M43)<0.01,0.01,STDEV($M$30:M43)))*SQRT(COUNT($M$30:M43))/(2*(COUNT($M$30:M43)-1))))))>1,1,(MAX(0,(0.5-((AVERAGE($M$30:M43)-$AV$22)/(IF(STDEV($M$30:M43)<0.01,0.01,STDEV($M$30:M43)))*SQRT(COUNT($M$30:M43))/(2*(COUNT($M$30:M43)-1))))))) ->  | AW43: =IF((MAX(0,(0.5-((AVERAGE($N$30:N43)-$AW$22)/(IF(STDEV($N$30:N43)<0.01,0.01,STDEV($N$30:N43)))*SQRT(COUNT($N$30:N43))/(2*(COUNT($N$30:N43)-1))))))>1,1,(MAX(0,(0.5-((AVERAGE($N$30:N43)-$AW$22)/(IF(STDEV($N$30:N43)<0.01,0.01,STDEV($N$30:N43)))*SQRT(COUNT($N$30:N43))/(2*(COUNT($N$30:N43)-1))))))) ->  | AX43: =IF((MAX(0,(0.5-((AVERAGE($S$30:S43)-$AX$22)/(IF(STDEV($S$30:S43)<0.01,0.01,STDEV($S$30:S43)))*SQRT(COUNT($S$30:S43))/(2*(COUNT($S$30:S43)-1))))))>1,1,(MAX(0,(0.5-((AVERAGE($S$30:S43)-$AX$22)/(IF(STDEV($S$30:S43)<0.01,0.01,STDEV($S$30:S43)))*SQRT(COUNT($S$30:S43))/(2*(COUNT($S$30:S43)-1))))))) ->  | AY43: =IF((MAX(0,(0.5-((AVERAGE($T$30:T43)-$AY$22)/(IF(STDEV($T$30:T43)<0.01,0.01,STDEV($T$30:T43)))*SQRT(COUNT($T$30:T43))/(2*(COUNT($T$30:T43)-1))))))>1,1,(MAX(0,(0.5-((AVERAGE($T$30:T43)-$AY$22)/(IF(STDEV($T$30:T43)<0.01,0.01,STDEV($T$30:T43)))*SQRT(COUNT($T$30:T43))/(2*(COUNT($T$30:T43)-1))))))) ->  | AZ43: =IF((MAX(0,(0.5-((AVERAGE($AA$30:AA43)-$AZ$22)/(IF(STDEV($AA$30:AA43)<0.01,0.01,STDEV($AA$30:AA43)))*SQRT(COUNT($AA$30:AA43))/(2*(COUNT($AA$30:AA43)-1))))))>1,1,(MAX(0,(0.5-((AVERAGE($AA$30:AA43)-$AZ$22)/(IF(STDEV($AA$30:AA43)<0.01,0.01,STDEV($AA$30:AA43)))*SQRT(COUNT($AA$30:AA43))/(2*(COUNT($AA$30:AA43)-1))))))) ->  | BA43: =IF((MAX(0,(0.5-((AVERAGE($AB$30:AB43)-$BA$22)/(IF(STDEV($AB$30:AB43)<0.01,0.01,STDEV($AB$30:AB43)))*SQRT(COUNT($AB$30:AB43))/(2*(COUNT($AB$30:AB43)-1))))))>1,1,(MAX(0,(0.5-((AVERAGE($AB$30:AB43)-$BA$22)/(IF(STDEV($AB$30:AB43)<0.01,0.01,STDEV($AB$30:AB43)))*SQRT(COUNT($AB$30:AB43))/(2*(COUNT($AB$30:AB43)-1))))))) ->  | BD43: =(0.5 * ((100-(BETADIST(AK43,((COUNT(M$30:M43))/2)-1,((COUNT(M$30:M43))/2)-1))*100) + (100-(BETADIST(AV43,((COUNT(M$30:M43))/2)-1,((COUNT(M$30:M43))/2)-1))*100) - 100) + 55) / 100 ->  | BE43: =(0.5 * ((100-(BETADIST(AL43,((COUNT(N$30:N43))/2)-1,((COUNT(N$30:N43))/2)-1))*100) + (100-(BETADIST(AW43,((COUNT(N$30:N43))/2)-1,((COUNT(N$30:N43))/2)-1))*100) - 100) + 55) / 100 ->  | BF43: =(0.5 * ((100-(BETADIST(AQ43,((COUNT(S$30:S43))/2)-1,((COUNT(S$30:S43))/2)-1))*100) + (100-(BETADIST(AX43,((COUNT(S$30:S43))/2)-1,((COUNT(S$30:S43))/2)-1))*100) - 100) + 55) / 100 ->  | BG43: =(0.5 * ((100-(BETADIST(AR43,((COUNT(T$30:T43))/2)-1,((COUNT(T$30:T43))/2)-1))*100) + (100-(BETADIST(AY43,((COUNT(T$30:T43))/2)-1,((COUNT(T$30:T43))/2)-1))*100) - 100) + 55) / 100 ->  | BH43: =(0.5 * ((100-(BETADIST(AS43,((COUNT(AA$30:AA43))/2)-1,((COUNT(AA$30:AA43))/2)-1))*100) + (100-(BETADIST(AZ43,((COUNT(AA$30:AA43))/2)-1,((COUNT(AA$30:AA43))/2)-1))*100) - 100) + 55) / 100 ->  | BI43: =(0.5 * ((100-(BETADIST(AT43,((COUNT(AB$30:AB43))/2)-1,((COUNT(AB$30:AB43))/2)-1))*100) + (100-(BETADIST(BA43,((COUNT(AB$30:AB43))/2)-1,((COUNT(AB$30:AB43))/2)-1))*100) - 100) + 55) / 100 ->  | DD43: 1 | DE43: 14 | DN43: 33 | DP43: 18 | DS43: 5.8 | DT43: 4.9 | DU43: 91.2 | DV43: 96.2 | DW43: 95.2
AE44: 0 | AF44: 0 | AG44: 0 | AH44: 0 | AI44: 0 | AJ44: 0 | AK44: =IF((MAX(0,(0.5-(($AK$21-AVERAGE($M$30:M44))/(IF(STDEV($M$30:M44)<0.01,0.01,STDEV($M$30:M44)))*SQRT(COUNT($M$30:M44))/(2*(COUNT($M$30:M44)-1))))))>1,1,(MAX(0,(0.5-(($AK$21-AVERAGE($M$30:M44))/(IF(STDEV($M$30:M44)<0.01,0.01,STDEV($M$30:M44)))*SQRT(COUNT($M$30:M44))/(2*(COUNT($M$30:M44)-1))))))) ->  | AL44: =IF((MAX(0,(0.5-(($AL$21-AVERAGE($N$30:N44))/(IF(STDEV($N$30:N44)<0.01,0.01,STDEV($N$30:N44)))*SQRT(COUNT($N$30:N44))/(2*(COUNT($N$30:N44)-1))))))>1,1,(MAX(0,(0.5-(($AL$21-AVERAGE($N$30:N44))/(IF(STDEV($N$30:N44)<0.01,0.01,STDEV($N$30:N44)))*SQRT(COUNT($N$30:N44))/(2*(COUNT($N$30:N44)-1))))))) ->  | AM44: 0 | AN44: 0 | AO44: 0 | AP44: 0 | AQ44: =IF((MAX(0,(0.5-(($AQ$21-AVERAGE($S$30:S44))/(IF(STDEV($S$30:S44)<0.01,0.01,STDEV($S$30:S44)))*SQRT(COUNT($S$30:S44))/(2*(COUNT($S$30:S44)-1))))))>1,1,(MAX(0,(0.5-(($AQ$21-AVERAGE($S$30:S44))/(IF(STDEV($S$30:S44)<0.01,0.01,STDEV($S$30:S44)))*SQRT(COUNT($S$30:S44))/(2*(COUNT($S$30:S44)-1))))))) ->  | AR44: =IF((MAX(0,(0.5-(($AR$21-AVERAGE($T$30:T44))/(IF(STDEV($T$30:T44)<0.01,0.01,STDEV($T$30:T44)))*SQRT(COUNT($T$30:T44))/(2*(COUNT($T$30:T44)-1))))))>1,1,(MAX(0,(0.5-(($AR$21-AVERAGE($T$30:T44))/(IF(STDEV($T$30:T44)<0.01,0.01,STDEV($T$30:T44)))*SQRT(COUNT($T$30:T44))/(2*(COUNT($T$30:T44)-1))))))) ->  | AS44: =IF((MAX(0,(0.5-(($AS$21-AVERAGE($AA$30:AA44))/(IF(STDEV($AA$30:AA44)<0.01,0.01,STDEV($AA$30:AA44)))*SQRT(COUNT($AA$30:AA44))/(2*(COUNT($AA$30:AA44)-1))))))>1,1,(MAX(0,(0.5-(($AS$21-AVERAGE($AA$30:AA44))/(IF(STDEV($AA$30:AA44)<0.01,0.01,STDEV($AA$30:AA44)))*SQRT(COUNT($AA$30:AA44))/(2*(COUNT($AA$30:AA44)-1))))))) ->  | AT44: =IF((MAX(0,(0.5-(($AT$21-AVERAGE($AB$30:AB44))/(IF(STDEV($AB$30:AB44)<0.01,0.01,STDEV($AB$30:AB44)))*SQRT(COUNT($AB$30:AB44))/(2*(COUNT($AB$30:AB44)-1))))))>1,1,(MAX(0,(0.5-(($AT$21-AVERAGE($AB$30:AB44))/(IF(STDEV($AB$30:AB44)<0.01,0.01,STDEV($AB$30:AB44)))*SQRT(COUNT($AB$30:AB44))/(2*(COUNT($AB$30:AB44)-1))))))) ->  | AV44: =IF((MAX(0,(0.5-((AVERAGE($M$30:M44)-$AV$22)/(IF(STDEV($M$30:M44)<0.01,0.01,STDEV($M$30:M44)))*SQRT(COUNT($M$30:M44))/(2*(COUNT($M$30:M44)-1))))))>1,1,(MAX(0,(0.5-((AVERAGE($M$30:M44)-$AV$22)/(IF(STDEV($M$30:M44)<0.01,0.01,STDEV($M$30:M44)))*SQRT(COUNT($M$30:M44))/(2*(COUNT($M$30:M44)-1))))))) ->  | AW44: =IF((MAX(0,(0.5-((AVERAGE($N$30:N44)-$AW$22)/(IF(STDEV($N$30:N44)<0.01,0.01,STDEV($N$30:N44)))*SQRT(COUNT($N$30:N44))/(2*(COUNT($N$30:N44)-1))))))>1,1,(MAX(0,(0.5-((AVERAGE($N$30:N44)-$AW$22)/(IF(STDEV($N$30:N44)<0.01,0.01,STDEV($N$30:N44)))*SQRT(COUNT($N$30:N44))/(2*(COUNT($N$30:N44)-1))))))) ->  | AX44: =IF((MAX(0,(0.5-((AVERAGE($S$30:S44)-$AX$22)/(IF(STDEV($S$30:S44)<0.01,0.01,STDEV($S$30:S44)))*SQRT(COUNT($S$30:S44))/(2*(COUNT($S$30:S44)-1))))))>1,1,(MAX(0,(0.5-((AVERAGE($S$30:S44)-$AX$22)/(IF(STDEV($S$30:S44)<0.01,0.01,STDEV($S$30:S44)))*SQRT(COUNT($S$30:S44))/(2*(COUNT($S$30:S44)-1))))))) ->  | AY44: =IF((MAX(0,(0.5-((AVERAGE($T$30:T44)-$AY$22)/(IF(STDEV($T$30:T44)<0.01,0.01,STDEV($T$30:T44)))*SQRT(COUNT($T$30:T44))/(2*(COUNT($T$30:T44)-1))))))>1,1,(MAX(0,(0.5-((AVERAGE($T$30:T44)-$AY$22)/(IF(STDEV($T$30:T44)<0.01,0.01,STDEV($T$30:T44)))*SQRT(COUNT($T$30:T44))/(2*(COUNT($T$30:T44)-1))))))) ->  | AZ44: =IF((MAX(0,(0.5-((AVERAGE($AA$30:AA44)-$AZ$22)/(IF(STDEV($AA$30:AA44)<0.01,0.01,STDEV($AA$30:AA44)))*SQRT(COUNT($AA$30:AA44))/(2*(COUNT($AA$30:AA44)-1))))))>1,1,(MAX(0,(0.5-((AVERAGE($AA$30:AA44)-$AZ$22)/(IF(STDEV($AA$30:AA44)<0.01,0.01,STDEV($AA$30:AA44)))*SQRT(COUNT($AA$30:AA44))/(2*(COUNT($AA$30:AA44)-1))))))) ->  | BA44: =IF((MAX(0,(0.5-((AVERAGE($AB$30:AB44)-$BA$22)/(IF(STDEV($AB$30:AB44)<0.01,0.01,STDEV($AB$30:AB44)))*SQRT(COUNT($AB$30:AB44))/(2*(COUNT($AB$30:AB44)-1))))))>1,1,(MAX(0,(0.5-((AVERAGE($AB$30:AB44)-$BA$22)/(IF(STDEV($AB$30:AB44)<0.01,0.01,STDEV($AB$30:AB44)))*SQRT(COUNT($AB$30:AB44))/(2*(COUNT($AB$30:AB44)-1))))))) ->  | BD44: =(0.5 * ((100-(BETADIST(AK44,((COUNT(M$30:M44))/2)-1,((COUNT(M$30:M44))/2)-1))*100) + (100-(BETADIST(AV44,((COUNT(M$30:M44))/2)-1,((COUNT(M$30:M44))/2)-1))*100) - 100) + 55) / 100 ->  | BE44: =(0.5 * ((100-(BETADIST(AL44,((COUNT(N$30:N44))/2)-1,((COUNT(N$30:N44))/2)-1))*100) + (100-(BETADIST(AW44,((COUNT(N$30:N44))/2)-1,((COUNT(N$30:N44))/2)-1))*100) - 100) + 55) / 100 ->  | BF44: =(0.5 * ((100-(BETADIST(AQ44,((COUNT(S$30:S44))/2)-1,((COUNT(S$30:S44))/2)-1))*100) + (100-(BETADIST(AX44,((COUNT(S$30:S44))/2)-1,((COUNT(S$30:S44))/2)-1))*100) - 100) + 55) / 100 ->  | BG44: =(0.5 * ((100-(BETADIST(AR44,((COUNT(T$30:T44))/2)-1,((COUNT(T$30:T44))/2)-1))*100) + (100-(BETADIST(AY44,((COUNT(T$30:T44))/2)-1,((COUNT(T$30:T44))/2)-1))*100) - 100) + 55) / 100 ->  | BH44: =(0.5 * ((100-(BETADIST(AS44,((COUNT(AA$30:AA44))/2)-1,((COUNT(AA$30:AA44))/2)-1))*100) + (100-(BETADIST(AZ44,((COUNT(AA$30:AA44))/2)-1,((COUNT(AA$30:AA44))/2)-1))*100) - 100) + 55) / 100 ->  | BI44: =(0.5 * ((100-(BETADIST(AT44,((COUNT(AB$30:AB44))/2)-1,((COUNT(AB$30:AB44))/2)-1))*100) + (100-(BETADIST(BA44,((COUNT(AB$30:AB44))/2)-1,((COUNT(AB$30:AB44))/2)-1))*100) - 100) + 55) / 100 ->  | DB44: 2009-07-24 | DD44: 1 | DE44: 15 | DN44: 39 | DP44: 17 | DS44: 4.9 | DT44: 5.24 | DU44: 95.2 | DV44: 91.6 | DW44: 93.1 | DX44: 4.5 | DY44: 4.6 | DZ44: 4.7
AE45: 0 | AF45: 0 | AG45: 0 | AH45: 0 | AI45: 0 | AJ45: 0 | AK45: =IF((MAX(0,(0.5-(($AK$21-AVERAGE($M$30:M45))/(IF(STDEV($M$30:M45)<0.01,0.01,STDEV($M$30:M45)))*SQRT(COUNT($M$30:M45))/(2*(COUNT($M$30:M45)-1))))))>1,1,(MAX(0,(0.5-(($AK$21-AVERAGE($M$30:M45))/(IF(STDEV($M$30:M45)<0.01,0.01,STDEV($M$30:M45)))*SQRT(COUNT($M$30:M45))/(2*(COUNT($M$30:M45)-1))))))) ->  | AL45: =IF((MAX(0,(0.5-(($AL$21-AVERAGE($N$30:N45))/(IF(STDEV($N$30:N45)<0.01,0.01,STDEV($N$30:N45)))*SQRT(COUNT($N$30:N45))/(2*(COUNT($N$30:N45)-1))))))>1,1,(MAX(0,(0.5-(($AL$21-AVERAGE($N$30:N45))/(IF(STDEV($N$30:N45)<0.01,0.01,STDEV($N$30:N45)))*SQRT(COUNT($N$30:N45))/(2*(COUNT($N$30:N45)-1))))))) ->  | AM45: 0 | AN45: 0 | AO45: 0 | AP45: 0 | AQ45: =IF((MAX(0,(0.5-(($AQ$21-AVERAGE($S$30:S45))/(IF(STDEV($S$30:S45)<0.01,0.01,STDEV($S$30:S45)))*SQRT(COUNT($S$30:S45))/(2*(COUNT($S$30:S45)-1))))))>1,1,(MAX(0,(0.5-(($AQ$21-AVERAGE($S$30:S45))/(IF(STDEV($S$30:S45)<0.01,0.01,STDEV($S$30:S45)))*SQRT(COUNT($S$30:S45))/(2*(COUNT($S$30:S45)-1))))))) ->  | AR45: =IF((MAX(0,(0.5-(($AR$21-AVERAGE($T$30:T45))/(IF(STDEV($T$30:T45)<0.01,0.01,STDEV($T$30:T45)))*SQRT(COUNT($T$30:T45))/(2*(COUNT($T$30:T45)-1))))))>1,1,(MAX(0,(0.5-(($AR$21-AVERAGE($T$30:T45))/(IF(STDEV($T$30:T45)<0.01,0.01,STDEV($T$30:T45)))*SQRT(COUNT($T$30:T45))/(2*(COUNT($T$30:T45)-1))))))) ->  | AS45: =IF((MAX(0,(0.5-(($AS$21-AVERAGE($AA$30:AA45))/(IF(STDEV($AA$30:AA45)<0.01,0.01,STDEV($AA$30:AA45)))*SQRT(COUNT($AA$30:AA45))/(2*(COUNT($AA$30:AA45)-1))))))>1,1,(MAX(0,(0.5-(($AS$21-AVERAGE($AA$30:AA45))/(IF(STDEV($AA$30:AA45)<0.01,0.01,STDEV($AA$30:AA45)))*SQRT(COUNT($AA$30:AA45))/(2*(COUNT($AA$30:AA45)-1))))))) ->  | AT45: =IF((MAX(0,(0.5-(($AT$21-AVERAGE($AB$30:AB45))/(IF(STDEV($AB$30:AB45)<0.01,0.01,STDEV($AB$30:AB45)))*SQRT(COUNT($AB$30:AB45))/(2*(COUNT($AB$30:AB45)-1))))))>1,1,(MAX(0,(0.5-(($AT$21-AVERAGE($AB$30:AB45))/(IF(STDEV($AB$30:AB45)<0.01,0.01,STDEV($AB$30:AB45)))*SQRT(COUNT($AB$30:AB45))/(2*(COUNT($AB$30:AB45)-1))))))) ->  | AV45: =IF((MAX(0,(0.5-((AVERAGE($M$30:M45)-$AV$22)/(IF(STDEV($M$30:M45)<0.01,0.01,STDEV($M$30:M45)))*SQRT(COUNT($M$30:M45))/(2*(COUNT($M$30:M45)-1))))))>1,1,(MAX(0,(0.5-((AVERAGE($M$30:M45)-$AV$22)/(IF(STDEV($M$30:M45)<0.01,0.01,STDEV($M$30:M45)))*SQRT(COUNT($M$30:M45))/(2*(COUNT($M$30:M45)-1))))))) ->  | AW45: =IF((MAX(0,(0.5-((AVERAGE($N$30:N45)-$AW$22)/(IF(STDEV($N$30:N45)<0.01,0.01,STDEV($N$30:N45)))*SQRT(COUNT($N$30:N45))/(2*(COUNT($N$30:N45)-1))))))>1,1,(MAX(0,(0.5-((AVERAGE($N$30:N45)-$AW$22)/(IF(STDEV($N$30:N45)<0.01,0.01,STDEV($N$30:N45)))*SQRT(COUNT($N$30:N45))/(2*(COUNT($N$30:N45)-1))))))) ->  | AX45: =IF((MAX(0,(0.5-((AVERAGE($S$30:S45)-$AX$22)/(IF(STDEV($S$30:S45)<0.01,0.01,STDEV($S$30:S45)))*SQRT(COUNT($S$30:S45))/(2*(COUNT($S$30:S45)-1))))))>1,1,(MAX(0,(0.5-((AVERAGE($S$30:S45)-$AX$22)/(IF(STDEV($S$30:S45)<0.01,0.01,STDEV($S$30:S45)))*SQRT(COUNT($S$30:S45))/(2*(COUNT($S$30:S45)-1))))))) ->  | AY45: =IF((MAX(0,(0.5-((AVERAGE($T$30:T45)-$AY$22)/(IF(STDEV($T$30:T45)<0.01,0.01,STDEV($T$30:T45)))*SQRT(COUNT($T$30:T45))/(2*(COUNT($T$30:T45)-1))))))>1,1,(MAX(0,(0.5-((AVERAGE($T$30:T45)-$AY$22)/(IF(STDEV($T$30:T45)<0.01,0.01,STDEV($T$30:T45)))*SQRT(COUNT($T$30:T45))/(2*(COUNT($T$30:T45)-1))))))) ->  | AZ45: =IF((MAX(0,(0.5-((AVERAGE($AA$30:AA45)-$AZ$22)/(IF(STDEV($AA$30:AA45)<0.01,0.01,STDEV($AA$30:AA45)))*SQRT(COUNT($AA$30:AA45))/(2*(COUNT($AA$30:AA45)-1))))))>1,1,(MAX(0,(0.5-((AVERAGE($AA$30:AA45)-$AZ$22)/(IF(STDEV($AA$30:AA45)<0.01,0.01,STDEV($AA$30:AA45)))*SQRT(COUNT($AA$30:AA45))/(2*(COUNT($AA$30:AA45)-1))))))) ->  | BA45: =IF((MAX(0,(0.5-((AVERAGE($AB$30:AB45)-$BA$22)/(IF(STDEV($AB$30:AB45)<0.01,0.01,STDEV($AB$30:AB45)))*SQRT(COUNT($AB$30:AB45))/(2*(COUNT($AB$30:AB45)-1))))))>1,1,(MAX(0,(0.5-((AVERAGE($AB$30:AB45)-$BA$22)/(IF(STDEV($AB$30:AB45)<0.01,0.01,STDEV($AB$30:AB45)))*SQRT(COUNT($AB$30:AB45))/(2*(COUNT($AB$30:AB45)-1))))))) ->  | BD45: =(0.5 * ((100-(BETADIST(AK45,((COUNT(M$30:M45))/2)-1,((COUNT(M$30:M45))/2)-1))*100) + (100-(BETADIST(AV45,((COUNT(M$30:M45))/2)-1,((COUNT(M$30:M45))/2)-1))*100) - 100) + 55) / 100 ->  | BE45: =(0.5 * ((100-(BETADIST(AL45,((COUNT(N$30:N45))/2)-1,((COUNT(N$30:N45))/2)-1))*100) + (100-(BETADIST(AW45,((COUNT(N$30:N45))/2)-1,((COUNT(N$30:N45))/2)-1))*100) - 100) + 55) / 100 ->  | BF45: =(0.5 * ((100-(BETADIST(AQ45,((COUNT(S$30:S45))/2)-1,((COUNT(S$30:S45))/2)-1))*100) + (100-(BETADIST(AX45,((COUNT(S$30:S45))/2)-1,((COUNT(S$30:S45))/2)-1))*100) - 100) + 55) / 100 ->  | BG45: =(0.5 * ((100-(BETADIST(AR45,((COUNT(T$30:T45))/2)-1,((COUNT(T$30:T45))/2)-1))*100) + (100-(BETADIST(AY45,((COUNT(T$30:T45))/2)-1,((COUNT(T$30:T45))/2)-1))*100) - 100) + 55) / 100 ->  | BH45: =(0.5 * ((100-(BETADIST(AS45,((COUNT(AA$30:AA45))/2)-1,((COUNT(AA$30:AA45))/2)-1))*100) + (100-(BETADIST(AZ45,((COUNT(AA$30:AA45))/2)-1,((COUNT(AA$30:AA45))/2)-1))*100) - 100) + 55) / 100 ->  | BI45: =(0.5 * ((100-(BETADIST(AT45,((COUNT(AB$30:AB45))/2)-1,((COUNT(AB$30:AB45))/2)-1))*100) + (100-(BETADIST(BA45,((COUNT(AB$30:AB45))/2)-1,((COUNT(AB$30:AB45))/2)-1))*100) - 100) + 55) / 100 ->  | DB45: 2009-08-23 | DD45: 1 | DE45: 16 | DN45: 38 | DP45: 16 | DS45: 6.8 | DT45: 4.91 | DU45: 94.4 | DV45: 95.6 | DW45: 95.1
AE46: 0 | AF46: 0 | AG46: 0 | AH46: 0 | AI46: 0 | AJ46: 0 | AK46: =IF((MAX(0,(0.5-(($AK$21-AVERAGE($M$30:M46))/(IF(STDEV($M$30:M46)<0.01,0.01,STDEV($M$30:M46)))*SQRT(COUNT($M$30:M46))/(2*(COUNT($M$30:M46)-1))))))>1,1,(MAX(0,(0.5-(($AK$21-AVERAGE($M$30:M46))/(IF(STDEV($M$30:M46)<0.01,0.01,STDEV($M$30:M46)))*SQRT(COUNT($M$30:M46))/(2*(COUNT($M$30:M46)-1))))))) ->  | AL46: =IF((MAX(0,(0.5-(($AL$21-AVERAGE($N$30:N46))/(IF(STDEV($N$30:N46)<0.01,0.01,STDEV($N$30:N46)))*SQRT(COUNT($N$30:N46))/(2*(COUNT($N$30:N46)-1))))))>1,1,(MAX(0,(0.5-(($AL$21-AVERAGE($N$30:N46))/(IF(STDEV($N$30:N46)<0.01,0.01,STDEV($N$30:N46)))*SQRT(COUNT($N$30:N46))/(2*(COUNT($N$30:N46)-1))))))) ->  | AM46: 0 | AN46: 0 | AO46: 0 | AP46: 0 | AQ46: =IF((MAX(0,(0.5-(($AQ$21-AVERAGE($S$30:S46))/(IF(STDEV($S$30:S46)<0.01,0.01,STDEV($S$30:S46)))*SQRT(COUNT($S$30:S46))/(2*(COUNT($S$30:S46)-1))))))>1,1,(MAX(0,(0.5-(($AQ$21-AVERAGE($S$30:S46))/(IF(STDEV($S$30:S46)<0.01,0.01,STDEV($S$30:S46)))*SQRT(COUNT($S$30:S46))/(2*(COUNT($S$30:S46)-1))))))) ->  | AR46: =IF((MAX(0,(0.5-(($AR$21-AVERAGE($T$30:T46))/(IF(STDEV($T$30:T46)<0.01,0.01,STDEV($T$30:T46)))*SQRT(COUNT($T$30:T46))/(2*(COUNT($T$30:T46)-1))))))>1,1,(MAX(0,(0.5-(($AR$21-AVERAGE($T$30:T46))/(IF(STDEV($T$30:T46)<0.01,0.01,STDEV($T$30:T46)))*SQRT(COUNT($T$30:T46))/(2*(COUNT($T$30:T46)-1))))))) ->  | AS46: =IF((MAX(0,(0.5-(($AS$21-AVERAGE($AA$30:AA46))/(IF(STDEV($AA$30:AA46)<0.01,0.01,STDEV($AA$30:AA46)))*SQRT(COUNT($AA$30:AA46))/(2*(COUNT($AA$30:AA46)-1))))))>1,1,(MAX(0,(0.5-(($AS$21-AVERAGE($AA$30:AA46))/(IF(STDEV($AA$30:AA46)<0.01,0.01,STDEV($AA$30:AA46)))*SQRT(COUNT($AA$30:AA46))/(2*(COUNT($AA$30:AA46)-1))))))) ->  | AT46: =IF((MAX(0,(0.5-(($AT$21-AVERAGE($AB$30:AB46))/(IF(STDEV($AB$30:AB46)<0.01,0.01,STDEV($AB$30:AB46)))*SQRT(COUNT($AB$30:AB46))/(2*(COUNT($AB$30:AB46)-1))))))>1,1,(MAX(0,(0.5-(($AT$21-AVERAGE($AB$30:AB46))/(IF(STDEV($AB$30:AB46)<0.01,0.01,STDEV($AB$30:AB46)))*SQRT(COUNT($AB$30:AB46))/(2*(COUNT($AB$30:AB46)-1))))))) ->  | AV46: =IF((MAX(0,(0.5-((AVERAGE($M$30:M46)-$AV$22)/(IF(STDEV($M$30:M46)<0.01,0.01,STDEV($M$30:M46)))*SQRT(COUNT($M$30:M46))/(2*(COUNT($M$30:M46)-1))))))>1,1,(MAX(0,(0.5-((AVERAGE($M$30:M46)-$AV$22)/(IF(STDEV($M$30:M46)<0.01,0.01,STDEV($M$30:M46)))*SQRT(COUNT($M$30:M46))/(2*(COUNT($M$30:M46)-1))))))) ->  | AW46: =IF((MAX(0,(0.5-((AVERAGE($N$30:N46)-$AW$22)/(IF(STDEV($N$30:N46)<0.01,0.01,STDEV($N$30:N46)))*SQRT(COUNT($N$30:N46))/(2*(COUNT($N$30:N46)-1))))))>1,1,(MAX(0,(0.5-((AVERAGE($N$30:N46)-$AW$22)/(IF(STDEV($N$30:N46)<0.01,0.01,STDEV($N$30:N46)))*SQRT(COUNT($N$30:N46))/(2*(COUNT($N$30:N46)-1))))))) ->  | AX46: =IF((MAX(0,(0.5-((AVERAGE($S$30:S46)-$AX$22)/(IF(STDEV($S$30:S46)<0.01,0.01,STDEV($S$30:S46)))*SQRT(COUNT($S$30:S46))/(2*(COUNT($S$30:S46)-1))))))>1,1,(MAX(0,(0.5-((AVERAGE($S$30:S46)-$AX$22)/(IF(STDEV($S$30:S46)<0.01,0.01,STDEV($S$30:S46)))*SQRT(COUNT($S$30:S46))/(2*(COUNT($S$30:S46)-1))))))) ->  | AY46: =IF((MAX(0,(0.5-((AVERAGE($T$30:T46)-$AY$22)/(IF(STDEV($T$30:T46)<0.01,0.01,STDEV($T$30:T46)))*SQRT(COUNT($T$30:T46))/(2*(COUNT($T$30:T46)-1))))))>1,1,(MAX(0,(0.5-((AVERAGE($T$30:T46)-$AY$22)/(IF(STDEV($T$30:T46)<0.01,0.01,STDEV($T$30:T46)))*SQRT(COUNT($T$30:T46))/(2*(COUNT($T$30:T46)-1))))))) ->  | AZ46: =IF((MAX(0,(0.5-((AVERAGE($AA$30:AA46)-$AZ$22)/(IF(STDEV($AA$30:AA46)<0.01,0.01,STDEV($AA$30:AA46)))*SQRT(COUNT($AA$30:AA46))/(2*(COUNT($AA$30:AA46)-1))))))>1,1,(MAX(0,(0.5-((AVERAGE($AA$30:AA46)-$AZ$22)/(IF(STDEV($AA$30:AA46)<0.01,0.01,STDEV($AA$30:AA46)))*SQRT(COUNT($AA$30:AA46))/(2*(COUNT($AA$30:AA46)-1))))))) ->  | BA46: =IF((MAX(0,(0.5-((AVERAGE($AB$30:AB46)-$BA$22)/(IF(STDEV($AB$30:AB46)<0.01,0.01,STDEV($AB$30:AB46)))*SQRT(COUNT($AB$30:AB46))/(2*(COUNT($AB$30:AB46)-1))))))>1,1,(MAX(0,(0.5-((AVERAGE($AB$30:AB46)-$BA$22)/(IF(STDEV($AB$30:AB46)<0.01,0.01,STDEV($AB$30:AB46)))*SQRT(COUNT($AB$30:AB46))/(2*(COUNT($AB$30:AB46)-1))))))) ->  | BD46: =(0.5 * ((100-(BETADIST(AK46,((COUNT(M$30:M46))/2)-1,((COUNT(M$30:M46))/2)-1))*100) + (100-(BETADIST(AV46,((COUNT(M$30:M46))/2)-1,((COUNT(M$30:M46))/2)-1))*100) - 100) + 55) / 100 ->  | BE46: =(0.5 * ((100-(BETADIST(AL46,((COUNT(N$30:N46))/2)-1,((COUNT(N$30:N46))/2)-1))*100) + (100-(BETADIST(AW46,((COUNT(N$30:N46))/2)-1,((COUNT(N$30:N46))/2)-1))*100) - 100) + 55) / 100 ->  | BF46: =(0.5 * ((100-(BETADIST(AQ46,((COUNT(S$30:S46))/2)-1,((COUNT(S$30:S46))/2)-1))*100) + (100-(BETADIST(AX46,((COUNT(S$30:S46))/2)-1,((COUNT(S$30:S46))/2)-1))*100) - 100) + 55) / 100 ->  | BG46: =(0.5 * ((100-(BETADIST(AR46,((COUNT(T$30:T46))/2)-1,((COUNT(T$30:T46))/2)-1))*100) + (100-(BETADIST(AY46,((COUNT(T$30:T46))/2)-1,((COUNT(T$30:T46))/2)-1))*100) - 100) + 55) / 100 ->  | BH46: =(0.5 * ((100-(BETADIST(AS46,((COUNT(AA$30:AA46))/2)-1,((COUNT(AA$30:AA46))/2)-1))*100) + (100-(BETADIST(AZ46,((COUNT(AA$30:AA46))/2)-1,((COUNT(AA$30:AA46))/2)-1))*100) - 100) + 55) / 100 ->  | BI46: =(0.5 * ((100-(BETADIST(AT46,((COUNT(AB$30:AB46))/2)-1,((COUNT(AB$30:AB46))/2)-1))*100) + (100-(BETADIST(BA46,((COUNT(AB$30:AB46))/2)-1,((COUNT(AB$30:AB46))/2)-1))*100) - 100) + 55) / 100 ->  | DD46: 1 | DE46: 17 | DN46: 36 | DP46: 15 | DS46: 6.5 | DT46: 5.05 | DU46: 96.3 | DV46: 96.2 | DW46: 91.7 | DX46: 3.2 | DY46: 3.3 | DZ46: 3.4
AE47: 0 | AF47: 0 | AG47: 0 | AH47: 0 | AI47: 0 | AJ47: 0 | AK47: =IF((MAX(0,(0.5-(($AK$21-AVERAGE($M$30:M47))/(IF(STDEV($M$30:M47)<0.01,0.01,STDEV($M$30:M47)))*SQRT(COUNT($M$30:M47))/(2*(COUNT($M$30:M47)-1))))))>1,1,(MAX(0,(0.5-(($AK$21-AVERAGE($M$30:M47))/(IF(STDEV($M$30:M47)<0.01,0.01,STDEV($M$30:M47)))*SQRT(COUNT($M$30:M47))/(2*(COUNT($M$30:M47)-1))))))) ->  | AL47: =IF((MAX(0,(0.5-(($AL$21-AVERAGE($N$30:N47))/(IF(STDEV($N$30:N47)<0.01,0.01,STDEV($N$30:N47)))*SQRT(COUNT($N$30:N47))/(2*(COUNT($N$30:N47)-1))))))>1,1,(MAX(0,(0.5-(($AL$21-AVERAGE($N$30:N47))/(IF(STDEV($N$30:N47)<0.01,0.01,STDEV($N$30:N47)))*SQRT(COUNT($N$30:N47))/(2*(COUNT($N$30:N47)-1))))))) ->  | AM47: 0 | AN47: 0 | AO47: 0 | AP47: 0 | AQ47: =IF((MAX(0,(0.5-(($AQ$21-AVERAGE($S$30:S47))/(IF(STDEV($S$30:S47)<0.01,0.01,STDEV($S$30:S47)))*SQRT(COUNT($S$30:S47))/(2*(COUNT($S$30:S47)-1))))))>1,1,(MAX(0,(0.5-(($AQ$21-AVERAGE($S$30:S47))/(IF(STDEV($S$30:S47)<0.01,0.01,STDEV($S$30:S47)))*SQRT(COUNT($S$30:S47))/(2*(COUNT($S$30:S47)-1))))))) ->  | AR47: =IF((MAX(0,(0.5-(($AR$21-AVERAGE($T$30:T47))/(IF(STDEV($T$30:T47)<0.01,0.01,STDEV($T$30:T47)))*SQRT(COUNT($T$30:T47))/(2*(COUNT($T$30:T47)-1))))))>1,1,(MAX(0,(0.5-(($AR$21-AVERAGE($T$30:T47))/(IF(STDEV($T$30:T47)<0.01,0.01,STDEV($T$30:T47)))*SQRT(COUNT($T$30:T47))/(2*(COUNT($T$30:T47)-1))))))) ->  | AS47: =IF((MAX(0,(0.5-(($AS$21-AVERAGE($AA$30:AA47))/(IF(STDEV($AA$30:AA47)<0.01,0.01,STDEV($AA$30:AA47)))*SQRT(COUNT($AA$30:AA47))/(2*(COUNT($AA$30:AA47)-1))))))>1,1,(MAX(0,(0.5-(($AS$21-AVERAGE($AA$30:AA47))/(IF(STDEV($AA$30:AA47)<0.01,0.01,STDEV($AA$30:AA47)))*SQRT(COUNT($AA$30:AA47))/(2*(COUNT($AA$30:AA47)-1))))))) ->  | AT47: =IF((MAX(0,(0.5-(($AT$21-AVERAGE($AB$30:AB47))/(IF(STDEV($AB$30:AB47)<0.01,0.01,STDEV($AB$30:AB47)))*SQRT(COUNT($AB$30:AB47))/(2*(COUNT($AB$30:AB47)-1))))))>1,1,(MAX(0,(0.5-(($AT$21-AVERAGE($AB$30:AB47))/(IF(STDEV($AB$30:AB47)<0.01,0.01,STDEV($AB$30:AB47)))*SQRT(COUNT($AB$30:AB47))/(2*(COUNT($AB$30:AB47)-1))))))) ->  | AV47: =IF((MAX(0,(0.5-((AVERAGE($M$30:M47)-$AV$22)/(IF(STDEV($M$30:M47)<0.01,0.01,STDEV($M$30:M47)))*SQRT(COUNT($M$30:M47))/(2*(COUNT($M$30:M47)-1))))))>1,1,(MAX(0,(0.5-((AVERAGE($M$30:M47)-$AV$22)/(IF(STDEV($M$30:M47)<0.01,0.01,STDEV($M$30:M47)))*SQRT(COUNT($M$30:M47))/(2*(COUNT($M$30:M47)-1))))))) ->  | AW47: =IF((MAX(0,(0.5-((AVERAGE($N$30:N47)-$AW$22)/(IF(STDEV($N$30:N47)<0.01,0.01,STDEV($N$30:N47)))*SQRT(COUNT($N$30:N47))/(2*(COUNT($N$30:N47)-1))))))>1,1,(MAX(0,(0.5-((AVERAGE($N$30:N47)-$AW$22)/(IF(STDEV($N$30:N47)<0.01,0.01,STDEV($N$30:N47)))*SQRT(COUNT($N$30:N47))/(2*(COUNT($N$30:N47)-1))))))) ->  | AX47: =IF((MAX(0,(0.5-((AVERAGE($S$30:S47)-$AX$22)/(IF(STDEV($S$30:S47)<0.01,0.01,STDEV($S$30:S47)))*SQRT(COUNT($S$30:S47))/(2*(COUNT($S$30:S47)-1))))))>1,1,(MAX(0,(0.5-((AVERAGE($S$30:S47)-$AX$22)/(IF(STDEV($S$30:S47)<0.01,0.01,STDEV($S$30:S47)))*SQRT(COUNT($S$30:S47))/(2*(COUNT($S$30:S47)-1))))))) ->  | AY47: =IF((MAX(0,(0.5-((AVERAGE($T$30:T47)-$AY$22)/(IF(STDEV($T$30:T47)<0.01,0.01,STDEV($T$30:T47)))*SQRT(COUNT($T$30:T47))/(2*(COUNT($T$30:T47)-1))))))>1,1,(MAX(0,(0.5-((AVERAGE($T$30:T47)-$AY$22)/(IF(STDEV($T$30:T47)<0.01,0.01,STDEV($T$30:T47)))*SQRT(COUNT($T$30:T47))/(2*(COUNT($T$30:T47)-1))))))) ->  | AZ47: =IF((MAX(0,(0.5-((AVERAGE($AA$30:AA47)-$AZ$22)/(IF(STDEV($AA$30:AA47)<0.01,0.01,STDEV($AA$30:AA47)))*SQRT(COUNT($AA$30:AA47))/(2*(COUNT($AA$30:AA47)-1))))))>1,1,(MAX(0,(0.5-((AVERAGE($AA$30:AA47)-$AZ$22)/(IF(STDEV($AA$30:AA47)<0.01,0.01,STDEV($AA$30:AA47)))*SQRT(COUNT($AA$30:AA47))/(2*(COUNT($AA$30:AA47)-1))))))) ->  | BA47: =IF((MAX(0,(0.5-((AVERAGE($AB$30:AB47)-$BA$22)/(IF(STDEV($AB$30:AB47)<0.01,0.01,STDEV($AB$30:AB47)))*SQRT(COUNT($AB$30:AB47))/(2*(COUNT($AB$30:AB47)-1))))))>1,1,(MAX(0,(0.5-((AVERAGE($AB$30:AB47)-$BA$22)/(IF(STDEV($AB$30:AB47)<0.01,0.01,STDEV($AB$30:AB47)))*SQRT(COUNT($AB$30:AB47))/(2*(COUNT($AB$30:AB47)-1))))))) ->  | BD47: =(0.5 * ((100-(BETADIST(AK47,((COUNT(M$30:M47))/2)-1,((COUNT(M$30:M47))/2)-1))*100) + (100-(BETADIST(AV47,((COUNT(M$30:M47))/2)-1,((COUNT(M$30:M47))/2)-1))*100) - 100) + 55) / 100 ->  | BE47: =(0.5 * ((100-(BETADIST(AL47,((COUNT(N$30:N47))/2)-1,((COUNT(N$30:N47))/2)-1))*100) + (100-(BETADIST(AW47,((COUNT(N$30:N47))/2)-1,((COUNT(N$30:N47))/2)-1))*100) - 100) + 55) / 100 ->  | BF47: =(0.5 * ((100-(BETADIST(AQ47,((COUNT(S$30:S47))/2)-1,((COUNT(S$30:S47))/2)-1))*100) + (100-(BETADIST(AX47,((COUNT(S$30:S47))/2)-1,((COUNT(S$30:S47))/2)-1))*100) - 100) + 55) / 100 ->  | BG47: =(0.5 * ((100-(BETADIST(AR47,((COUNT(T$30:T47))/2)-1,((COUNT(T$30:T47))/2)-1))*100) + (100-(BETADIST(AY47,((COUNT(T$30:T47))/2)-1,((COUNT(T$30:T47))/2)-1))*100) - 100) + 55) / 100 ->  | BH47: =(0.5 * ((100-(BETADIST(AS47,((COUNT(AA$30:AA47))/2)-1,((COUNT(AA$30:AA47))/2)-1))*100) + (100-(BETADIST(AZ47,((COUNT(AA$30:AA47))/2)-1,((COUNT(AA$30:AA47))/2)-1))*100) - 100) + 55) / 100 ->  | BI47: =(0.5 * ((100-(BETADIST(AT47,((COUNT(AB$30:AB47))/2)-1,((COUNT(AB$30:AB47))/2)-1))*100) + (100-(BETADIST(BA47,((COUNT(AB$30:AB47))/2)-1,((COUNT(AB$30:AB47))/2)-1))*100) - 100) + 55) / 100 ->  | DD47: 1 | DE47: 18 | DN47: 37 | DP47: 14 | DS47: 6.6 | DT47: 5.03 | DU47: 91.5 | DV47: 92.5 | DW47: 92.9
AE48: 0 | AF48: 0 | AG48: 0 | AH48: 0 | AI48: 0 | AJ48: 0 | AK48: =IF((MAX(0,(0.5-(($AK$21-AVERAGE($M$30:M48))/(IF(STDEV($M$30:M48)<0.01,0.01,STDEV($M$30:M48)))*SQRT(COUNT($M$30:M48))/(2*(COUNT($M$30:M48)-1))))))>1,1,(MAX(0,(0.5-(($AK$21-AVERAGE($M$30:M48))/(IF(STDEV($M$30:M48)<0.01,0.01,STDEV($M$30:M48)))*SQRT(COUNT($M$30:M48))/(2*(COUNT($M$30:M48)-1))))))) ->  | AL48: =IF((MAX(0,(0.5-(($AL$21-AVERAGE($N$30:N48))/(IF(STDEV($N$30:N48)<0.01,0.01,STDEV($N$30:N48)))*SQRT(COUNT($N$30:N48))/(2*(COUNT($N$30:N48)-1))))))>1,1,(MAX(0,(0.5-(($AL$21-AVERAGE($N$30:N48))/(IF(STDEV($N$30:N48)<0.01,0.01,STDEV($N$30:N48)))*SQRT(COUNT($N$30:N48))/(2*(COUNT($N$30:N48)-1))))))) ->  | AM48: 0 | AN48: 0 | AO48: 0 | AP48: 0 | AQ48: =IF((MAX(0,(0.5-(($AQ$21-AVERAGE($S$30:S48))/(IF(STDEV($S$30:S48)<0.01,0.01,STDEV($S$30:S48)))*SQRT(COUNT($S$30:S48))/(2*(COUNT($S$30:S48)-1))))))>1,1,(MAX(0,(0.5-(($AQ$21-AVERAGE($S$30:S48))/(IF(STDEV($S$30:S48)<0.01,0.01,STDEV($S$30:S48)))*SQRT(COUNT($S$30:S48))/(2*(COUNT($S$30:S48)-1))))))) ->  | AR48: =IF((MAX(0,(0.5-(($AR$21-AVERAGE($T$30:T48))/(IF(STDEV($T$30:T48)<0.01,0.01,STDEV($T$30:T48)))*SQRT(COUNT($T$30:T48))/(2*(COUNT($T$30:T48)-1))))))>1,1,(MAX(0,(0.5-(($AR$21-AVERAGE($T$30:T48))/(IF(STDEV($T$30:T48)<0.01,0.01,STDEV($T$30:T48)))*SQRT(COUNT($T$30:T48))/(2*(COUNT($T$30:T48)-1))))))) ->  | AS48: =IF((MAX(0,(0.5-(($AS$21-AVERAGE($AA$30:AA48))/(IF(STDEV($AA$30:AA48)<0.01,0.01,STDEV($AA$30:AA48)))*SQRT(COUNT($AA$30:AA48))/(2*(COUNT($AA$30:AA48)-1))))))>1,1,(MAX(0,(0.5-(($AS$21-AVERAGE($AA$30:AA48))/(IF(STDEV($AA$30:AA48)<0.01,0.01,STDEV($AA$30:AA48)))*SQRT(COUNT($AA$30:AA48))/(2*(COUNT($AA$30:AA48)-1))))))) ->  | AT48: =IF((MAX(0,(0.5-(($AT$21-AVERAGE($AB$30:AB48))/(IF(STDEV($AB$30:AB48)<0.01,0.01,STDEV($AB$30:AB48)))*SQRT(COUNT($AB$30:AB48))/(2*(COUNT($AB$30:AB48)-1))))))>1,1,(MAX(0,(0.5-(($AT$21-AVERAGE($AB$30:AB48))/(IF(STDEV($AB$30:AB48)<0.01,0.01,STDEV($AB$30:AB48)))*SQRT(COUNT($AB$30:AB48))/(2*(COUNT($AB$30:AB48)-1))))))) ->  | AV48: =IF((MAX(0,(0.5-((AVERAGE($M$30:M48)-$AV$22)/(IF(STDEV($M$30:M48)<0.01,0.01,STDEV($M$30:M48)))*SQRT(COUNT($M$30:M48))/(2*(COUNT($M$30:M48)-1))))))>1,1,(MAX(0,(0.5-((AVERAGE($M$30:M48)-$AV$22)/(IF(STDEV($M$30:M48)<0.01,0.01,STDEV($M$30:M48)))*SQRT(COUNT($M$30:M48))/(2*(COUNT($M$30:M48)-1))))))) ->  | AW48: =IF((MAX(0,(0.5-((AVERAGE($N$30:N48)-$AW$22)/(IF(STDEV($N$30:N48)<0.01,0.01,STDEV($N$30:N48)))*SQRT(COUNT($N$30:N48))/(2*(COUNT($N$30:N48)-1))))))>1,1,(MAX(0,(0.5-((AVERAGE($N$30:N48)-$AW$22)/(IF(STDEV($N$30:N48)<0.01,0.01,STDEV($N$30:N48)))*SQRT(COUNT($N$30:N48))/(2*(COUNT($N$30:N48)-1))))))) ->  | AX48: =IF((MAX(0,(0.5-((AVERAGE($S$30:S48)-$AX$22)/(IF(STDEV($S$30:S48)<0.01,0.01,STDEV($S$30:S48)))*SQRT(COUNT($S$30:S48))/(2*(COUNT($S$30:S48)-1))))))>1,1,(MAX(0,(0.5-((AVERAGE($S$30:S48)-$AX$22)/(IF(STDEV($S$30:S48)<0.01,0.01,STDEV($S$30:S48)))*SQRT(COUNT($S$30:S48))/(2*(COUNT($S$30:S48)-1))))))) ->  | AY48: =IF((MAX(0,(0.5-((AVERAGE($T$30:T48)-$AY$22)/(IF(STDEV($T$30:T48)<0.01,0.01,STDEV($T$30:T48)))*SQRT(COUNT($T$30:T48))/(2*(COUNT($T$30:T48)-1))))))>1,1,(MAX(0,(0.5-((AVERAGE($T$30:T48)-$AY$22)/(IF(STDEV($T$30:T48)<0.01,0.01,STDEV($T$30:T48)))*SQRT(COUNT($T$30:T48))/(2*(COUNT($T$30:T48)-1))))))) ->  | AZ48: =IF((MAX(0,(0.5-((AVERAGE($AA$30:AA48)-$AZ$22)/(IF(STDEV($AA$30:AA48)<0.01,0.01,STDEV($AA$30:AA48)))*SQRT(COUNT($AA$30:AA48))/(2*(COUNT($AA$30:AA48)-1))))))>1,1,(MAX(0,(0.5-((AVERAGE($AA$30:AA48)-$AZ$22)/(IF(STDEV($AA$30:AA48)<0.01,0.01,STDEV($AA$30:AA48)))*SQRT(COUNT($AA$30:AA48))/(2*(COUNT($AA$30:AA48)-1))))))) ->  | BA48: =IF((MAX(0,(0.5-((AVERAGE($AB$30:AB48)-$BA$22)/(IF(STDEV($AB$30:AB48)<0.01,0.01,STDEV($AB$30:AB48)))*SQRT(COUNT($AB$30:AB48))/(2*(COUNT($AB$30:AB48)-1))))))>1,1,(MAX(0,(0.5-((AVERAGE($AB$30:AB48)-$BA$22)/(IF(STDEV($AB$30:AB48)<0.01,0.01,STDEV($AB$30:AB48)))*SQRT(COUNT($AB$30:AB48))/(2*(COUNT($AB$30:AB48)-1))))))) ->  | BD48: =(0.5 * ((100-(BETADIST(AK48,((COUNT(M$30:M48))/2)-1,((COUNT(M$30:M48))/2)-1))*100) + (100-(BETADIST(AV48,((COUNT(M$30:M48))/2)-1,((COUNT(M$30:M48))/2)-1))*100) - 100) + 55) / 100 ->  | BE48: =(0.5 * ((100-(BETADIST(AL48,((COUNT(N$30:N48))/2)-1,((COUNT(N$30:N48))/2)-1))*100) + (100-(BETADIST(AW48,((COUNT(N$30:N48))/2)-1,((COUNT(N$30:N48))/2)-1))*100) - 100) + 55) / 100 ->  | BF48: =(0.5 * ((100-(BETADIST(AQ48,((COUNT(S$30:S48))/2)-1,((COUNT(S$30:S48))/2)-1))*100) + (100-(BETADIST(AX48,((COUNT(S$30:S48))/2)-1,((COUNT(S$30:S48))/2)-1))*100) - 100) + 55) / 100 ->  | BG48: =(0.5 * ((100-(BETADIST(AR48,((COUNT(T$30:T48))/2)-1,((COUNT(T$30:T48))/2)-1))*100) + (100-(BETADIST(AY48,((COUNT(T$30:T48))/2)-1,((COUNT(T$30:T48))/2)-1))*100) - 100) + 55) / 100 ->  | BH48: =(0.5 * ((100-(BETADIST(AS48,((COUNT(AA$30:AA48))/2)-1,((COUNT(AA$30:AA48))/2)-1))*100) + (100-(BETADIST(AZ48,((COUNT(AA$30:AA48))/2)-1,((COUNT(AA$30:AA48))/2)-1))*100) - 100) + 55) / 100 ->  | BI48: =(0.5 * ((100-(BETADIST(AT48,((COUNT(AB$30:AB48))/2)-1,((COUNT(AB$30:AB48))/2)-1))*100) + (100-(BETADIST(BA48,((COUNT(AB$30:AB48))/2)-1,((COUNT(AB$30:AB48))/2)-1))*100) - 100) + 55) / 100 ->  | DB48: 2009-08-30 | DD48: 1 | DE48: 19 | DF48: YES | DN48: 38 | DP48: 13 | DS48: 7 | DT48: 5.15 | DU48: 92.5 | DV48: 93.5 | DW48: 93.7 | DX48: 1.5 | DY48: 1.6 | DZ48: 1.7
AE49: 0 | AF49: 0 | AG49: 0 | AH49: 0 | AI49: 0 | AJ49: 0 | AK49: =IF((MAX(0,(0.5-(($AK$21-AVERAGE($M$30:M49))/(IF(STDEV($M$30:M49)<0.01,0.01,STDEV($M$30:M49)))*SQRT(COUNT($M$30:M49))/(2*(COUNT($M$30:M49)-1))))))>1,1,(MAX(0,(0.5-(($AK$21-AVERAGE($M$30:M49))/(IF(STDEV($M$30:M49)<0.01,0.01,STDEV($M$30:M49)))*SQRT(COUNT($M$30:M49))/(2*(COUNT($M$30:M49)-1))))))) ->  | AL49: =IF((MAX(0,(0.5-(($AL$21-AVERAGE($N$30:N49))/(IF(STDEV($N$30:N49)<0.01,0.01,STDEV($N$30:N49)))*SQRT(COUNT($N$30:N49))/(2*(COUNT($N$30:N49)-1))))))>1,1,(MAX(0,(0.5-(($AL$21-AVERAGE($N$30:N49))/(IF(STDEV($N$30:N49)<0.01,0.01,STDEV($N$30:N49)))*SQRT(COUNT($N$30:N49))/(2*(COUNT($N$30:N49)-1))))))) ->  | AM49: 0 | AN49: 0 | AO49: 0 | AP49: 0 | AQ49: =IF((MAX(0,(0.5-(($AQ$21-AVERAGE($S$30:S49))/(IF(STDEV($S$30:S49)<0.01,0.01,STDEV($S$30:S49)))*SQRT(COUNT($S$30:S49))/(2*(COUNT($S$30:S49)-1))))))>1,1,(MAX(0,(0.5-(($AQ$21-AVERAGE($S$30:S49))/(IF(STDEV($S$30:S49)<0.01,0.01,STDEV($S$30:S49)))*SQRT(COUNT($S$30:S49))/(2*(COUNT($S$30:S49)-1))))))) ->  | AR49: =IF((MAX(0,(0.5-(($AR$21-AVERAGE($T$30:T49))/(IF(STDEV($T$30:T49)<0.01,0.01,STDEV($T$30:T49)))*SQRT(COUNT($T$30:T49))/(2*(COUNT($T$30:T49)-1))))))>1,1,(MAX(0,(0.5-(($AR$21-AVERAGE($T$30:T49))/(IF(STDEV($T$30:T49)<0.01,0.01,STDEV($T$30:T49)))*SQRT(COUNT($T$30:T49))/(2*(COUNT($T$30:T49)-1))))))) ->  | AS49: =IF((MAX(0,(0.5-(($AS$21-AVERAGE($AA$30:AA49))/(IF(STDEV($AA$30:AA49)<0.01,0.01,STDEV($AA$30:AA49)))*SQRT(COUNT($AA$30:AA49))/(2*(COUNT($AA$30:AA49)-1))))))>1,1,(MAX(0,(0.5-(($AS$21-AVERAGE($AA$30:AA49))/(IF(STDEV($AA$30:AA49)<0.01,0.01,STDEV($AA$30:AA49)))*SQRT(COUNT($AA$30:AA49))/(2*(COUNT($AA$30:AA49)-1))))))) ->  | AT49: =IF((MAX(0,(0.5-(($AT$21-AVERAGE($AB$30:AB49))/(IF(STDEV($AB$30:AB49)<0.01,0.01,STDEV($AB$30:AB49)))*SQRT(COUNT($AB$30:AB49))/(2*(COUNT($AB$30:AB49)-1))))))>1,1,(MAX(0,(0.5-(($AT$21-AVERAGE($AB$30:AB49))/(IF(STDEV($AB$30:AB49)<0.01,0.01,STDEV($AB$30:AB49)))*SQRT(COUNT($AB$30:AB49))/(2*(COUNT($AB$30:AB49)-1))))))) ->  | AV49: =IF((MAX(0,(0.5-((AVERAGE($M$30:M49)-$AV$22)/(IF(STDEV($M$30:M49)<0.01,0.01,STDEV($M$30:M49)))*SQRT(COUNT($M$30:M49))/(2*(COUNT($M$30:M49)-1))))))>1,1,(MAX(0,(0.5-((AVERAGE($M$30:M49)-$AV$22)/(IF(STDEV($M$30:M49)<0.01,0.01,STDEV($M$30:M49)))*SQRT(COUNT($M$30:M49))/(2*(COUNT($M$30:M49)-1))))))) ->  | AW49: =IF((MAX(0,(0.5-((AVERAGE($N$30:N49)-$AW$22)/(IF(STDEV($N$30:N49)<0.01,0.01,STDEV($N$30:N49)))*SQRT(COUNT($N$30:N49))/(2*(COUNT($N$30:N49)-1))))))>1,1,(MAX(0,(0.5-((AVERAGE($N$30:N49)-$AW$22)/(IF(STDEV($N$30:N49)<0.01,0.01,STDEV($N$30:N49)))*SQRT(COUNT($N$30:N49))/(2*(COUNT($N$30:N49)-1))))))) ->  | AX49: =IF((MAX(0,(0.5-((AVERAGE($S$30:S49)-$AX$22)/(IF(STDEV($S$30:S49)<0.01,0.01,STDEV($S$30:S49)))*SQRT(COUNT($S$30:S49))/(2*(COUNT($S$30:S49)-1))))))>1,1,(MAX(0,(0.5-((AVERAGE($S$30:S49)-$AX$22)/(IF(STDEV($S$30:S49)<0.01,0.01,STDEV($S$30:S49)))*SQRT(COUNT($S$30:S49))/(2*(COUNT($S$30:S49)-1))))))) ->  | AY49: =IF((MAX(0,(0.5-((AVERAGE($T$30:T49)-$AY$22)/(IF(STDEV($T$30:T49)<0.01,0.01,STDEV($T$30:T49)))*SQRT(COUNT($T$30:T49))/(2*(COUNT($T$30:T49)-1))))))>1,1,(MAX(0,(0.5-((AVERAGE($T$30:T49)-$AY$22)/(IF(STDEV($T$30:T49)<0.01,0.01,STDEV($T$30:T49)))*SQRT(COUNT($T$30:T49))/(2*(COUNT($T$30:T49)-1))))))) ->  | AZ49: =IF((MAX(0,(0.5-((AVERAGE($AA$30:AA49)-$AZ$22)/(IF(STDEV($AA$30:AA49)<0.01,0.01,STDEV($AA$30:AA49)))*SQRT(COUNT($AA$30:AA49))/(2*(COUNT($AA$30:AA49)-1))))))>1,1,(MAX(0,(0.5-((AVERAGE($AA$30:AA49)-$AZ$22)/(IF(STDEV($AA$30:AA49)<0.01,0.01,STDEV($AA$30:AA49)))*SQRT(COUNT($AA$30:AA49))/(2*(COUNT($AA$30:AA49)-1))))))) ->  | BA49: =IF((MAX(0,(0.5-((AVERAGE($AB$30:AB49)-$BA$22)/(IF(STDEV($AB$30:AB49)<0.01,0.01,STDEV($AB$30:AB49)))*SQRT(COUNT($AB$30:AB49))/(2*(COUNT($AB$30:AB49)-1))))))>1,1,(MAX(0,(0.5-((AVERAGE($AB$30:AB49)-$BA$22)/(IF(STDEV($AB$30:AB49)<0.01,0.01,STDEV($AB$30:AB49)))*SQRT(COUNT($AB$30:AB49))/(2*(COUNT($AB$30:AB49)-1))))))) ->  | BD49: =(0.5 * ((100-(BETADIST(AK49,((COUNT(M$30:M49))/2)-1,((COUNT(M$30:M49))/2)-1))*100) + (100-(BETADIST(AV49,((COUNT(M$30:M49))/2)-1,((COUNT(M$30:M49))/2)-1))*100) - 100) + 55) / 100 ->  | BE49: =(0.5 * ((100-(BETADIST(AL49,((COUNT(N$30:N49))/2)-1,((COUNT(N$30:N49))/2)-1))*100) + (100-(BETADIST(AW49,((COUNT(N$30:N49))/2)-1,((COUNT(N$30:N49))/2)-1))*100) - 100) + 55) / 100 ->  | BF49: =(0.5 * ((100-(BETADIST(AQ49,((COUNT(S$30:S49))/2)-1,((COUNT(S$30:S49))/2)-1))*100) + (100-(BETADIST(AX49,((COUNT(S$30:S49))/2)-1,((COUNT(S$30:S49))/2)-1))*100) - 100) + 55) / 100 ->  | BG49: =(0.5 * ((100-(BETADIST(AR49,((COUNT(T$30:T49))/2)-1,((COUNT(T$30:T49))/2)-1))*100) + (100-(BETADIST(AY49,((COUNT(T$30:T49))/2)-1,((COUNT(T$30:T49))/2)-1))*100) - 100) + 55) / 100 ->  | BH49: =(0.5 * ((100-(BETADIST(AS49,((COUNT(AA$30:AA49))/2)-1,((COUNT(AA$30:AA49))/2)-1))*100) + (100-(BETADIST(AZ49,((COUNT(AA$30:AA49))/2)-1,((COUNT(AA$30:AA49))/2)-1))*100) - 100) + 55) / 100 ->  | BI49: =(0.5 * ((100-(BETADIST(AT49,((COUNT(AB$30:AB49))/2)-1,((COUNT(AB$30:AB49))/2)-1))*100) + (100-(BETADIST(BA49,((COUNT(AB$30:AB49))/2)-1,((COUNT(AB$30:AB49))/2)-1))*100) - 100) + 55) / 100 ->  | DD49: 1 | DE49: 20 | DN49: 32 | DP49: 12 | DS49: 5.2 | DT49: 5.1 | DU49: 91.5 | DV49: 94.2 | DW49: 92.2
AE50: 0 | AF50: 0 | AG50: 0 | AH50: 0 | AI50: 0 | AJ50: 0 | AK50: =IF((MAX(0,(0.5-(($AK$21-AVERAGE($M$30:M50))/(IF(STDEV($M$30:M50)<0.01,0.01,STDEV($M$30:M50)))*SQRT(COUNT($M$30:M50))/(2*(COUNT($M$30:M50)-1))))))>1,1,(MAX(0,(0.5-(($AK$21-AVERAGE($M$30:M50))/(IF(STDEV($M$30:M50)<0.01,0.01,STDEV($M$30:M50)))*SQRT(COUNT($M$30:M50))/(2*(COUNT($M$30:M50)-1))))))) ->  | AL50: =IF((MAX(0,(0.5-(($AL$21-AVERAGE($N$30:N50))/(IF(STDEV($N$30:N50)<0.01,0.01,STDEV($N$30:N50)))*SQRT(COUNT($N$30:N50))/(2*(COUNT($N$30:N50)-1))))))>1,1,(MAX(0,(0.5-(($AL$21-AVERAGE($N$30:N50))/(IF(STDEV($N$30:N50)<0.01,0.01,STDEV($N$30:N50)))*SQRT(COUNT($N$30:N50))/(2*(COUNT($N$30:N50)-1))))))) ->  | AM50: 0 | AN50: 0 | AO50: 0 | AP50: 0 | AQ50: =IF((MAX(0,(0.5-(($AQ$21-AVERAGE($S$30:S50))/(IF(STDEV($S$30:S50)<0.01,0.01,STDEV($S$30:S50)))*SQRT(COUNT($S$30:S50))/(2*(COUNT($S$30:S50)-1))))))>1,1,(MAX(0,(0.5-(($AQ$21-AVERAGE($S$30:S50))/(IF(STDEV($S$30:S50)<0.01,0.01,STDEV($S$30:S50)))*SQRT(COUNT($S$30:S50))/(2*(COUNT($S$30:S50)-1))))))) ->  | AR50: =IF((MAX(0,(0.5-(($AR$21-AVERAGE($T$30:T50))/(IF(STDEV($T$30:T50)<0.01,0.01,STDEV($T$30:T50)))*SQRT(COUNT($T$30:T50))/(2*(COUNT($T$30:T50)-1))))))>1,1,(MAX(0,(0.5-(($AR$21-AVERAGE($T$30:T50))/(IF(STDEV($T$30:T50)<0.01,0.01,STDEV($T$30:T50)))*SQRT(COUNT($T$30:T50))/(2*(COUNT($T$30:T50)-1))))))) ->  | AS50: =IF((MAX(0,(0.5-(($AS$21-AVERAGE($AA$30:AA50))/(IF(STDEV($AA$30:AA50)<0.01,0.01,STDEV($AA$30:AA50)))*SQRT(COUNT($AA$30:AA50))/(2*(COUNT($AA$30:AA50)-1))))))>1,1,(MAX(0,(0.5-(($AS$21-AVERAGE($AA$30:AA50))/(IF(STDEV($AA$30:AA50)<0.01,0.01,STDEV($AA$30:AA50)))*SQRT(COUNT($AA$30:AA50))/(2*(COUNT($AA$30:AA50)-1))))))) ->  | AT50: =IF((MAX(0,(0.5-(($AT$21-AVERAGE($AB$30:AB50))/(IF(STDEV($AB$30:AB50)<0.01,0.01,STDEV($AB$30:AB50)))*SQRT(COUNT($AB$30:AB50))/(2*(COUNT($AB$30:AB50)-1))))))>1,1,(MAX(0,(0.5-(($AT$21-AVERAGE($AB$30:AB50))/(IF(STDEV($AB$30:AB50)<0.01,0.01,STDEV($AB$30:AB50)))*SQRT(COUNT($AB$30:AB50))/(2*(COUNT($AB$30:AB50)-1))))))) ->  | AV50: =IF((MAX(0,(0.5-((AVERAGE($M$30:M50)-$AV$22)/(IF(STDEV($M$30:M50)<0.01,0.01,STDEV($M$30:M50)))*SQRT(COUNT($M$30:M50))/(2*(COUNT($M$30:M50)-1))))))>1,1,(MAX(0,(0.5-((AVERAGE($M$30:M50)-$AV$22)/(IF(STDEV($M$30:M50)<0.01,0.01,STDEV($M$30:M50)))*SQRT(COUNT($M$30:M50))/(2*(COUNT($M$30:M50)-1))))))) ->  | AW50: =IF((MAX(0,(0.5-((AVERAGE($N$30:N50)-$AW$22)/(IF(STDEV($N$30:N50)<0.01,0.01,STDEV($N$30:N50)))*SQRT(COUNT($N$30:N50))/(2*(COUNT($N$30:N50)-1))))))>1,1,(MAX(0,(0.5-((AVERAGE($N$30:N50)-$AW$22)/(IF(STDEV($N$30:N50)<0.01,0.01,STDEV($N$30:N50)))*SQRT(COUNT($N$30:N50))/(2*(COUNT($N$30:N50)-1))))))) ->  | AX50: =IF((MAX(0,(0.5-((AVERAGE($S$30:S50)-$AX$22)/(IF(STDEV($S$30:S50)<0.01,0.01,STDEV($S$30:S50)))*SQRT(COUNT($S$30:S50))/(2*(COUNT($S$30:S50)-1))))))>1,1,(MAX(0,(0.5-((AVERAGE($S$30:S50)-$AX$22)/(IF(STDEV($S$30:S50)<0.01,0.01,STDEV($S$30:S50)))*SQRT(COUNT($S$30:S50))/(2*(COUNT($S$30:S50)-1))))))) ->  | AY50: =IF((MAX(0,(0.5-((AVERAGE($T$30:T50)-$AY$22)/(IF(STDEV($T$30:T50)<0.01,0.01,STDEV($T$30:T50)))*SQRT(COUNT($T$30:T50))/(2*(COUNT($T$30:T50)-1))))))>1,1,(MAX(0,(0.5-((AVERAGE($T$30:T50)-$AY$22)/(IF(STDEV($T$30:T50)<0.01,0.01,STDEV($T$30:T50)))*SQRT(COUNT($T$30:T50))/(2*(COUNT($T$30:T50)-1))))))) ->  | AZ50: =IF((MAX(0,(0.5-((AVERAGE($AA$30:AA50)-$AZ$22)/(IF(STDEV($AA$30:AA50)<0.01,0.01,STDEV($AA$30:AA50)))*SQRT(COUNT($AA$30:AA50))/(2*(COUNT($AA$30:AA50)-1))))))>1,1,(MAX(0,(0.5-((AVERAGE($AA$30:AA50)-$AZ$22)/(IF(STDEV($AA$30:AA50)<0.01,0.01,STDEV($AA$30:AA50)))*SQRT(COUNT($AA$30:AA50))/(2*(COUNT($AA$30:AA50)-1))))))) ->  | BA50: =IF((MAX(0,(0.5-((AVERAGE($AB$30:AB50)-$BA$22)/(IF(STDEV($AB$30:AB50)<0.01,0.01,STDEV($AB$30:AB50)))*SQRT(COUNT($AB$30:AB50))/(2*(COUNT($AB$30:AB50)-1))))))>1,1,(MAX(0,(0.5-((AVERAGE($AB$30:AB50)-$BA$22)/(IF(STDEV($AB$30:AB50)<0.01,0.01,STDEV($AB$30:AB50)))*SQRT(COUNT($AB$30:AB50))/(2*(COUNT($AB$30:AB50)-1))))))) ->  | BD50: =(0.5 * ((100-(BETADIST(AK50,((COUNT(M$30:M50))/2)-1,((COUNT(M$30:M50))/2)-1))*100) + (100-(BETADIST(AV50,((COUNT(M$30:M50))/2)-1,((COUNT(M$30:M50))/2)-1))*100) - 100) + 55) / 100 ->  | BE50: =(0.5 * ((100-(BETADIST(AL50,((COUNT(N$30:N50))/2)-1,((COUNT(N$30:N50))/2)-1))*100) + (100-(BETADIST(AW50,((COUNT(N$30:N50))/2)-1,((COUNT(N$30:N50))/2)-1))*100) - 100) + 55) / 100 ->  | BF50: =(0.5 * ((100-(BETADIST(AQ50,((COUNT(S$30:S50))/2)-1,((COUNT(S$30:S50))/2)-1))*100) + (100-(BETADIST(AX50,((COUNT(S$30:S50))/2)-1,((COUNT(S$30:S50))/2)-1))*100) - 100) + 55) / 100 ->  | BG50: =(0.5 * ((100-(BETADIST(AR50,((COUNT(T$30:T50))/2)-1,((COUNT(T$30:T50))/2)-1))*100) + (100-(BETADIST(AY50,((COUNT(T$30:T50))/2)-1,((COUNT(T$30:T50))/2)-1))*100) - 100) + 55) / 100 ->  | BH50: =(0.5 * ((100-(BETADIST(AS50,((COUNT(AA$30:AA50))/2)-1,((COUNT(AA$30:AA50))/2)-1))*100) + (100-(BETADIST(AZ50,((COUNT(AA$30:AA50))/2)-1,((COUNT(AA$30:AA50))/2)-1))*100) - 100) + 55) / 100 ->  | BI50: =(0.5 * ((100-(BETADIST(AT50,((COUNT(AB$30:AB50))/2)-1,((COUNT(AB$30:AB50))/2)-1))*100) + (100-(BETADIST(BA50,((COUNT(AB$30:AB50))/2)-1,((COUNT(AB$30:AB50))/2)-1))*100) - 100) + 55) / 100 ->  | DD50: 1 | DE50: 21 | DN50: 41 | DP50: 10 | DS50: 7.3 | DT50: 5.32 | DU50: 92.3 | DV50: 92.8 | DW50: 94.2 | DX50: 2.2 | DY50: 2.3 | DZ50: 2.4
AE51: 0 | AF51: 0 | AG51: 0 | AH51: 0 | AI51: 0 | AJ51: 0 | AK51: =IF((MAX(0,(0.5-(($AK$21-AVERAGE($M$30:M51))/(IF(STDEV($M$30:M51)<0.01,0.01,STDEV($M$30:M51)))*SQRT(COUNT($M$30:M51))/(2*(COUNT($M$30:M51)-1))))))>1,1,(MAX(0,(0.5-(($AK$21-AVERAGE($M$30:M51))/(IF(STDEV($M$30:M51)<0.01,0.01,STDEV($M$30:M51)))*SQRT(COUNT($M$30:M51))/(2*(COUNT($M$30:M51)-1))))))) ->  | AL51: =IF((MAX(0,(0.5-(($AL$21-AVERAGE($N$30:N51))/(IF(STDEV($N$30:N51)<0.01,0.01,STDEV($N$30:N51)))*SQRT(COUNT($N$30:N51))/(2*(COUNT($N$30:N51)-1))))))>1,1,(MAX(0,(0.5-(($AL$21-AVERAGE($N$30:N51))/(IF(STDEV($N$30:N51)<0.01,0.01,STDEV($N$30:N51)))*SQRT(COUNT($N$30:N51))/(2*(COUNT($N$30:N51)-1))))))) ->  | AM51: 0 | AN51: 0 | AO51: 0 | AP51: 0 | AQ51: =IF((MAX(0,(0.5-(($AQ$21-AVERAGE($S$30:S51))/(IF(STDEV($S$30:S51)<0.01,0.01,STDEV($S$30:S51)))*SQRT(COUNT($S$30:S51))/(2*(COUNT($S$30:S51)-1))))))>1,1,(MAX(0,(0.5-(($AQ$21-AVERAGE($S$30:S51))/(IF(STDEV($S$30:S51)<0.01,0.01,STDEV($S$30:S51)))*SQRT(COUNT($S$30:S51))/(2*(COUNT($S$30:S51)-1))))))) ->  | AR51: =IF((MAX(0,(0.5-(($AR$21-AVERAGE($T$30:T51))/(IF(STDEV($T$30:T51)<0.01,0.01,STDEV($T$30:T51)))*SQRT(COUNT($T$30:T51))/(2*(COUNT($T$30:T51)-1))))))>1,1,(MAX(0,(0.5-(($AR$21-AVERAGE($T$30:T51))/(IF(STDEV($T$30:T51)<0.01,0.01,STDEV($T$30:T51)))*SQRT(COUNT($T$30:T51))/(2*(COUNT($T$30:T51)-1))))))) ->  | AS51: =IF((MAX(0,(0.5-(($AS$21-AVERAGE($AA$30:AA51))/(IF(STDEV($AA$30:AA51)<0.01,0.01,STDEV($AA$30:AA51)))*SQRT(COUNT($AA$30:AA51))/(2*(COUNT($AA$30:AA51)-1))))))>1,1,(MAX(0,(0.5-(($AS$21-AVERAGE($AA$30:AA51))/(IF(STDEV($AA$30:AA51)<0.01,0.01,STDEV($AA$30:AA51)))*SQRT(COUNT($AA$30:AA51))/(2*(COUNT($AA$30:AA51)-1))))))) ->  | AT51: =IF((MAX(0,(0.5-(($AT$21-AVERAGE($AB$30:AB51))/(IF(STDEV($AB$30:AB51)<0.01,0.01,STDEV($AB$30:AB51)))*SQRT(COUNT($AB$30:AB51))/(2*(COUNT($AB$30:AB51)-1))))))>1,1,(MAX(0,(0.5-(($AT$21-AVERAGE($AB$30:AB51))/(IF(STDEV($AB$30:AB51)<0.01,0.01,STDEV($AB$30:AB51)))*SQRT(COUNT($AB$30:AB51))/(2*(COUNT($AB$30:AB51)-1))))))) ->  | AV51: =IF((MAX(0,(0.5-((AVERAGE($M$30:M51)-$AV$22)/(IF(STDEV($M$30:M51)<0.01,0.01,STDEV($M$30:M51)))*SQRT(COUNT($M$30:M51))/(2*(COUNT($M$30:M51)-1))))))>1,1,(MAX(0,(0.5-((AVERAGE($M$30:M51)-$AV$22)/(IF(STDEV($M$30:M51)<0.01,0.01,STDEV($M$30:M51)))*SQRT(COUNT($M$30:M51))/(2*(COUNT($M$30:M51)-1))))))) ->  | AW51: =IF((MAX(0,(0.5-((AVERAGE($N$30:N51)-$AW$22)/(IF(STDEV($N$30:N51)<0.01,0.01,STDEV($N$30:N51)))*SQRT(COUNT($N$30:N51))/(2*(COUNT($N$30:N51)-1))))))>1,1,(MAX(0,(0.5-((AVERAGE($N$30:N51)-$AW$22)/(IF(STDEV($N$30:N51)<0.01,0.01,STDEV($N$30:N51)))*SQRT(COUNT($N$30:N51))/(2*(COUNT($N$30:N51)-1))))))) ->  | AX51: =IF((MAX(0,(0.5-((AVERAGE($S$30:S51)-$AX$22)/(IF(STDEV($S$30:S51)<0.01,0.01,STDEV($S$30:S51)))*SQRT(COUNT($S$30:S51))/(2*(COUNT($S$30:S51)-1))))))>1,1,(MAX(0,(0.5-((AVERAGE($S$30:S51)-$AX$22)/(IF(STDEV($S$30:S51)<0.01,0.01,STDEV($S$30:S51)))*SQRT(COUNT($S$30:S51))/(2*(COUNT($S$30:S51)-1))))))) ->  | AY51: =IF((MAX(0,(0.5-((AVERAGE($T$30:T51)-$AY$22)/(IF(STDEV($T$30:T51)<0.01,0.01,STDEV($T$30:T51)))*SQRT(COUNT($T$30:T51))/(2*(COUNT($T$30:T51)-1))))))>1,1,(MAX(0,(0.5-((AVERAGE($T$30:T51)-$AY$22)/(IF(STDEV($T$30:T51)<0.01,0.01,STDEV($T$30:T51)))*SQRT(COUNT($T$30:T51))/(2*(COUNT($T$30:T51)-1))))))) ->  | AZ51: =IF((MAX(0,(0.5-((AVERAGE($AA$30:AA51)-$AZ$22)/(IF(STDEV($AA$30:AA51)<0.01,0.01,STDEV($AA$30:AA51)))*SQRT(COUNT($AA$30:AA51))/(2*(COUNT($AA$30:AA51)-1))))))>1,1,(MAX(0,(0.5-((AVERAGE($AA$30:AA51)-$AZ$22)/(IF(STDEV($AA$30:AA51)<0.01,0.01,STDEV($AA$30:AA51)))*SQRT(COUNT($AA$30:AA51))/(2*(COUNT($AA$30:AA51)-1))))))) ->  | BA51: =IF((MAX(0,(0.5-((AVERAGE($AB$30:AB51)-$BA$22)/(IF(STDEV($AB$30:AB51)<0.01,0.01,STDEV($AB$30:AB51)))*SQRT(COUNT($AB$30:AB51))/(2*(COUNT($AB$30:AB51)-1))))))>1,1,(MAX(0,(0.5-((AVERAGE($AB$30:AB51)-$BA$22)/(IF(STDEV($AB$30:AB51)<0.01,0.01,STDEV($AB$30:AB51)))*SQRT(COUNT($AB$30:AB51))/(2*(COUNT($AB$30:AB51)-1))))))) ->  | BD51: =(0.5 * ((100-(BETADIST(AK51,((COUNT(M$30:M51))/2)-1,((COUNT(M$30:M51))/2)-1))*100) + (100-(BETADIST(AV51,((COUNT(M$30:M51))/2)-1,((COUNT(M$30:M51))/2)-1))*100) - 100) + 55) / 100 ->  | BE51: =(0.5 * ((100-(BETADIST(AL51,((COUNT(N$30:N51))/2)-1,((COUNT(N$30:N51))/2)-1))*100) + (100-(BETADIST(AW51,((COUNT(N$30:N51))/2)-1,((COUNT(N$30:N51))/2)-1))*100) - 100) + 55) / 100 ->  | BF51: =(0.5 * ((100-(BETADIST(AQ51,((COUNT(S$30:S51))/2)-1,((COUNT(S$30:S51))/2)-1))*100) + (100-(BETADIST(AX51,((COUNT(S$30:S51))/2)-1,((COUNT(S$30:S51))/2)-1))*100) - 100) + 55) / 100 ->  | BG51: =(0.5 * ((100-(BETADIST(AR51,((COUNT(T$30:T51))/2)-1,((COUNT(T$30:T51))/2)-1))*100) + (100-(BETADIST(AY51,((COUNT(T$30:T51))/2)-1,((COUNT(T$30:T51))/2)-1))*100) - 100) + 55) / 100 ->  | BH51: =(0.5 * ((100-(BETADIST(AS51,((COUNT(AA$30:AA51))/2)-1,((COUNT(AA$30:AA51))/2)-1))*100) + (100-(BETADIST(AZ51,((COUNT(AA$30:AA51))/2)-1,((COUNT(AA$30:AA51))/2)-1))*100) - 100) + 55) / 100 ->  | BI51: =(0.5 * ((100-(BETADIST(AT51,((COUNT(AB$30:AB51))/2)-1,((COUNT(AB$30:AB51))/2)-1))*100) + (100-(BETADIST(BA51,((COUNT(AB$30:AB51))/2)-1,((COUNT(AB$30:AB51))/2)-1))*100) - 100) + 55) / 100 ->  | DD51: 1 | DE51: 22 | DF51: NO | DN51: 37 | DP51: 9 | DS51: 6.5 | DT51: 4.6 | DU51: 93.3 | DV51: 92.1 | DW51: 95.1
AE52: 0 | AF52: 0 | AG52: 0 | AH52: 0 | AI52: 0 | AJ52: 0 | AK52: =IF((MAX(0,(0.5-(($AK$21-AVERAGE($M$30:M52))/(IF(STDEV($M$30:M52)<0.01,0.01,STDEV($M$30:M52)))*SQRT(COUNT($M$30:M52))/(2*(COUNT($M$30:M52)-1))))))>1,1,(MAX(0,(0.5-(($AK$21-AVERAGE($M$30:M52))/(IF(STDEV($M$30:M52)<0.01,0.01,STDEV($M$30:M52)))*SQRT(COUNT($M$30:M52))/(2*(COUNT($M$30:M52)-1))))))) ->  | AL52: =IF((MAX(0,(0.5-(($AL$21-AVERAGE($N$30:N52))/(IF(STDEV($N$30:N52)<0.01,0.01,STDEV($N$30:N52)))*SQRT(COUNT($N$30:N52))/(2*(COUNT($N$30:N52)-1))))))>1,1,(MAX(0,(0.5-(($AL$21-AVERAGE($N$30:N52))/(IF(STDEV($N$30:N52)<0.01,0.01,STDEV($N$30:N52)))*SQRT(COUNT($N$30:N52))/(2*(COUNT($N$30:N52)-1))))))) ->  | AM52: 0 | AN52: 0 | AO52: 0 | AP52: 0 | AQ52: =IF((MAX(0,(0.5-(($AQ$21-AVERAGE($S$30:S52))/(IF(STDEV($S$30:S52)<0.01,0.01,STDEV($S$30:S52)))*SQRT(COUNT($S$30:S52))/(2*(COUNT($S$30:S52)-1))))))>1,1,(MAX(0,(0.5-(($AQ$21-AVERAGE($S$30:S52))/(IF(STDEV($S$30:S52)<0.01,0.01,STDEV($S$30:S52)))*SQRT(COUNT($S$30:S52))/(2*(COUNT($S$30:S52)-1))))))) ->  | AR52: =IF((MAX(0,(0.5-(($AR$21-AVERAGE($T$30:T52))/(IF(STDEV($T$30:T52)<0.01,0.01,STDEV($T$30:T52)))*SQRT(COUNT($T$30:T52))/(2*(COUNT($T$30:T52)-1))))))>1,1,(MAX(0,(0.5-(($AR$21-AVERAGE($T$30:T52))/(IF(STDEV($T$30:T52)<0.01,0.01,STDEV($T$30:T52)))*SQRT(COUNT($T$30:T52))/(2*(COUNT($T$30:T52)-1))))))) ->  | AS52: =IF((MAX(0,(0.5-(($AS$21-AVERAGE($AA$30:AA52))/(IF(STDEV($AA$30:AA52)<0.01,0.01,STDEV($AA$30:AA52)))*SQRT(COUNT($AA$30:AA52))/(2*(COUNT($AA$30:AA52)-1))))))>1,1,(MAX(0,(0.5-(($AS$21-AVERAGE($AA$30:AA52))/(IF(STDEV($AA$30:AA52)<0.01,0.01,STDEV($AA$30:AA52)))*SQRT(COUNT($AA$30:AA52))/(2*(COUNT($AA$30:AA52)-1))))))) ->  | AT52: =IF((MAX(0,(0.5-(($AT$21-AVERAGE($AB$30:AB52))/(IF(STDEV($AB$30:AB52)<0.01,0.01,STDEV($AB$30:AB52)))*SQRT(COUNT($AB$30:AB52))/(2*(COUNT($AB$30:AB52)-1))))))>1,1,(MAX(0,(0.5-(($AT$21-AVERAGE($AB$30:AB52))/(IF(STDEV($AB$30:AB52)<0.01,0.01,STDEV($AB$30:AB52)))*SQRT(COUNT($AB$30:AB52))/(2*(COUNT($AB$30:AB52)-1))))))) ->  | AV52: =IF((MAX(0,(0.5-((AVERAGE($M$30:M52)-$AV$22)/(IF(STDEV($M$30:M52)<0.01,0.01,STDEV($M$30:M52)))*SQRT(COUNT($M$30:M52))/(2*(COUNT($M$30:M52)-1))))))>1,1,(MAX(0,(0.5-((AVERAGE($M$30:M52)-$AV$22)/(IF(STDEV($M$30:M52)<0.01,0.01,STDEV($M$30:M52)))*SQRT(COUNT($M$30:M52))/(2*(COUNT($M$30:M52)-1))))))) ->  | AW52: =IF((MAX(0,(0.5-((AVERAGE($N$30:N52)-$AW$22)/(IF(STDEV($N$30:N52)<0.01,0.01,STDEV($N$30:N52)))*SQRT(COUNT($N$30:N52))/(2*(COUNT($N$30:N52)-1))))))>1,1,(MAX(0,(0.5-((AVERAGE($N$30:N52)-$AW$22)/(IF(STDEV($N$30:N52)<0.01,0.01,STDEV($N$30:N52)))*SQRT(COUNT($N$30:N52))/(2*(COUNT($N$30:N52)-1))))))) ->  | AX52: =IF((MAX(0,(0.5-((AVERAGE($S$30:S52)-$AX$22)/(IF(STDEV($S$30:S52)<0.01,0.01,STDEV($S$30:S52)))*SQRT(COUNT($S$30:S52))/(2*(COUNT($S$30:S52)-1))))))>1,1,(MAX(0,(0.5-((AVERAGE($S$30:S52)-$AX$22)/(IF(STDEV($S$30:S52)<0.01,0.01,STDEV($S$30:S52)))*SQRT(COUNT($S$30:S52))/(2*(COUNT($S$30:S52)-1))))))) ->  | AY52: =IF((MAX(0,(0.5-((AVERAGE($T$30:T52)-$AY$22)/(IF(STDEV($T$30:T52)<0.01,0.01,STDEV($T$30:T52)))*SQRT(COUNT($T$30:T52))/(2*(COUNT($T$30:T52)-1))))))>1,1,(MAX(0,(0.5-((AVERAGE($T$30:T52)-$AY$22)/(IF(STDEV($T$30:T52)<0.01,0.01,STDEV($T$30:T52)))*SQRT(COUNT($T$30:T52))/(2*(COUNT($T$30:T52)-1))))))) ->  | AZ52: =IF((MAX(0,(0.5-((AVERAGE($AA$30:AA52)-$AZ$22)/(IF(STDEV($AA$30:AA52)<0.01,0.01,STDEV($AA$30:AA52)))*SQRT(COUNT($AA$30:AA52))/(2*(COUNT($AA$30:AA52)-1))))))>1,1,(MAX(0,(0.5-((AVERAGE($AA$30:AA52)-$AZ$22)/(IF(STDEV($AA$30:AA52)<0.01,0.01,STDEV($AA$30:AA52)))*SQRT(COUNT($AA$30:AA52))/(2*(COUNT($AA$30:AA52)-1))))))) ->  | BA52: =IF((MAX(0,(0.5-((AVERAGE($AB$30:AB52)-$BA$22)/(IF(STDEV($AB$30:AB52)<0.01,0.01,STDEV($AB$30:AB52)))*SQRT(COUNT($AB$30:AB52))/(2*(COUNT($AB$30:AB52)-1))))))>1,1,(MAX(0,(0.5-((AVERAGE($AB$30:AB52)-$BA$22)/(IF(STDEV($AB$30:AB52)<0.01,0.01,STDEV($AB$30:AB52)))*SQRT(COUNT($AB$30:AB52))/(2*(COUNT($AB$30:AB52)-1))))))) ->  | BD52: =(0.5 * ((100-(BETADIST(AK52,((COUNT(M$30:M52))/2)-1,((COUNT(M$30:M52))/2)-1))*100) + (100-(BETADIST(AV52,((COUNT(M$30:M52))/2)-1,((COUNT(M$30:M52))/2)-1))*100) - 100) + 55) / 100 ->  | BE52: =(0.5 * ((100-(BETADIST(AL52,((COUNT(N$30:N52))/2)-1,((COUNT(N$30:N52))/2)-1))*100) + (100-(BETADIST(AW52,((COUNT(N$30:N52))/2)-1,((COUNT(N$30:N52))/2)-1))*100) - 100) + 55) / 100 ->  | BF52: =(0.5 * ((100-(BETADIST(AQ52,((COUNT(S$30:S52))/2)-1,((COUNT(S$30:S52))/2)-1))*100) + (100-(BETADIST(AX52,((COUNT(S$30:S52))/2)-1,((COUNT(S$30:S52))/2)-1))*100) - 100) + 55) / 100 ->  | BG52: =(0.5 * ((100-(BETADIST(AR52,((COUNT(T$30:T52))/2)-1,((COUNT(T$30:T52))/2)-1))*100) + (100-(BETADIST(AY52,((COUNT(T$30:T52))/2)-1,((COUNT(T$30:T52))/2)-1))*100) - 100) + 55) / 100 ->  | BH52: =(0.5 * ((100-(BETADIST(AS52,((COUNT(AA$30:AA52))/2)-1,((COUNT(AA$30:AA52))/2)-1))*100) + (100-(BETADIST(AZ52,((COUNT(AA$30:AA52))/2)-1,((COUNT(AA$30:AA52))/2)-1))*100) - 100) + 55) / 100 ->  | BI52: =(0.5 * ((100-(BETADIST(AT52,((COUNT(AB$30:AB52))/2)-1,((COUNT(AB$30:AB52))/2)-1))*100) + (100-(BETADIST(BA52,((COUNT(AB$30:AB52))/2)-1,((COUNT(AB$30:AB52))/2)-1))*100) - 100) + 55) / 100 ->  | DB52: 2009-09-18 | DD52: 1 | DE52: 23 | DN52: 35 | DP52: 8 | DS52: 6.2 | DT52: 4.72 | DU52: 93.5 | DV52: 92.3 | DW52: 92.7 | DX52: 2 | DY52: 2.1 | DZ52: 2.2
AE53: 0 | AF53: 0 | AG53: 0 | AH53: 0 | AI53: 0 | AJ53: 0 | AK53: =IF((MAX(0,(0.5-(($AK$21-AVERAGE($M$30:M53))/(IF(STDEV($M$30:M53)<0.01,0.01,STDEV($M$30:M53)))*SQRT(COUNT($M$30:M53))/(2*(COUNT($M$30:M53)-1))))))>1,1,(MAX(0,(0.5-(($AK$21-AVERAGE($M$30:M53))/(IF(STDEV($M$30:M53)<0.01,0.01,STDEV($M$30:M53)))*SQRT(COUNT($M$30:M53))/(2*(COUNT($M$30:M53)-1))))))) ->  | AL53: =IF((MAX(0,(0.5-(($AL$21-AVERAGE($N$30:N53))/(IF(STDEV($N$30:N53)<0.01,0.01,STDEV($N$30:N53)))*SQRT(COUNT($N$30:N53))/(2*(COUNT($N$30:N53)-1))))))>1,1,(MAX(0,(0.5-(($AL$21-AVERAGE($N$30:N53))/(IF(STDEV($N$30:N53)<0.01,0.01,STDEV($N$30:N53)))*SQRT(COUNT($N$30:N53))/(2*(COUNT($N$30:N53)-1))))))) ->  | AM53: 0 | AN53: 0 | AO53: 0 | AP53: 0 | AQ53: =IF((MAX(0,(0.5-(($AQ$21-AVERAGE($S$30:S53))/(IF(STDEV($S$30:S53)<0.01,0.01,STDEV($S$30:S53)))*SQRT(COUNT($S$30:S53))/(2*(COUNT($S$30:S53)-1))))))>1,1,(MAX(0,(0.5-(($AQ$21-AVERAGE($S$30:S53))/(IF(STDEV($S$30:S53)<0.01,0.01,STDEV($S$30:S53)))*SQRT(COUNT($S$30:S53))/(2*(COUNT($S$30:S53)-1))))))) ->  | AR53: =IF((MAX(0,(0.5-(($AR$21-AVERAGE($T$30:T53))/(IF(STDEV($T$30:T53)<0.01,0.01,STDEV($T$30:T53)))*SQRT(COUNT($T$30:T53))/(2*(COUNT($T$30:T53)-1))))))>1,1,(MAX(0,(0.5-(($AR$21-AVERAGE($T$30:T53))/(IF(STDEV($T$30:T53)<0.01,0.01,STDEV($T$30:T53)))*SQRT(COUNT($T$30:T53))/(2*(COUNT($T$30:T53)-1))))))) ->  | AS53: =IF((MAX(0,(0.5-(($AS$21-AVERAGE($AA$30:AA53))/(IF(STDEV($AA$30:AA53)<0.01,0.01,STDEV($AA$30:AA53)))*SQRT(COUNT($AA$30:AA53))/(2*(COUNT($AA$30:AA53)-1))))))>1,1,(MAX(0,(0.5-(($AS$21-AVERAGE($AA$30:AA53))/(IF(STDEV($AA$30:AA53)<0.01,0.01,STDEV($AA$30:AA53)))*SQRT(COUNT($AA$30:AA53))/(2*(COUNT($AA$30:AA53)-1))))))) ->  | AT53: =IF((MAX(0,(0.5-(($AT$21-AVERAGE($AB$30:AB53))/(IF(STDEV($AB$30:AB53)<0.01,0.01,STDEV($AB$30:AB53)))*SQRT(COUNT($AB$30:AB53))/(2*(COUNT($AB$30:AB53)-1))))))>1,1,(MAX(0,(0.5-(($AT$21-AVERAGE($AB$30:AB53))/(IF(STDEV($AB$30:AB53)<0.01,0.01,STDEV($AB$30:AB53)))*SQRT(COUNT($AB$30:AB53))/(2*(COUNT($AB$30:AB53)-1))))))) ->  | AV53: =IF((MAX(0,(0.5-((AVERAGE($M$30:M53)-$AV$22)/(IF(STDEV($M$30:M53)<0.01,0.01,STDEV($M$30:M53)))*SQRT(COUNT($M$30:M53))/(2*(COUNT($M$30:M53)-1))))))>1,1,(MAX(0,(0.5-((AVERAGE($M$30:M53)-$AV$22)/(IF(STDEV($M$30:M53)<0.01,0.01,STDEV($M$30:M53)))*SQRT(COUNT($M$30:M53))/(2*(COUNT($M$30:M53)-1))))))) ->  | AW53: =IF((MAX(0,(0.5-((AVERAGE($N$30:N53)-$AW$22)/(IF(STDEV($N$30:N53)<0.01,0.01,STDEV($N$30:N53)))*SQRT(COUNT($N$30:N53))/(2*(COUNT($N$30:N53)-1))))))>1,1,(MAX(0,(0.5-((AVERAGE($N$30:N53)-$AW$22)/(IF(STDEV($N$30:N53)<0.01,0.01,STDEV($N$30:N53)))*SQRT(COUNT($N$30:N53))/(2*(COUNT($N$30:N53)-1))))))) ->  | AX53: =IF((MAX(0,(0.5-((AVERAGE($S$30:S53)-$AX$22)/(IF(STDEV($S$30:S53)<0.01,0.01,STDEV($S$30:S53)))*SQRT(COUNT($S$30:S53))/(2*(COUNT($S$30:S53)-1))))))>1,1,(MAX(0,(0.5-((AVERAGE($S$30:S53)-$AX$22)/(IF(STDEV($S$30:S53)<0.01,0.01,STDEV($S$30:S53)))*SQRT(COUNT($S$30:S53))/(2*(COUNT($S$30:S53)-1))))))) ->  | AY53: =IF((MAX(0,(0.5-((AVERAGE($T$30:T53)-$AY$22)/(IF(STDEV($T$30:T53)<0.01,0.01,STDEV($T$30:T53)))*SQRT(COUNT($T$30:T53))/(2*(COUNT($T$30:T53)-1))))))>1,1,(MAX(0,(0.5-((AVERAGE($T$30:T53)-$AY$22)/(IF(STDEV($T$30:T53)<0.01,0.01,STDEV($T$30:T53)))*SQRT(COUNT($T$30:T53))/(2*(COUNT($T$30:T53)-1))))))) ->  | AZ53: =IF((MAX(0,(0.5-((AVERAGE($AA$30:AA53)-$AZ$22)/(IF(STDEV($AA$30:AA53)<0.01,0.01,STDEV($AA$30:AA53)))*SQRT(COUNT($AA$30:AA53))/(2*(COUNT($AA$30:AA53)-1))))))>1,1,(MAX(0,(0.5-((AVERAGE($AA$30:AA53)-$AZ$22)/(IF(STDEV($AA$30:AA53)<0.01,0.01,STDEV($AA$30:AA53)))*SQRT(COUNT($AA$30:AA53))/(2*(COUNT($AA$30:AA53)-1))))))) ->  | BA53: =IF((MAX(0,(0.5-((AVERAGE($AB$30:AB53)-$BA$22)/(IF(STDEV($AB$30:AB53)<0.01,0.01,STDEV($AB$30:AB53)))*SQRT(COUNT($AB$30:AB53))/(2*(COUNT($AB$30:AB53)-1))))))>1,1,(MAX(0,(0.5-((AVERAGE($AB$30:AB53)-$BA$22)/(IF(STDEV($AB$30:AB53)<0.01,0.01,STDEV($AB$30:AB53)))*SQRT(COUNT($AB$30:AB53))/(2*(COUNT($AB$30:AB53)-1))))))) ->  | BD53: =(0.5 * ((100-(BETADIST(AK53,((COUNT(M$30:M53))/2)-1,((COUNT(M$30:M53))/2)-1))*100) + (100-(BETADIST(AV53,((COUNT(M$30:M53))/2)-1,((COUNT(M$30:M53))/2)-1))*100) - 100) + 55) / 100 ->  | BE53: =(0.5 * ((100-(BETADIST(AL53,((COUNT(N$30:N53))/2)-1,((COUNT(N$30:N53))/2)-1))*100) + (100-(BETADIST(AW53,((COUNT(N$30:N53))/2)-1,((COUNT(N$30:N53))/2)-1))*100) - 100) + 55) / 100 ->  | BF53: =(0.5 * ((100-(BETADIST(AQ53,((COUNT(S$30:S53))/2)-1,((COUNT(S$30:S53))/2)-1))*100) + (100-(BETADIST(AX53,((COUNT(S$30:S53))/2)-1,((COUNT(S$30:S53))/2)-1))*100) - 100) + 55) / 100 ->  | BG53: =(0.5 * ((100-(BETADIST(AR53,((COUNT(T$30:T53))/2)-1,((COUNT(T$30:T53))/2)-1))*100) + (100-(BETADIST(AY53,((COUNT(T$30:T53))/2)-1,((COUNT(T$30:T53))/2)-1))*100) - 100) + 55) / 100 ->  | BH53: =(0.5 * ((100-(BETADIST(AS53,((COUNT(AA$30:AA53))/2)-1,((COUNT(AA$30:AA53))/2)-1))*100) + (100-(BETADIST(AZ53,((COUNT(AA$30:AA53))/2)-1,((COUNT(AA$30:AA53))/2)-1))*100) - 100) + 55) / 100 ->  | BI53: =(0.5 * ((100-(BETADIST(AT53,((COUNT(AB$30:AB53))/2)-1,((COUNT(AB$30:AB53))/2)-1))*100) + (100-(BETADIST(BA53,((COUNT(AB$30:AB53))/2)-1,((COUNT(AB$30:AB53))/2)-1))*100) - 100) + 55) / 100 ->  | DB53: 2009-09-18 | DD53: 1 | DE53: 24 | DN53: 37 | DP53: 9 | DS53: 6.6 | DT53: 5.01 | DU53: 91.1 | DV53: 91.1 | DW53: 91.1
AE54: 0 | AF54: 0 | AG54: 0 | AH54: 0 | AI54: 0 | AJ54: 0 | AK54: =IF((MAX(0,(0.5-(($AK$21-AVERAGE($M$30:M54))/(IF(STDEV($M$30:M54)<0.01,0.01,STDEV($M$30:M54)))*SQRT(COUNT($M$30:M54))/(2*(COUNT($M$30:M54)-1))))))>1,1,(MAX(0,(0.5-(($AK$21-AVERAGE($M$30:M54))/(IF(STDEV($M$30:M54)<0.01,0.01,STDEV($M$30:M54)))*SQRT(COUNT($M$30:M54))/(2*(COUNT($M$30:M54)-1))))))) ->  | AL54: =IF((MAX(0,(0.5-(($AL$21-AVERAGE($N$30:N54))/(IF(STDEV($N$30:N54)<0.01,0.01,STDEV($N$30:N54)))*SQRT(COUNT($N$30:N54))/(2*(COUNT($N$30:N54)-1))))))>1,1,(MAX(0,(0.5-(($AL$21-AVERAGE($N$30:N54))/(IF(STDEV($N$30:N54)<0.01,0.01,STDEV($N$30:N54)))*SQRT(COUNT($N$30:N54))/(2*(COUNT($N$30:N54)-1))))))) ->  | AM54: 0 | AN54: 0 | AO54: 0 | AP54: 0 | AQ54: =IF((MAX(0,(0.5-(($AQ$21-AVERAGE($S$30:S54))/(IF(STDEV($S$30:S54)<0.01,0.01,STDEV($S$30:S54)))*SQRT(COUNT($S$30:S54))/(2*(COUNT($S$30:S54)-1))))))>1,1,(MAX(0,(0.5-(($AQ$21-AVERAGE($S$30:S54))/(IF(STDEV($S$30:S54)<0.01,0.01,STDEV($S$30:S54)))*SQRT(COUNT($S$30:S54))/(2*(COUNT($S$30:S54)-1))))))) ->  | AR54: =IF((MAX(0,(0.5-(($AR$21-AVERAGE($T$30:T54))/(IF(STDEV($T$30:T54)<0.01,0.01,STDEV($T$30:T54)))*SQRT(COUNT($T$30:T54))/(2*(COUNT($T$30:T54)-1))))))>1,1,(MAX(0,(0.5-(($AR$21-AVERAGE($T$30:T54))/(IF(STDEV($T$30:T54)<0.01,0.01,STDEV($T$30:T54)))*SQRT(COUNT($T$30:T54))/(2*(COUNT($T$30:T54)-1))))))) ->  | AS54: =IF((MAX(0,(0.5-(($AS$21-AVERAGE($AA$30:AA54))/(IF(STDEV($AA$30:AA54)<0.01,0.01,STDEV($AA$30:AA54)))*SQRT(COUNT($AA$30:AA54))/(2*(COUNT($AA$30:AA54)-1))))))>1,1,(MAX(0,(0.5-(($AS$21-AVERAGE($AA$30:AA54))/(IF(STDEV($AA$30:AA54)<0.01,0.01,STDEV($AA$30:AA54)))*SQRT(COUNT($AA$30:AA54))/(2*(COUNT($AA$30:AA54)-1))))))) ->  | AT54: =IF((MAX(0,(0.5-(($AT$21-AVERAGE($AB$30:AB54))/(IF(STDEV($AB$30:AB54)<0.01,0.01,STDEV($AB$30:AB54)))*SQRT(COUNT($AB$30:AB54))/(2*(COUNT($AB$30:AB54)-1))))))>1,1,(MAX(0,(0.5-(($AT$21-AVERAGE($AB$30:AB54))/(IF(STDEV($AB$30:AB54)<0.01,0.01,STDEV($AB$30:AB54)))*SQRT(COUNT($AB$30:AB54))/(2*(COUNT($AB$30:AB54)-1))))))) ->  | AV54: =IF((MAX(0,(0.5-((AVERAGE($M$30:M54)-$AV$22)/(IF(STDEV($M$30:M54)<0.01,0.01,STDEV($M$30:M54)))*SQRT(COUNT($M$30:M54))/(2*(COUNT($M$30:M54)-1))))))>1,1,(MAX(0,(0.5-((AVERAGE($M$30:M54)-$AV$22)/(IF(STDEV($M$30:M54)<0.01,0.01,STDEV($M$30:M54)))*SQRT(COUNT($M$30:M54))/(2*(COUNT($M$30:M54)-1))))))) ->  | AW54: =IF((MAX(0,(0.5-((AVERAGE($N$30:N54)-$AW$22)/(IF(STDEV($N$30:N54)<0.01,0.01,STDEV($N$30:N54)))*SQRT(COUNT($N$30:N54))/(2*(COUNT($N$30:N54)-1))))))>1,1,(MAX(0,(0.5-((AVERAGE($N$30:N54)-$AW$22)/(IF(STDEV($N$30:N54)<0.01,0.01,STDEV($N$30:N54)))*SQRT(COUNT($N$30:N54))/(2*(COUNT($N$30:N54)-1))))))) ->  | AX54: =IF((MAX(0,(0.5-((AVERAGE($S$30:S54)-$AX$22)/(IF(STDEV($S$30:S54)<0.01,0.01,STDEV($S$30:S54)))*SQRT(COUNT($S$30:S54))/(2*(COUNT($S$30:S54)-1))))))>1,1,(MAX(0,(0.5-((AVERAGE($S$30:S54)-$AX$22)/(IF(STDEV($S$30:S54)<0.01,0.01,STDEV($S$30:S54)))*SQRT(COUNT($S$30:S54))/(2*(COUNT($S$30:S54)-1))))))) ->  | AY54: =IF((MAX(0,(0.5-((AVERAGE($T$30:T54)-$AY$22)/(IF(STDEV($T$30:T54)<0.01,0.01,STDEV($T$30:T54)))*SQRT(COUNT($T$30:T54))/(2*(COUNT($T$30:T54)-1))))))>1,1,(MAX(0,(0.5-((AVERAGE($T$30:T54)-$AY$22)/(IF(STDEV($T$30:T54)<0.01,0.01,STDEV($T$30:T54)))*SQRT(COUNT($T$30:T54))/(2*(COUNT($T$30:T54)-1))))))) ->  | AZ54: =IF((MAX(0,(0.5-((AVERAGE($AA$30:AA54)-$AZ$22)/(IF(STDEV($AA$30:AA54)<0.01,0.01,STDEV($AA$30:AA54)))*SQRT(COUNT($AA$30:AA54))/(2*(COUNT($AA$30:AA54)-1))))))>1,1,(MAX(0,(0.5-((AVERAGE($AA$30:AA54)-$AZ$22)/(IF(STDEV($AA$30:AA54)<0.01,0.01,STDEV($AA$30:AA54)))*SQRT(COUNT($AA$30:AA54))/(2*(COUNT($AA$30:AA54)-1))))))) ->  | BA54: =IF((MAX(0,(0.5-((AVERAGE($AB$30:AB54)-$BA$22)/(IF(STDEV($AB$30:AB54)<0.01,0.01,STDEV($AB$30:AB54)))*SQRT(COUNT($AB$30:AB54))/(2*(COUNT($AB$30:AB54)-1))))))>1,1,(MAX(0,(0.5-((AVERAGE($AB$30:AB54)-$BA$22)/(IF(STDEV($AB$30:AB54)<0.01,0.01,STDEV($AB$30:AB54)))*SQRT(COUNT($AB$30:AB54))/(2*(COUNT($AB$30:AB54)-1))))))) ->  | BD54: =(0.5 * ((100-(BETADIST(AK54,((COUNT(M$30:M54))/2)-1,((COUNT(M$30:M54))/2)-1))*100) + (100-(BETADIST(AV54,((COUNT(M$30:M54))/2)-1,((COUNT(M$30:M54))/2)-1))*100) - 100) + 55) / 100 ->  | BE54: =(0.5 * ((100-(BETADIST(AL54,((COUNT(N$30:N54))/2)-1,((COUNT(N$30:N54))/2)-1))*100) + (100-(BETADIST(AW54,((COUNT(N$30:N54))/2)-1,((COUNT(N$30:N54))/2)-1))*100) - 100) + 55) / 100 ->  | BF54: =(0.5 * ((100-(BETADIST(AQ54,((COUNT(S$30:S54))/2)-1,((COUNT(S$30:S54))/2)-1))*100) + (100-(BETADIST(AX54,((COUNT(S$30:S54))/2)-1,((COUNT(S$30:S54))/2)-1))*100) - 100) + 55) / 100 ->  | BG54: =(0.5 * ((100-(BETADIST(AR54,((COUNT(T$30:T54))/2)-1,((COUNT(T$30:T54))/2)-1))*100) + (100-(BETADIST(AY54,((COUNT(T$30:T54))/2)-1,((COUNT(T$30:T54))/2)-1))*100) - 100) + 55) / 100 ->  | BH54: =(0.5 * ((100-(BETADIST(AS54,((COUNT(AA$30:AA54))/2)-1,((COUNT(AA$30:AA54))/2)-1))*100) + (100-(BETADIST(AZ54,((COUNT(AA$30:AA54))/2)-1,((COUNT(AA$30:AA54))/2)-1))*100) - 100) + 55) / 100 ->  | BI54: =(0.5 * ((100-(BETADIST(AT54,((COUNT(AB$30:AB54))/2)-1,((COUNT(AB$30:AB54))/2)-1))*100) + (100-(BETADIST(BA54,((COUNT(AB$30:AB54))/2)-1,((COUNT(AB$30:AB54))/2)-1))*100) - 100) + 55) / 100 ->  | DB54: 2009-09-18 | DD54: 1 | DE54: 25 | DN54: 33 | DP54: 10 | DS54: 5.9 | DT54: 5.19 | DU54: 92.2 | DV54: 91.5 | DW54: 93.4 | DX54: 1 | DY54: 1.1 | DZ54: 1.2
AE55: 0 | AF55: 0 | AG55: 0 | AH55: 0 | AI55: 0 | AJ55: 0 | AK55: =IF((MAX(0,(0.5-(($AK$21-AVERAGE($M$30:M55))/(IF(STDEV($M$30:M55)<0.01,0.01,STDEV($M$30:M55)))*SQRT(COUNT($M$30:M55))/(2*(COUNT($M$30:M55)-1))))))>1,1,(MAX(0,(0.5-(($AK$21-AVERAGE($M$30:M55))/(IF(STDEV($M$30:M55)<0.01,0.01,STDEV($M$30:M55)))*SQRT(COUNT($M$30:M55))/(2*(COUNT($M$30:M55)-1))))))) ->  | AL55: =IF((MAX(0,(0.5-(($AL$21-AVERAGE($N$30:N55))/(IF(STDEV($N$30:N55)<0.01,0.01,STDEV($N$30:N55)))*SQRT(COUNT($N$30:N55))/(2*(COUNT($N$30:N55)-1))))))>1,1,(MAX(0,(0.5-(($AL$21-AVERAGE($N$30:N55))/(IF(STDEV($N$30:N55)<0.01,0.01,STDEV($N$30:N55)))*SQRT(COUNT($N$30:N55))/(2*(COUNT($N$30:N55)-1))))))) ->  | AM55: 0 | AN55: 0 | AO55: 0 | AP55: 0 | AQ55: =IF((MAX(0,(0.5-(($AQ$21-AVERAGE($S$30:S55))/(IF(STDEV($S$30:S55)<0.01,0.01,STDEV($S$30:S55)))*SQRT(COUNT($S$30:S55))/(2*(COUNT($S$30:S55)-1))))))>1,1,(MAX(0,(0.5-(($AQ$21-AVERAGE($S$30:S55))/(IF(STDEV($S$30:S55)<0.01,0.01,STDEV($S$30:S55)))*SQRT(COUNT($S$30:S55))/(2*(COUNT($S$30:S55)-1))))))) ->  | AR55: =IF((MAX(0,(0.5-(($AR$21-AVERAGE($T$30:T55))/(IF(STDEV($T$30:T55)<0.01,0.01,STDEV($T$30:T55)))*SQRT(COUNT($T$30:T55))/(2*(COUNT($T$30:T55)-1))))))>1,1,(MAX(0,(0.5-(($AR$21-AVERAGE($T$30:T55))/(IF(STDEV($T$30:T55)<0.01,0.01,STDEV($T$30:T55)))*SQRT(COUNT($T$30:T55))/(2*(COUNT($T$30:T55)-1))))))) ->  | AS55: =IF((MAX(0,(0.5-(($AS$21-AVERAGE($AA$30:AA55))/(IF(STDEV($AA$30:AA55)<0.01,0.01,STDEV($AA$30:AA55)))*SQRT(COUNT($AA$30:AA55))/(2*(COUNT($AA$30:AA55)-1))))))>1,1,(MAX(0,(0.5-(($AS$21-AVERAGE($AA$30:AA55))/(IF(STDEV($AA$30:AA55)<0.01,0.01,STDEV($AA$30:AA55)))*SQRT(COUNT($AA$30:AA55))/(2*(COUNT($AA$30:AA55)-1))))))) ->  | AT55: =IF((MAX(0,(0.5-(($AT$21-AVERAGE($AB$30:AB55))/(IF(STDEV($AB$30:AB55)<0.01,0.01,STDEV($AB$30:AB55)))*SQRT(COUNT($AB$30:AB55))/(2*(COUNT($AB$30:AB55)-1))))))>1,1,(MAX(0,(0.5-(($AT$21-AVERAGE($AB$30:AB55))/(IF(STDEV($AB$30:AB55)<0.01,0.01,STDEV($AB$30:AB55)))*SQRT(COUNT($AB$30:AB55))/(2*(COUNT($AB$30:AB55)-1))))))) ->  | AV55: =IF((MAX(0,(0.5-((AVERAGE($M$30:M55)-$AV$22)/(IF(STDEV($M$30:M55)<0.01,0.01,STDEV($M$30:M55)))*SQRT(COUNT($M$30:M55))/(2*(COUNT($M$30:M55)-1))))))>1,1,(MAX(0,(0.5-((AVERAGE($M$30:M55)-$AV$22)/(IF(STDEV($M$30:M55)<0.01,0.01,STDEV($M$30:M55)))*SQRT(COUNT($M$30:M55))/(2*(COUNT($M$30:M55)-1))))))) ->  | AW55: =IF((MAX(0,(0.5-((AVERAGE($N$30:N55)-$AW$22)/(IF(STDEV($N$30:N55)<0.01,0.01,STDEV($N$30:N55)))*SQRT(COUNT($N$30:N55))/(2*(COUNT($N$30:N55)-1))))))>1,1,(MAX(0,(0.5-((AVERAGE($N$30:N55)-$AW$22)/(IF(STDEV($N$30:N55)<0.01,0.01,STDEV($N$30:N55)))*SQRT(COUNT($N$30:N55))/(2*(COUNT($N$30:N55)-1))))))) ->  | AX55: =IF((MAX(0,(0.5-((AVERAGE($S$30:S55)-$AX$22)/(IF(STDEV($S$30:S55)<0.01,0.01,STDEV($S$30:S55)))*SQRT(COUNT($S$30:S55))/(2*(COUNT($S$30:S55)-1))))))>1,1,(MAX(0,(0.5-((AVERAGE($S$30:S55)-$AX$22)/(IF(STDEV($S$30:S55)<0.01,0.01,STDEV($S$30:S55)))*SQRT(COUNT($S$30:S55))/(2*(COUNT($S$30:S55)-1))))))) ->  | AY55: =IF((MAX(0,(0.5-((AVERAGE($T$30:T55)-$AY$22)/(IF(STDEV($T$30:T55)<0.01,0.01,STDEV($T$30:T55)))*SQRT(COUNT($T$30:T55))/(2*(COUNT($T$30:T55)-1))))))>1,1,(MAX(0,(0.5-((AVERAGE($T$30:T55)-$AY$22)/(IF(STDEV($T$30:T55)<0.01,0.01,STDEV($T$30:T55)))*SQRT(COUNT($T$30:T55))/(2*(COUNT($T$30:T55)-1))))))) ->  | AZ55: =IF((MAX(0,(0.5-((AVERAGE($AA$30:AA55)-$AZ$22)/(IF(STDEV($AA$30:AA55)<0.01,0.01,STDEV($AA$30:AA55)))*SQRT(COUNT($AA$30:AA55))/(2*(COUNT($AA$30:AA55)-1))))))>1,1,(MAX(0,(0.5-((AVERAGE($AA$30:AA55)-$AZ$22)/(IF(STDEV($AA$30:AA55)<0.01,0.01,STDEV($AA$30:AA55)))*SQRT(COUNT($AA$30:AA55))/(2*(COUNT($AA$30:AA55)-1))))))) ->  | BA55: =IF((MAX(0,(0.5-((AVERAGE($AB$30:AB55)-$BA$22)/(IF(STDEV($AB$30:AB55)<0.01,0.01,STDEV($AB$30:AB55)))*SQRT(COUNT($AB$30:AB55))/(2*(COUNT($AB$30:AB55)-1))))))>1,1,(MAX(0,(0.5-((AVERAGE($AB$30:AB55)-$BA$22)/(IF(STDEV($AB$30:AB55)<0.01,0.01,STDEV($AB$30:AB55)))*SQRT(COUNT($AB$30:AB55))/(2*(COUNT($AB$30:AB55)-1))))))) ->  | BD55: =(0.5 * ((100-(BETADIST(AK55,((COUNT(M$30:M55))/2)-1,((COUNT(M$30:M55))/2)-1))*100) + (100-(BETADIST(AV55,((COUNT(M$30:M55))/2)-1,((COUNT(M$30:M55))/2)-1))*100) - 100) + 55) / 100 ->  | BE55: =(0.5 * ((100-(BETADIST(AL55,((COUNT(N$30:N55))/2)-1,((COUNT(N$30:N55))/2)-1))*100) + (100-(BETADIST(AW55,((COUNT(N$30:N55))/2)-1,((COUNT(N$30:N55))/2)-1))*100) - 100) + 55) / 100 ->  | BF55: =(0.5 * ((100-(BETADIST(AQ55,((COUNT(S$30:S55))/2)-1,((COUNT(S$30:S55))/2)-1))*100) + (100-(BETADIST(AX55,((COUNT(S$30:S55))/2)-1,((COUNT(S$30:S55))/2)-1))*100) - 100) + 55) / 100 ->  | BG55: =(0.5 * ((100-(BETADIST(AR55,((COUNT(T$30:T55))/2)-1,((COUNT(T$30:T55))/2)-1))*100) + (100-(BETADIST(AY55,((COUNT(T$30:T55))/2)-1,((COUNT(T$30:T55))/2)-1))*100) - 100) + 55) / 100 ->  | BH55: =(0.5 * ((100-(BETADIST(AS55,((COUNT(AA$30:AA55))/2)-1,((COUNT(AA$30:AA55))/2)-1))*100) + (100-(BETADIST(AZ55,((COUNT(AA$30:AA55))/2)-1,((COUNT(AA$30:AA55))/2)-1))*100) - 100) + 55) / 100 ->  | BI55: =(0.5 * ((100-(BETADIST(AT55,((COUNT(AB$30:AB55))/2)-1,((COUNT(AB$30:AB55))/2)-1))*100) + (100-(BETADIST(BA55,((COUNT(AB$30:AB55))/2)-1,((COUNT(AB$30:AB55))/2)-1))*100) - 100) + 55) / 100 ->  | DB55: 2009-09-18 | DD55: 1 | DE55: 26 | DN55: 40 | DP55: 11 | DS55: 7.8 | DT55: 5.16 | DU55: 92.1 | DV55: 92.3 | DW55: 92.2
AE56: 0 | AF56: 0 | AG56: 0 | AH56: 0 | AI56: 0 | AJ56: 0 | AK56: =IF((MAX(0,(0.5-(($AK$21-AVERAGE($M$30:M56))/(IF(STDEV($M$30:M56)<0.01,0.01,STDEV($M$30:M56)))*SQRT(COUNT($M$30:M56))/(2*(COUNT($M$30:M56)-1))))))>1,1,(MAX(0,(0.5-(($AK$21-AVERAGE($M$30:M56))/(IF(STDEV($M$30:M56)<0.01,0.01,STDEV($M$30:M56)))*SQRT(COUNT($M$30:M56))/(2*(COUNT($M$30:M56)-1))))))) ->  | AL56: =IF((MAX(0,(0.5-(($AL$21-AVERAGE($N$30:N56))/(IF(STDEV($N$30:N56)<0.01,0.01,STDEV($N$30:N56)))*SQRT(COUNT($N$30:N56))/(2*(COUNT($N$30:N56)-1))))))>1,1,(MAX(0,(0.5-(($AL$21-AVERAGE($N$30:N56))/(IF(STDEV($N$30:N56)<0.01,0.01,STDEV($N$30:N56)))*SQRT(COUNT($N$30:N56))/(2*(COUNT($N$30:N56)-1))))))) ->  | AM56: 0 | AN56: 0 | AO56: 0 | AP56: 0 | AQ56: =IF((MAX(0,(0.5-(($AQ$21-AVERAGE($S$30:S56))/(IF(STDEV($S$30:S56)<0.01,0.01,STDEV($S$30:S56)))*SQRT(COUNT($S$30:S56))/(2*(COUNT($S$30:S56)-1))))))>1,1,(MAX(0,(0.5-(($AQ$21-AVERAGE($S$30:S56))/(IF(STDEV($S$30:S56)<0.01,0.01,STDEV($S$30:S56)))*SQRT(COUNT($S$30:S56))/(2*(COUNT($S$30:S56)-1))))))) ->  | AR56: =IF((MAX(0,(0.5-(($AR$21-AVERAGE($T$30:T56))/(IF(STDEV($T$30:T56)<0.01,0.01,STDEV($T$30:T56)))*SQRT(COUNT($T$30:T56))/(2*(COUNT($T$30:T56)-1))))))>1,1,(MAX(0,(0.5-(($AR$21-AVERAGE($T$30:T56))/(IF(STDEV($T$30:T56)<0.01,0.01,STDEV($T$30:T56)))*SQRT(COUNT($T$30:T56))/(2*(COUNT($T$30:T56)-1))))))) ->  | AS56: =IF((MAX(0,(0.5-(($AS$21-AVERAGE($AA$30:AA56))/(IF(STDEV($AA$30:AA56)<0.01,0.01,STDEV($AA$30:AA56)))*SQRT(COUNT($AA$30:AA56))/(2*(COUNT($AA$30:AA56)-1))))))>1,1,(MAX(0,(0.5-(($AS$21-AVERAGE($AA$30:AA56))/(IF(STDEV($AA$30:AA56)<0.01,0.01,STDEV($AA$30:AA56)))*SQRT(COUNT($AA$30:AA56))/(2*(COUNT($AA$30:AA56)-1))))))) ->  | AT56: =IF((MAX(0,(0.5-(($AT$21-AVERAGE($AB$30:AB56))/(IF(STDEV($AB$30:AB56)<0.01,0.01,STDEV($AB$30:AB56)))*SQRT(COUNT($AB$30:AB56))/(2*(COUNT($AB$30:AB56)-1))))))>1,1,(MAX(0,(0.5-(($AT$21-AVERAGE($AB$30:AB56))/(IF(STDEV($AB$30:AB56)<0.01,0.01,STDEV($AB$30:AB56)))*SQRT(COUNT($AB$30:AB56))/(2*(COUNT($AB$30:AB56)-1))))))) ->  | AV56: =IF((MAX(0,(0.5-((AVERAGE($M$30:M56)-$AV$22)/(IF(STDEV($M$30:M56)<0.01,0.01,STDEV($M$30:M56)))*SQRT(COUNT($M$30:M56))/(2*(COUNT($M$30:M56)-1))))))>1,1,(MAX(0,(0.5-((AVERAGE($M$30:M56)-$AV$22)/(IF(STDEV($M$30:M56)<0.01,0.01,STDEV($M$30:M56)))*SQRT(COUNT($M$30:M56))/(2*(COUNT($M$30:M56)-1))))))) ->  | AW56: =IF((MAX(0,(0.5-((AVERAGE($N$30:N56)-$AW$22)/(IF(STDEV($N$30:N56)<0.01,0.01,STDEV($N$30:N56)))*SQRT(COUNT($N$30:N56))/(2*(COUNT($N$30:N56)-1))))))>1,1,(MAX(0,(0.5-((AVERAGE($N$30:N56)-$AW$22)/(IF(STDEV($N$30:N56)<0.01,0.01,STDEV($N$30:N56)))*SQRT(COUNT($N$30:N56))/(2*(COUNT($N$30:N56)-1))))))) ->  | AX56: =IF((MAX(0,(0.5-((AVERAGE($S$30:S56)-$AX$22)/(IF(STDEV($S$30:S56)<0.01,0.01,STDEV($S$30:S56)))*SQRT(COUNT($S$30:S56))/(2*(COUNT($S$30:S56)-1))))))>1,1,(MAX(0,(0.5-((AVERAGE($S$30:S56)-$AX$22)/(IF(STDEV($S$30:S56)<0.01,0.01,STDEV($S$30:S56)))*SQRT(COUNT($S$30:S56))/(2*(COUNT($S$30:S56)-1))))))) ->  | AY56: =IF((MAX(0,(0.5-((AVERAGE($T$30:T56)-$AY$22)/(IF(STDEV($T$30:T56)<0.01,0.01,STDEV($T$30:T56)))*SQRT(COUNT($T$30:T56))/(2*(COUNT($T$30:T56)-1))))))>1,1,(MAX(0,(0.5-((AVERAGE($T$30:T56)-$AY$22)/(IF(STDEV($T$30:T56)<0.01,0.01,STDEV($T$30:T56)))*SQRT(COUNT($T$30:T56))/(2*(COUNT($T$30:T56)-1))))))) ->  | AZ56: =IF((MAX(0,(0.5-((AVERAGE($AA$30:AA56)-$AZ$22)/(IF(STDEV($AA$30:AA56)<0.01,0.01,STDEV($AA$30:AA56)))*SQRT(COUNT($AA$30:AA56))/(2*(COUNT($AA$30:AA56)-1))))))>1,1,(MAX(0,(0.5-((AVERAGE($AA$30:AA56)-$AZ$22)/(IF(STDEV($AA$30:AA56)<0.01,0.01,STDEV($AA$30:AA56)))*SQRT(COUNT($AA$30:AA56))/(2*(COUNT($AA$30:AA56)-1))))))) ->  | BA56: =IF((MAX(0,(0.5-((AVERAGE($AB$30:AB56)-$BA$22)/(IF(STDEV($AB$30:AB56)<0.01,0.01,STDEV($AB$30:AB56)))*SQRT(COUNT($AB$30:AB56))/(2*(COUNT($AB$30:AB56)-1))))))>1,1,(MAX(0,(0.5-((AVERAGE($AB$30:AB56)-$BA$22)/(IF(STDEV($AB$30:AB56)<0.01,0.01,STDEV($AB$30:AB56)))*SQRT(COUNT($AB$30:AB56))/(2*(COUNT($AB$30:AB56)-1))))))) ->  | BD56: =(0.5 * ((100-(BETADIST(AK56,((COUNT(M$30:M56))/2)-1,((COUNT(M$30:M56))/2)-1))*100) + (100-(BETADIST(AV56,((COUNT(M$30:M56))/2)-1,((COUNT(M$30:M56))/2)-1))*100) - 100) + 55) / 100 ->  | BE56: =(0.5 * ((100-(BETADIST(AL56,((COUNT(N$30:N56))/2)-1,((COUNT(N$30:N56))/2)-1))*100) + (100-(BETADIST(AW56,((COUNT(N$30:N56))/2)-1,((COUNT(N$30:N56))/2)-1))*100) - 100) + 55) / 100 ->  | BF56: =(0.5 * ((100-(BETADIST(AQ56,((COUNT(S$30:S56))/2)-1,((COUNT(S$30:S56))/2)-1))*100) + (100-(BETADIST(AX56,((COUNT(S$30:S56))/2)-1,((COUNT(S$30:S56))/2)-1))*100) - 100) + 55) / 100 ->  | BG56: =(0.5 * ((100-(BETADIST(AR56,((COUNT(T$30:T56))/2)-1,((COUNT(T$30:T56))/2)-1))*100) + (100-(BETADIST(AY56,((COUNT(T$30:T56))/2)-1,((COUNT(T$30:T56))/2)-1))*100) - 100) + 55) / 100 ->  | BH56: =(0.5 * ((100-(BETADIST(AS56,((COUNT(AA$30:AA56))/2)-1,((COUNT(AA$30:AA56))/2)-1))*100) + (100-(BETADIST(AZ56,((COUNT(AA$30:AA56))/2)-1,((COUNT(AA$30:AA56))/2)-1))*100) - 100) + 55) / 100 ->  | BI56: =(0.5 * ((100-(BETADIST(AT56,((COUNT(AB$30:AB56))/2)-1,((COUNT(AB$30:AB56))/2)-1))*100) + (100-(BETADIST(BA56,((COUNT(AB$30:AB56))/2)-1,((COUNT(AB$30:AB56))/2)-1))*100) - 100) + 55) / 100 ->  | BJ56: =(BE56*BE$23)+(BF56*BF$23)+(BG56*BG$23)+(BH56*BH$23)+(BD56*BD$23) ->  | DB56: 2009-09-19 | DD56: 1 | DE56: 27 | DN56: 36 | DP56: 12 | DS56: 6.9 | DT56: 4.97 | DU56: 90.1 | DV56: 91.2 | DW56: 91.3 | DX56: 0.9 | DY56: 0.8 | DZ56: 0.7

Sheet Verification
E4: Quality Characteristic | F4: =LotInfo!J25 -> #8 | G4: =LotInfo!O25 -> #200 | H4: =LotInfo!P25 -> B.C. | I4: =LotInfo!Q25 -> %MTD | J4: =LotInfo!I25 -> #4
E5: Target Value | F5: =LotInfo!J26 -> 0 | G5: =LotInfo!O26 -> 0 | H5: =LotInfo!P26 -> 0 | I5: =IF(LotInfo!Q26="","",LotInfo!Q26) ->  | J5: =LotInfo!I26 -> 0
E6: Production Tolerance | F6: =LotInfo!J27 -> 5 | G6: =LotInfo!O27 -> 2 | H6: =LotInfo!P27 -> 0.4 | I6: =IF(LotInfo!Q27="","",LotInfo!Q27) ->  | J6: =LotInfo!I27 -> 5
E7: Upper Specification Limit | F7: =LotInfo!J28 ->  | G7: =LotInfo!O28 ->  | H7: =LotInfo!P28 ->  | I7: =LotInfo!Q28 -> 100 | J7: =LotInfo!I28 -> 
E8: Lower Specification Limit | F8: =LotInfo!J29 ->  | G8: =LotInfo!O29 ->  | H8: =LotInfo!P29 ->  | I8: =LotInfo!Q29 -> 97 | J8: =LotInfo!I29 -> 
E9: Weighting Factor (w) | F9: =LotInfo!J30 -> 0.1 | G9: =LotInfo!O30 -> 0.15 | H9: =LotInfo!P30 -> 0.3 | I9: =LotInfo!Q30 -> 0.4 | J9: =LotInfo!I30 -> 0.05
A10: 1
A11: TEST NO. | B11: Date | C11: Contractor's Est | D11: Lot No. | E11: Sublot No
C12: of SubLot Quantity
C13: (tons)
A14: =IF((QCData!A30=""),"",QCData!A30) ->  | B14: =QCData!B30 -> 00:00:00 | C14: =IF((QCData!C30=""),"",QCData!C30) ->  | D14: =IF((QCData!D30=""),"",QCData!D30) ->  | E14: =IF((QCData!E30=""),"",QCData!E30) ->  | F14: =IF((QCData!N30=""),"",QCData!N30) ->  | G14: =IF((QCData!S30=""),"",QCData!S30) ->  | H14: =IF((QCData!T30=""),"",QCData!T30) ->  | I14: =IF((QCData!AA30=""),"",QCData!AA30) ->  | J14: =IF((QCData!M30=""),"",QCData!M30) -> 
A15: =IF((QCData!A31=""),"",QCData!A31) ->  | B15: =QCData!B31 -> 00:00:00 | C15: =IF((QCData!C31=""),"",QCData!C31) ->  | D15: =IF((QCData!D31=""),"",QCData!D31) ->  | E15: =IF((QCData!E31=""),"",QCData!E31) ->  | F15: =IF((QCData!N31=""),"",QCData!N31) ->  | G15: =IF((QCData!S31=""),"",QCData!S31) ->  | H15: =IF((QCData!T31=""),"",QCData!T31) ->  | I15: =IF((QCData!AA31=""),"",QCData!AA31) ->  | J15: =IF((QCData!M31=""),"",QCData!M31) -> 
A16: =IF((QCData!A32=""),"",QCData!A32) ->  | B16: =QCData!B32 -> 00:00:00 | C16: =IF((QCData!C32=""),"",QCData!C32) ->  | D16: =IF((QCData!D32=""),"",QCData!D32) ->  | E16: =IF((QCData!E32=""),"",QCData!E32) ->  | F16: =IF((QCData!N32=""),"",QCData!N32) ->  | G16: =IF((QCData!S32=""),"",QCData!S32) ->  | H16: =IF((QCData!T32=""),"",QCData!T32) ->  | I16: =IF((QCData!AA32=""),"",QCData!AA32) ->  | J16: =IF((QCData!M32=""),"",QCData!M32) -> 
A17: =IF((QCData!A33=""),"",QCData!A33) ->  | B17: =QCData!B33 -> 00:00:00 | C17: =IF((QCData!C33=""),"",QCData!C33) ->  | D17: =IF((QCData!D33=""),"",QCData!D33) ->  | E17: =IF((QCData!E33=""),"",QCData!E33) ->  | F17: =IF((QCData!N33=""),"",QCData!N33) ->  | G17: =IF((QCData!S33=""),"",QCData!S33) ->  | H17: =IF((QCData!T33=""),"",QCData!T33) ->  | I17: =IF((QCData!AA33=""),"",QCData!AA33) ->  | J17: =IF((QCData!M33=""),"",QCData!M33) -> 
A18: =IF((QCData!A34=""),"",QCData!A34) ->  | B18: =QCData!B34 -> 00:00:00 | C18: =IF((QCData!C34=""),"",QCData!C34) ->  | D18: =IF((QCData!D34=""),"",QCData!D34) ->  | E18: =IF((QCData!E34=""),"",QCData!E34) ->  | F18: =IF((QCData!N34=""),"",QCData!N34) ->  | G18: =IF((QCData!S34=""),"",QCData!S34) ->  | H18: =IF((QCData!T34=""),"",QCData!T34) ->  | I18: =IF((QCData!AA34=""),"",QCData!AA34) ->  | J18: =IF((QCData!M34=""),"",QCData!M34) -> 
A19: =IF((QCData!A35=""),"",QCData!A35) ->  | B19: =QCData!B35 -> 00:00:00 | C19: =IF((QCData!C35=""),"",QCData!C35) ->  | D19: =IF((QCData!D35=""),"",QCData!D35) ->  | E19: =IF((QCData!E35=""),"",QCData!E35) ->  | F19: =IF((QCData!N35=""),"",QCData!N35) ->  | G19: =IF((QCData!S35=""),"",QCData!S35) ->  | H19: =IF((QCData!T35=""),"",QCData!T35) ->  | I19: =IF((QCData!AA35=""),"",QCData!AA35) ->  | J19: =IF((QCData!M35=""),"",QCData!M35) -> 
A20: =IF((QCData!A36=""),"",QCData!A36) ->  | B20: =QCData!B36 -> 00:00:00 | C20: =IF((QCData!C36=""),"",QCData!C36) ->  | D20: =IF((QCData!D36=""),"",QCData!D36) ->  | E20: =IF((QCData!E36=""),"",QCData!E36) ->  | F20: =IF((QCData!N36=""),"",QCData!N36) ->  | G20: =IF((QCData!S36=""),"",QCData!S36) ->  | H20: =IF((QCData!T36=""),"",QCData!T36) ->  | I20: =IF((QCData!AA36=""),"",QCData!AA36) ->  | J20: =IF((QCData!M36=""),"",QCData!M36) -> 
A21: =IF((QCData!A37=""),"",QCData!A37) ->  | B21: =QCData!B37 -> 00:00:00 | C21: =IF((QCData!C37=""),"",QCData!C37) ->  | D21: =IF((QCData!D37=""),"",QCData!D37) ->  | E21: =IF((QCData!E37=""),"",QCData!E37) ->  | F21: =IF((QCData!N37=""),"",QCData!N37) ->  | G21: =IF((QCData!S37=""),"",QCData!S37) ->  | H21: =IF((QCData!T37=""),"",QCData!T37) ->  | I21: =IF((QCData!AA37=""),"",QCData!AA37) ->  | J21: =IF((QCData!M37=""),"",QCData!M37) -> 
A22: =IF((QCData!A38=""),"",QCData!A38) ->  | B22: =QCData!B38 -> 00:00:00 | C22: =IF((QCData!C38=""),"",QCData!C38) ->  | D22: =IF((QCData!D38=""),"",QCData!D38) ->  | E22: =IF((QCData!E38=""),"",QCData!E38) ->  | F22: =IF((QCData!N38=""),"",QCData!N38) ->  | G22: =IF((QCData!S38=""),"",QCData!S38) ->  | H22: =IF((QCData!T38=""),"",QCData!T38) ->  | I22: =IF((QCData!AA38=""),"",QCData!AA38) ->  | J22: =IF((QCData!M38=""),"",QCData!M38) -> 
A23: =IF((QCData!A39=""),"",QCData!A39) ->  | B23: =QCData!B39 -> 00:00:00 | C23: =IF((QCData!C39=""),"",QCData!C39) ->  | D23: =IF((QCData!D39=""),"",QCData!D39) ->  | E23: =IF((QCData!E39=""),"",QCData!E39) ->  | F23: =IF((QCData!N39=""),"",QCData!N39) ->  | G23: =IF((QCData!S39=""),"",QCData!S39) ->  | H23: =IF((QCData!T39=""),"",QCData!T39) ->  | I23: =IF((QCData!AA39=""),"",QCData!AA39) ->  | J23: =IF((QCData!M39=""),"",QCData!M39) -> 
A24: =IF((QCData!A40=""),"",QCData!A40) ->  | B24: =QCData!B40 -> 00:00:00 | C24: =IF((QCData!C40=""),"",QCData!C40) ->  | D24: =IF((QCData!D40=""),"",QCData!D40) ->  | E24: =IF((QCData!E40=""),"",QCData!E40) ->  | F24: =IF((QCData!N40=""),"",QCData!N40) ->  | G24: =IF((QCData!S40=""),"",QCData!S40) ->  | H24: =IF((QCData!T40=""),"",QCData!T40) ->  | I24: =IF((QCData!AA40=""),"",QCData!AA40) ->  | J24: =IF((QCData!M40=""),"",QCData!M40) -> 
A25: =IF((QCData!A41=""),"",QCData!A41) ->  | B25: =QCData!B41 -> 00:00:00 | C25: =IF((QCData!C41=""),"",QCData!C41) ->  | D25: =IF((QCData!D41=""),"",QCData!D41) ->  | E25: =IF((QCData!E41=""),"",QCData!E41) ->  | F25: =IF((QCData!N41=""),"",QCData!N41) ->  | G25: =IF((QCData!S41=""),"",QCData!S41) ->  | H25: =IF((QCData!T41=""),"",QCData!T41) ->  | I25: =IF((QCData!AA41=""),"",QCData!AA41) ->  | J25: =IF((QCData!M41=""),"",QCData!M41) -> 
A26: =IF((QCData!A42=""),"",QCData!A42) ->  | B26: =QCData!B42 -> 00:00:00 | C26: =IF((QCData!C42=""),"",QCData!C42) ->  | D26: =IF((QCData!D42=""),"",QCData!D42) ->  | E26: =IF((QCData!E42=""),"",QCData!E42) ->  | F26: =IF((QCData!N42=""),"",QCData!N42) ->  | G26: =IF((QCData!S42=""),"",QCData!S42) ->  | H26: =IF((QCData!T42=""),"",QCData!T42) ->  | I26: =IF((QCData!AA42=""),"",QCData!AA42) ->  | J26: =IF((QCData!M42=""),"",QCData!M42) -> 
A27: =IF((QCData!A43=""),"",QCData!A43) ->  | B27: =QCData!B43 -> 00:00:00 | C27: =IF((QCData!C43=""),"",QCData!C43) ->  | D27: =IF((QCData!D43=""),"",QCData!D43) ->  | E27: =IF((QCData!E43=""),"",QCData!E43) ->  | F27: =IF((QCData!N43=""),"",QCData!N43) ->  | G27: =IF((QCData!S43=""),"",QCData!S43) ->  | H27: =IF((QCData!T43=""),"",QCData!T43) ->  | I27: =IF((QCData!AA43=""),"",QCData!AA43) ->  | J27: =IF((QCData!M43=""),"",QCData!M43) -> 
A28: =IF((QCData!A44=""),"",QCData!A44) ->  | B28: =QCData!B44 -> 00:00:00 | C28: =IF((QCData!C44=""),"",QCData!C44) ->  | D28: =IF((QCData!D44=""),"",QCData!D44) ->  | E28: =IF((QCData!E44=""),"",QCData!E44) ->  | F28: =IF((QCData!N44=""),"",QCData!N44) ->  | G28: =IF((QCData!S44=""),"",QCData!S44) ->  | H28: =IF((QCData!T44=""),"",QCData!T44) ->  | I28: =IF((QCData!AA44=""),"",QCData!AA44) ->  | J28: =IF((QCData!M44=""),"",QCData!M44) -> 
A29: =IF((QCData!A45=""),"",QCData!A45) ->  | B29: =QCData!B45 -> 00:00:00 | C29: =IF((QCData!C45=""),"",QCData!C45) ->  | D29: =IF((QCData!D45=""),"",QCData!D45) ->  | E29: =IF((QCData!E45=""),"",QCData!E45) ->  | F29: =IF((QCData!N45=""),"",QCData!N45) ->  | G29: =IF((QCData!S45=""),"",QCData!S45) ->  | H29: =IF((QCData!T45=""),"",QCData!T45) ->  | I29: =IF((QCData!AA45=""),"",QCData!AA45) ->  | J29: =IF((QCData!M45=""),"",QCData!M45) -> 
A30: =IF((QCData!A46=""),"",QCData!A46) ->  | B30: =QCData!B46 -> 00:00:00 | C30: =IF((QCData!C46=""),"",QCData!C46) ->  | D30: =IF((QCData!D46=""),"",QCData!D46) ->  | E30: =IF((QCData!E46=""),"",QCData!E46) ->  | F30: =IF((QCData!N46=""),"",QCData!N46) ->  | G30: =IF((QCData!S46=""),"",QCData!S46) ->  | H30: =IF((QCData!T46=""),"",QCData!T46) ->  | I30: =IF((QCData!AA46=""),"",QCData!AA46) ->  | J30: =IF((QCData!M46=""),"",QCData!M46) -> 
A31: =IF((QCData!A47=""),"",QCData!A47) ->  | B31: =QCData!B47 -> 00:00:00 | C31: =IF((QCData!C47=""),"",QCData!C47) ->  | D31: =IF((QCData!D47=""),"",QCData!D47) ->  | E31: =IF((QCData!E47=""),"",QCData!E47) ->  | F31: =IF((QCData!N47=""),"",QCData!N47) ->  | G31: =IF((QCData!S47=""),"",QCData!S47) ->  | H31: =IF((QCData!T47=""),"",QCData!T47) ->  | I31: =IF((QCData!AA47=""),"",QCData!AA47) ->  | J31: =IF((QCData!M47=""),"",QCData!M47) -> 
A32: =IF((QCData!A48=""),"",QCData!A48) ->  | B32: =QCData!B48 -> 00:00:00 | C32: =IF((QCData!C48=""),"",QCData!C48) ->  | D32: =IF((QCData!D48=""),"",QCData!D48) ->  | E32: =IF((QCData!E48=""),"",QCData!E48) ->  | F32: =IF((QCData!N48=""),"",QCData!N48) ->  | G32: =IF((QCData!S48=""),"",QCData!S48) ->  | H32: =IF((QCData!T48=""),"",QCData!T48) ->  | I32: =IF((QCData!AA48=""),"",QCData!AA48) ->  | J32: =IF((QCData!M48=""),"",QCData!M48) -> 
A33: =IF((QCData!A49=""),"",QCData!A49) ->  | B33: =QCData!B49 -> 00:00:00 | C33: =IF((QCData!C49=""),"",QCData!C49) ->  | D33: =IF((QCData!D49=""),"",QCData!D49) ->  | E33: =IF((QCData!E49=""),"",QCData!E49) ->  | F33: =IF((QCData!N49=""),"",QCData!N49) ->  | G33: =IF((QCData!S49=""),"",QCData!S49) ->  | H33: =IF((QCData!T49=""),"",QCData!T49) ->  | I33: =IF((QCData!AA49=""),"",QCData!AA49) ->  | J33: =IF((QCData!M49=""),"",QCData!M49) -> 
A34: =IF((QCData!A50=""),"",QCData!A50) ->  | B34: =QCData!B50 -> 00:00:00 | C34: =IF((QCData!C50=""),"",QCData!C50) ->  | D34: =IF((QCData!D50=""),"",QCData!D50) ->  | E34: =IF((QCData!E50=""),"",QCData!E50) ->  | F34: =IF((QCData!N50=""),"",QCData!N50) ->  | G34: =IF((QCData!S50=""),"",QCData!S50) ->  | H34: =IF((QCData!T50=""),"",QCData!T50) ->  | I34: =IF((QCData!AA50=""),"",QCData!AA50) ->  | J34: =IF((QCData!M50=""),"",QCData!M50) -> 
A35: =IF((QCData!A51=""),"",QCData!A51) ->  | B35: =QCData!B51 -> 00:00:00 | C35: =IF((QCData!C51=""),"",QCData!C51) ->  | D35: =IF((QCData!D51=""),"",QCData!D51) ->  | E35: =IF((QCData!E51=""),"",QCData!E51) ->  | F35: =IF((QCData!N51=""),"",QCData!N51) ->  | G35: =IF((QCData!S51=""),"",QCData!S51) ->  | H35: =IF((QCData!T51=""),"",QCData!T51) ->  | I35: =IF((QCData!AA51=""),"",QCData!AA51) ->  | J35: =IF((QCData!M51=""),"",QCData!M51) -> 
A36: =IF((QCData!A52=""),"",QCData!A52) ->  | B36: =QCData!B52 -> 00:00:00 | C36: =IF((QCData!C52=""),"",QCData!C52) ->  | D36: =IF((QCData!D52=""),"",QCData!D52) ->  | E36: =IF((QCData!E52=""),"",QCData!E52) ->  | F36: =IF((QCData!N52=""),"",QCData!N52) ->  | G36: =IF((QCData!S52=""),"",QCData!S52) ->  | H36: =IF((QCData!T52=""),"",QCData!T52) ->  | I36: =IF((QCData!AA52=""),"",QCData!AA52) ->  | J36: =IF((QCData!M52=""),"",QCData!M52) -> 
A37: =IF((QCData!A53=""),"",QCData!A53) ->  | B37: =QCData!B53 -> 00:00:00 | C37: =IF((QCData!C53=""),"",QCData!C53) ->  | D37: =IF((QCData!D53=""),"",QCData!D53) ->  | E37: =IF((QCData!E53=""),"",QCData!E53) ->  | F37: =IF((QCData!N53=""),"",QCData!N53) ->  | G37: =IF((QCData!S53=""),"",QCData!S53) ->  | H37: =IF((QCData!T53=""),"",QCData!T53) ->  | I37: =IF((QCData!AA53=""),"",QCData!AA53) ->  | J37: =IF((QCData!M53=""),"",QCData!M53) -> 
A38: =IF((QCData!A54=""),"",QCData!A54) ->  | B38: =QCData!B54 -> 00:00:00 | C38: =IF((QCData!C54=""),"",QCData!C54) ->  | D38: =IF((QCData!D54=""),"",QCData!D54) ->  | E38: =IF((QCData!E54=""),"",QCData!E54) ->  | F38: =IF((QCData!N54=""),"",QCData!N54) ->  | G38: =IF((QCData!S54=""),"",QCData!S54) ->  | H38: =IF((QCData!T54=""),"",QCData!T54) ->  | I38: =IF((QCData!AA54=""),"",QCData!AA54) ->  | J38: =IF((QCData!M54=""),"",QCData!M54) -> 
A39: =IF((QCData!A55=""),"",QCData!A55) ->  | B39: =QCData!B55 -> 00:00:00 | C39: =IF((QCData!C55=""),"",QCData!C55) ->  | D39: =IF((QCData!D55=""),"",QCData!D55) ->  | E39: =IF((QCData!E55=""),"",QCData!E55) ->  | F39: =IF((QCData!N55=""),"",QCData!N55) ->  | G39: =IF((QCData!S55=""),"",QCData!S55) ->  | H39: =IF((QCData!T55=""),"",QCData!T55) ->  | I39: =IF((QCData!AA55=""),"",QCData!AA55) ->  | J39: =IF((QCData!M55=""),"",QCData!M55) -> 
A40: =IF((QCData!A56=""),"",QCData!A56) ->  | B40: =QCData!B56 -> 00:00:00 | C40: =IF((QCData!C56=""),"",QCData!C56) ->  | D40: =IF((QCData!D56=""),"",QCData!D56) ->  | E40: =IF((QCData!E56=""),"",QCData!E56) ->  | F40: =IF((QCData!N56=""),"",QCData!N56) ->  | G40: =IF((QCData!S56=""),"",QCData!S56) ->  | H40: =IF((QCData!T56=""),"",QCData!T56) ->  | I40: =IF((QCData!AA56=""),"",QCData!AA56) ->  | J40: =IF((QCData!M56=""),"",QCData!M56) -> 
A43: Engineer Verification Test Data
A44: TEST NO. | B44: Date | D44: Lot No. | E44: Sublot No
A74: Verification Report
E75: Quality Characteristic | F75: =LotInfo!J25 -> #8 | G75: =LotInfo!O25 -> #200 | H75: =LotInfo!P25 -> B.C. | I75: =LotInfo!Q25 -> %MTD | J75: =LotInfo!I25 -> #4
C76: Sp | F76: =SQRT(( ( (STDEV(F14:F40)^2*(COUNT(F14:F40)-1)) + (STDEV(F45:F71)^2*(COUNT(F45:F71)-1)) ) / (COUNT(F14:F40)+COUNT(F45:F71)-2) )) ->  | G76: =SQRT(( ( (STDEV(G14:G40)^2*(COUNT(G14:G40)-1)) + (STDEV(G45:G71)^2*(COUNT(G45:G71)-1)) ) / (COUNT(G14:G40)+COUNT(G45:G71)-2) )) ->  | H76: =SQRT(( ( (STDEV(H14:H40)^2*(COUNT(H14:H40)-1)) + (STDEV(H45:H71)^2*(COUNT(H45:H71)-1)) ) / (COUNT(H14:H40)+COUNT(H45:H71)-2) )) -> 
C77: F value | F77: =IF(AND(ISNUMBER(STDEV(F14:F40)),(ISNUMBER(STDEV(F45:F71)))),STDEV(F45:F71)^2/STDEV(F14:F40)^2,"") ->  | G77: =IF(AND(ISNUMBER(STDEV(G14:G40)),(ISNUMBER(STDEV(G45:G71)))),STDEV(G45:G71)^2/STDEV(G14:G40)^2,"") ->  | H77: =IF(AND(ISNUMBER(STDEV(H14:H40)),(ISNUMBER(STDEV(H45:H71)))),STDEV(H45:H71)^2/STDEV(H14:H40)^2,"") -> 
C78: numerator (nv-1) for Fcrit Lookup | F78: =IF(ISNUMBER( COUNT(F45:F71) ), COUNT(F45:F71)-1,"") -> -1 | G78: =IF(ISNUMBER( COUNT(G45:G71) ), COUNT(G45:G71)-1,"") -> -1 | H78: =IF(ISNUMBER( COUNT(H45:H71) ), COUNT(H45:H71)-1,"") -> -1 | I78: -1 | J78: -1
C79: denominator (nc-1) for Fcrit Lookup | F79: =IF(ISNUMBER(COUNT(F14:F40)), COUNT(F14:F40)-1,"") -> -1 | G79: =IF(ISNUMBER(COUNT(G14:G40)), COUNT(G14:G40)-1,"") -> -1 | H79: =IF(ISNUMBER(COUNT(H14:H40)), COUNT(H14:H40)-1,"") -> -1 | I79: -1 | J79: -1
C80: F crit from table F Table | F80: =IF((AND(ISNUMBER(F78),ISNUMBER(F79))),VLOOKUP(F78,'F Table'!$C6:$AG27,Verification!F79+1,FALSE),"") ->  | G80: =IF((AND(ISNUMBER(G78),ISNUMBER(G79))),VLOOKUP(G78,'F Table'!$C6:$AG27,Verification!G79+1,FALSE),"") ->  | H80: =IF((AND(ISNUMBER(H78),ISNUMBER(H79))),VLOOKUP(H78,'F Table'!$C6:$AG27,Verification!H79+1,FALSE),"") ->  | I80: =IF((AND(ISNUMBER(I78),ISNUMBER(I79))),VLOOKUP(I78,'F Table'!$C6:$AG27,Verification!I79+1,FALSE),"") ->  | J80: =IF((AND(ISNUMBER(J78),ISNUMBER(J79))),VLOOKUP(J78,'F Table'!$C6:$AG27,Verification!J79+1,FALSE),"") -> 
C81: If F<Fcrit then "variances assumed equal" | F81: =IF(ISNUMBER(F80),(IF(F77<=F80,"variances equal","variances unequal")),"") ->  | G81: =IF(ISNUMBER(G80),(IF(G77<=G80,"variances equal","variances unequal")),"") ->  | H81: =IF(ISNUMBER(H80),(IF(H77<=H80,"variances equal","variances unequal")),"") ->  | I81: =IF(ISNUMBER(I80),(IF(I77<=I80,"variances equal","variances unequal")),"") ->  | J81: =IF(ISNUMBER(J80),(IF(J77<=J80,"variances equal","variances unequal")),"") -> 
C82: "t stat." | F82: =ROUND((IF(F81="variances equal", (ABS( AVERAGE(F14:F40) - AVERAGE(F45:F71) ))/ (F76 * SQRT(1/COUNT(F14:F40) + 1/COUNT(F45:F71))),(ABS(AVERAGE(F14:F40)-AVERAGE(F45:F71)))/SQRT((STDEV(F14:F40)^2/COUNT(F14:F40))+(STDEV(F45:F71)^2/COUNT(F45:F71))))),3) ->  | G82: =ROUND((IF(G81="variances equal", (ABS( AVERAGE(G14:G40) - AVERAGE(G45:G71) ))/ (G76 * SQRT(1/COUNT(G14:G40) + 1/COUNT(G45:G71))),(ABS(AVERAGE(G14:G40)-AVERAGE(G45:G71)))/SQRT((STDEV(G14:G40)^2/COUNT(G14:G40))+(STDEV(G45:G71)^2/COUNT(G45:G71))))),3) ->  | H82: =ROUND((IF(H81="variances equal", (ABS( AVERAGE(H14:H40) - AVERAGE(H45:H71) ))/ (H76 * SQRT(1/COUNT(H14:H40) + 1/COUNT(H45:H71))),(ABS(AVERAGE(H14:H40)-AVERAGE(H45:H71)))/SQRT((STDEV(H14:H40)^2/COUNT(H14:H40))+(STDEV(H45:H71)^2/COUNT(H45:H71))))),3) ->  | I82: =ROUND((IF(I81="variances equal", (ABS( AVERAGE(I14:I40) - AVERAGE(I45:I71) ))/ (I76 * SQRT(1/COUNT(I14:I40) + 1/COUNT(I45:I71))),(ABS(AVERAGE(I14:I40)-AVERAGE(I45:I71)))/SQRT((STDEV(I14:I40)^2/COUNT(I14:I40))+(STDEV(I45:I71)^2/COUNT(I45:I71))))),3) ->  | J82: =ROUND((IF(J81="variances equal", (ABS( AVERAGE(J14:J40) - AVERAGE(J45:J71) ))/ (J76 * SQRT(1/COUNT(J14:J40) + 1/COUNT(J45:J71))),(ABS(AVERAGE(J14:J40)-AVERAGE(J45:J71)))/SQRT((STDEV(J14:J40)^2/COUNT(J14:J40))+(STDEV(J45:J71)^2/COUNT(J45:J71))))),3) -> 
C83: effective degrees of freedom (f') | F83: =ROUNDDOWN(((((STDEV(F14:F40)^2/COUNT(F14:F40))+(STDEV(F45:F71)^2/COUNT(F45:F71)))^2)/((((STDEV(F14:F40)^2/COUNT(F14:F40))^2)/(COUNT(F14:F40)+1))+((((STDEV(F45:F71)^2)/COUNT(F45:F71))^2)/(COUNT(F45:F71)+1))))-2,0) ->  | G83: =ROUNDDOWN(((((STDEV(G14:G40)^2/COUNT(G14:G40))+(STDEV(G45:G71)^2/COUNT(G45:G71)))^2)/((((STDEV(G14:G40)^2/COUNT(G14:G40))^2)/(COUNT(G14:G40)+1))+((((STDEV(G45:G71)^2)/COUNT(G45:G71))^2)/(COUNT(G45:G71)+1))))-2,0) ->  | H83: =ROUNDDOWN(((((STDEV(H14:H40)^2/COUNT(H14:H40))+(STDEV(H45:H71)^2/COUNT(H45:H71)))^2)/((((STDEV(H14:H40)^2/COUNT(H14:H40))^2)/(COUNT(H14:H40)+1))+((((STDEV(H45:H71)^2)/COUNT(H45:H71))^2)/(COUNT(H45:H71)+1))))-2,0) -> 
C84: t crit. (variances equal; nc+nv-2) | F84: =LOOKUP((COUNT(F14:F40)+COUNT(F45:F71)-2),degreefreedom,tcrit) ->  | G84: =LOOKUP((COUNT(G14:G40)+COUNT(G45:G71)-2),degreefreedom,tcrit) ->  | H84: =LOOKUP((COUNT(H14:H40)+COUNT(H45:H71)-2),degreefreedom,tcrit) ->  | I84: =LOOKUP((COUNT(I14:I40)+COUNT(I45:I71)-2),degreefreedom,tcrit) ->  | J84: =LOOKUP((COUNT(J14:J40)+COUNT(J45:J71)-2),degreefreedom,tcrit) -> 
C85: t crit. (variances not equal; f') | F85: =LOOKUP(F83,degreefreedom,tcrit) ->  | G85: =LOOKUP(G83,degreefreedom,tcrit) ->  | H85: =LOOKUP(H83,degreefreedom,tcrit) ->  | I85: =LOOKUP(I83,degreefreedom,tcrit) ->  | J85: =LOOKUP(J83,degreefreedom,tcrit) -> 
C86: t crit | F86: =IF(F81="variances equal",F84,F85) ->  | G86: =IF(G81="variances equal",G84,G85) ->  | H86: =IF(H81="variances equal",H84,H85) -> 
C87: Check if enough data | F87: =(IF(AND(COUNT(F14:F40)<19.5,COUNT(F45:F71)>=3),"YES",IF(AND(COUNT(F14:F40)>19.5,COUNT(F14:F40)<24.5,COUNT(F45:F71)>=4),"YES",IF(AND(COUNT(F14:F40)>24.5,COUNT(F45:F71)>=5),"YES","NO")))) -> NO | G87: =(IF(AND(COUNT(G14:G40)<19.5,COUNT(G45:G71)>=3),"YES",IF(AND(COUNT(G14:G40)>19.5,COUNT(G14:G40)<24.5,COUNT(G45:G71)>=4),"YES",IF(AND(COUNT(G14:G40)>24.5,COUNT(G45:G71)>=5),"YES","NO")))) -> NO | H87: =(IF(AND(COUNT(H14:H40)<19.5,COUNT(H45:H71)>=3),"YES",IF(AND(COUNT(H14:H40)>19.5,COUNT(H14:H40)<24.5,COUNT(H45:H71)>=4),"YES",IF(AND(COUNT(H14:H40)>24.5,COUNT(H45:H71)>=5),"YES","NO")))) -> NO | I87: NO | J87: NO
C88: Is t<tcrit (Verification Pass) | F88: =IF(F87="YES",IF(F82<=F86,"PASS","FAIL"),IF(N105="NO","INS.DATA","")) ->  | G88: =IF(G87="YES",IF(G82<=G86,"PASS","FAIL"),IF(O105="NO","INS.DATA","")) ->  | H88: =IF(H87="YES",IF(H82<=H86,"PASS","FAIL"),IF(P105="NO","INS.DATA","")) ->  | I88: =IF(I87="YES",IF(I82<=I86,"PASS","FAIL"),IF(Q105="NO","INS.DATA","")) ->  | J88: =IF(J87="YES",IF(J82<=J86,"PASS","FAIL"),IF(R105="NO","INS.DATA","")) -> 
C89: 2nd check, is IXc-XvI < All.Diff. | F89: =IF(F88="INS.DATA","INS.DATA", IF(F88="FAIL", IF(ABS(AVERAGE(F14:F40)-AVERAGE(F45:F71))<=1, "PASS", "FAIL"),"")) ->  | G89: =IF(G88="INS.DATA","INS.DATA", IF(G88="FAIL", IF(ABS(AVERAGE(G14:G40)-AVERAGE(G45:G71))<=1, "PASS", "FAIL"),"")) ->  | H89: =IF(H88="INS.DATA","INS.DATA", IF(H88="FAIL", IF(ABS(AVERAGE(H14:H40)-AVERAGE(H45:H71))<=1, "PASS", "FAIL"),"")) -> 
C90: Verified? (Yes/No) | F90: =IF(F88="PASS","YES", IF(F88="INS.DATA", "NO", IF(AND(F88="FAIL",F89="PASS"),"YES", IF(AND(F88="FAIL",F89="FAIL"),"NO","")))) ->  | G90: =IF(G88="PASS","YES", IF(G88="INS.DATA", "NO", IF(AND(G88="FAIL",G89="PASS"),"YES", IF(AND(G88="FAIL",G89="FAIL"),"NO","")))) ->  | H90: =IF(H88="PASS","YES", IF(H88="INS.DATA", "NO", IF(AND(H88="FAIL",H89="PASS"),"YES", IF(AND(H88="FAIL",H89="FAIL"),"NO","")))) -> 
A92: Composite Pay Factors
E93: Quality Characteristic | F93: =LotInfo!J25 -> #8 | G93: =LotInfo!O25 -> #200 | H93: =LotInfo!P25 -> B.C. | I93: =LotInfo!Q25 -> %MTD | J93: =LotInfo!I25 -> #4
E94: Weighting Factor (wi) | F94: =LotInfo!J30 -> 0.1 | G94: =LotInfo!O30 -> 0.15 | H94: =LotInfo!P30 -> 0.3 | I94: =LotInfo!Q30 -> 0.4 | J94: =LotInfo!I30 -> 0.05
F95: =IF(F90="YES",QCData!BE56,"Not Verified") -> Not Verified | G95: =IF(G90="YES",QCData!BF56,"Not Verified") -> Not Verified | H95: =IF(H90="YES",QCData!BG56,"Not Verified") -> Not Verified | I95: =IF(I90="YES",QCData!BH56,"Not Verified") -> Not Verified | J95: =IF(J90="YES",QCData!BI56,"Not Verified") -> Not Verified
E97: Composite Factor (with density specifications) | F97: =ROUND(IF(OR(F95="Not Verified",G95="Not Verified",H95="Not Verified",I95="Not Verified",J95="Not Verified"),"Not Verified",F94*F95+G94*G95+H94*H95+I94*I95+J94*J95),2) -> 
E98: Composite Factor (with method compaction) | F98: =ROUND(IF(OR(F95="Not Verified",G95="Not Verified",H95="Not Verified",J95="Not Verified"),"Not Verified",F94*F95+G94*G95+H94*H95+I94*1+J94*J95),2) -> 
A100: Payment
E102: HMA tonage constructed with density specifications | F102: 15325 | H102: Payment Adustment | I102: =(F97-1)*F102*unitprice -> 
E103: HMA tonage constructed with method compaction | F103: 700 | H103: Payment Adustment | I103: =(F98-1)*F103*unitprice -> 
E104: Total Tonage | F104: =SUM(F102:F103) -> 16025 | H104: Total Payment Adjustment | I104: =SUM(I102:I103) -> 

Sheet F Table (hidden)
B1: Note: to simplify using the vlookup function on the LotXPay worksheet the table was flipped diagonally. Typically this table has the denominator values along the left edge and the Numerator across the top.
D4: Degree of Freedom (nc-1) for Denominator
D5: 1 | E5: 2 | F5: 3 | G5: 4 | H5: 5 | I5: 6 | J5: 7 | K5: 8 | L5: 9 | M5: 10 | N5: 11 | O5: 12 | P5: 13 | Q5: 14 | R5: 15 | S5: 16 | T5: 17 | U5: 18 | V5: 19 | W5: 20 | X5: 21 | Y5: 22 | Z5: 23 | AA5: 24 | AB5: 25 | AC5: 26 | AD5: 27 | AE5: 28 | AF5: 29 | AG5: 30
B6: Degree of freedom ( (nv-1) for Numerator | C6: 1 | D6: 647.8 | E6: 38.51 | F6: 17.44 | G6: 12.22 | H6: 10.01 | I6: 8.81 | J6: 8.07 | K6: 7.57 | L6: 7.21 | M6: 6.94 | N6: 6.72 | O6: 6.55 | P6: 6.41 | Q6: 6.3 | R6: 6.2 | S6: 6.12 | T6: 6.04 | U6: 5.98 | V6: 5.92 | W6: 5.87 | X6: 5.83 | Y6: 5.79 | Z6: 5.75 | AA6: 5.72 | AB6: 5.69 | AC6: 5.66 | AD6: 5.63 | AE6: 5.61 | AF6: 5.59 | AG6: 5.57
C7: 2 | D7: 799.5 | E7: 39 | F7: 16.04 | G7: 10.65 | H7: 8.43 | I7: 7.26 | J7: 6.54 | K7: 6.06 | L7: 5.71 | M7: 5.46 | N7: 5.26 | O7: 5.1 | P7: 4.97 | Q7: 4.86 | R7: 4.77 | S7: 4.69 | T7: 4.62 | U7: 4.56 | V7: 4.51 | W7: 4.46 | X7: 4.42 | Y7: 4.38 | Z7: 4.35 | AA7: 4.32 | AB7: 4.29 | AC7: 4.27 | AD7: 4.24 | AE7: 4.22 | AF7: 4.2 | AG7: 4.18
C8: 3 | D8: 864.2 | E8: 39.17 | F8: 15.44 | G8: 9.98 | H8: 7.76 | I8: 6.6 | J8: 5.89 | K8: 5.42 | L8: 5.08 | M8: 4.83 | N8: 4.63 | O8: 4.47 | P8: 4.35 | Q8: 4.24 | R8: 4.15 | S8: 4.08 | T8: 4.01 | U8: 3.95 | V8: 3.9 | W8: 3.86 | X8: 3.82 | Y8: 3.78 | Z8: 3.75 | AA8: 3.72 | AB8: 3.69 | AC8: 3.67 | AD8: 3.65 | AE8: 3.63 | AF8: 3.61 | AG8: 3.59
C9: 4 | D9: 899.6 | E9: 39.25 | F9: 15.1 | G9: 9.6 | H9: 7.39 | I9: 6.23 | J9: 5.52 | K9: 5.05 | L9: 4.72 | M9: 4.47 | N9: 4.28 | O9: 4.12 | P9: 4 | Q9: 3.89 | R9: 3.8 | S9: 3.73 | T9: 3.66 | U9: 3.61 | V9: 3.56 | W9: 3.51 | X9: 3.48 | Y9: 3.44 | Z9: 3.41 | AA9: 3.38 | AB9: 3.35 | AC9: 3.33 | AD9: 3.31 | AE9: 3.29 | AF9: 3.27 | AG9: 3.25
C10: 5 | D10: 921.8 | E10: 39.3 | F10: 14.88 | G10: 9.36 | H10: 7.15 | I10: 5.99 | J10: 5.29 | K10: 4.82 | L10: 4.48 | M10: 4.24 | N10: 4.04 | O10: 3.89 | P10: 3.77 | Q10: 3.66 | R10: 3.58 | S10: 3.5 | T10: 3.44 | U10: 3.38 | V10: 3.33 | W10: 3.29 | X10: 3.25 | Y10: 3.22 | Z10: 3.18 | AA10: 3.15 | AB10: 3.13 | AC10: 3.1 | AD10: 3.08 | AE10: 3.06 | AF10: 3.04 | AG10: 3.03
C11: 6 | D11: 937.1 | E11: 39.33 | F11: 14.73 | G11: 9.2 | H11: 6.98 | I11: 5.82 | J11: 5.12 | K11: 4.65 | L11: 4.32 | M11: 4.07 | N11: 3.88 | O11: 3.73 | P11: 3.6 | Q11: 3.5 | R11: 3.41 | S11: 3.34 | T11: 3.28 | U11: 3.22 | V11: 3.17 | W11: 3.13 | X11: 3.09 | Y11: 3.05 | Z11: 3.02 | AA11: 2.99 | AB11: 2.97 | AC11: 2.94 | AD11: 2.92 | AE11: 2.9 | AF11: 2.88 | AG11: 2.87
C12: 7 | D12: 948.2 | E12: 39.36 | F12: 14.62 | G12: 9.07 | H12: 6.85 | I12: 5.7 | J12: 4.99 | K12: 4.53 | L12: 4.2 | M12: 3.95 | N12: 3.76 | O12: 3.61 | P12: 3.48 | Q12: 3.38 | R12: 3.29 | S12: 3.22 | T12: 3.16 | U12: 3.1 | V12: 3.05 | W12: 3.01 | X12: 2.97 | Y12: 2.93 | Z12: 2.9 | AA12: 2.87 | AB12: 2.85 | AC12: 2.82 | AD12: 2.8 | AE12: 2.78 | AF12: 2.76 | AG12: 2.75
C13: 8 | D13: 956.7 | E13: 39.37 | F13: 14.54 | G13: 8.98 | H13: 6.76 | I13: 5.6 | J13: 4.9 | K13: 4.43 | L13: 4.1 | M13: 3.85 | N13: 3.66 | O13: 3.51 | P13: 3.39 | Q13: 3.29 | R13: 3.2 | S13: 3.12 | T13: 3.06 | U13: 3.01 | V13: 2.96 | W13: 2.91 | X13: 2.87 | Y13: 2.84 | Z13: 2.81 | AA13: 2.78 | AB13: 2.75 | AC13: 2.73 | AD13: 2.71 | AE13: 2.69 | AF13: 2.67 | AG13: 2.65
C14: 9 | D14: 963.3 | E14: 39.39 | F14: 14.47 | G14: 8.9 | H14: 6.68 | I14: 5.52 | J14: 4.82 | K14: 4.36 | L14: 4.03 | M14: 3.78 | N14: 3.59 | O14: 3.44 | P14: 3.31 | Q14: 3.21 | R14: 3.12 | S14: 3.05 | T14: 2.98 | U14: 2.93 | V14: 2.88 | W14: 2.84 | X14: 2.8 | Y14: 2.76 | Z14: 2.73 | AA14: 2.7 | AB14: 2.68 | AC14: 2.65 | AD14: 2.63 | AE14: 2.61 | AF14: 2.59 | AG14: 2.57
C15: 10 | D15: 968.6 | E15: 39.4 | F15: 14.42 | G15: 8.84 | H15: 6.62 | I15: 5.46 | J15: 4.76 | K15: 4.3 | L15: 3.96 | M15: 3.72 | N15: 3.53 | O15: 3.37 | P15: 3.25 | Q15: 3.15 | R15: 3.06 | S15: 2.99 | T15: 2.92 | U15: 2.87 | V15: 2.82 | W15: 2.77 | X15: 2.73 | Y15: 2.7 | Z15: 2.67 | AA15: 2.64 | AB15: 2.61 | AC15: 2.59 | AD15: 2.57 | AE15: 2.55 | AF15: 2.53 | AG15: 2.51
C16: 11 | D16: =ROUND(AVERAGE(D15,D17),3) -> 972.65 | E16: =ROUND(AVERAGE(E15,E17),3) -> 39.405 | F16: 14.38 | G16: 8.795 | H16: 6.57 | I16: 5.415 | J16: 4.715 | K16: 4.25 | L16: 3.915 | M16: 3.67 | N16: 3.48 | O16: 3.325 | P16: 3.2 | Q16: 3.1 | R16: 3.01 | S16: 2.94 | T16: 2.87 | U16: 2.82 | V16: 2.77 | W16: 2.725 | X16: 2.685 | Y16: 2.65 | Z16: 2.62 | AA16: 2.59 | AB16: 2.56 | AC16: 2.54 | AD16: 2.52 | AE16: 2.5 | AF16: 2.48 | AG16: 2.46
C17: 12 | D17: 976.7 | E17: 39.41 | F17: 14.34 | G17: 8.75 | H17: 6.52 | I17: 5.37 | J17: 4.67 | K17: 4.2 | L17: 3.87 | M17: 3.62 | N17: 3.43 | O17: 3.28 | P17: 3.15 | Q17: 3.05 | R17: 2.96 | S17: 2.89 | T17: 2.82 | U17: 2.77 | V17: 2.72 | W17: 2.68 | X17: 2.64 | Y17: 2.6 | Z17: 2.57 | AA17: 2.54 | AB17: 2.51 | AC17: 2.49 | AD17: 2.47 | AE17: 2.45 | AF17: 2.43 | AG17: 2.41
C18: 13 | D18: =ROUND(D17+((D20-D17)*(1/3)),3) -> 979.433 | E18: =ROUND(E17+((E20-E17)*(1/3)),3) -> 39.417 | F18: 14.31 | G18: 8.72 | H18: 6.49 | I18: 5.337 | J18: 4.637 | K18: 4.167 | L18: 3.837 | M18: 3.587 | N18: 3.397 | O18: 3.247 | P18: 3.117 | Q18: 3.017 | R18: 2.927 | S18: 2.857 | T18: 2.787 | U18: 2.737 | V18: 2.687 | W18: 2.643 | X18: 2.603 | Y18: 2.567 | Z18: 2.537 | AA18: 2.507 | AB18: 2.477 | AC18: 2.457 | AD18: 2.433 | AE18: 2.413 | AF18: 2.393 | AG18: 2.377
C19: 14 | D19: =ROUND(D20-((D20-D17)*(1/3)),3) -> 982.167 | E19: =ROUND(E20-((E20-E17)*(1/3)),3) -> 39.423 | F19: 14.28 | G19: 8.69 | H19: 6.46 | I19: 5.303 | J19: 4.603 | K19: 4.133 | L19: 3.803 | M19: 3.553 | N19: 3.363 | O19: 3.213 | P19: 3.083 | Q19: 2.983 | R19: 2.893 | S19: 2.823 | T19: 2.753 | U19: 2.703 | V19: 2.653 | W19: 2.607 | X19: 2.567 | Y19: 2.533 | Z19: 2.503 | AA19: 2.473 | AB19: 2.443 | AC19: 2.423 | AD19: 2.397 | AE19: 2.377 | AF19: 2.357 | AG19: 2.343
C20: 15 | D20: 984.9 | E20: 39.43 | F20: 14.25 | G20: 8.66 | H20: 6.43 | I20: 5.27 | J20: 4.57 | K20: 4.1 | L20: 3.77 | M20: 3.52 | N20: 3.33 | O20: 3.18 | P20: 3.05 | Q20: 2.95 | R20: 2.86 | S20: 2.79 | T20: 2.72 | U20: 2.67 | V20: 2.62 | W20: 2.57 | X20: 2.53 | Y20: 2.5 | Z20: 2.47 | AA20: 2.44 | AB20: 2.41 | AC20: 2.39 | AD20: 2.36 | AE20: 2.34 | AF20: 2.32 | AG20: 2.31
C21: 16 | D21: =ROUND(D$20+((1/5)*(D$25-D$20)),3) -> 986.54 | E21: =ROUND(E$20+((1/5)*(E$25-E$20)),3) -> 39.434 | F21: 14.234 | G21: 8.64 | H21: 6.41 | I21: 5.25 | J21: 4.55 | K21: 4.08 | L21: 3.75 | M21: 3.5 | N21: 3.31 | O21: 3.158 | P21: 3.03 | Q21: 2.928 | R21: 2.84 | S21: 2.768 | T21: 2.7 | U21: 2.648 | V21: 2.598 | W21: 2.548 | X21: 2.508 | Y21: 2.478 | Z21: 2.448 | AA21: 2.418 | AB21: 2.388 | AC21: 2.368 | AD21: 2.338 | AE21: 2.318 | AF21: 2.298 | AG21: 2.288
C22: 17 | D22: =ROUND(D$20+((2/5)*(D$25-D$20)),3) -> 988.18 | E22: =ROUND(E$20+((2/5)*(E$25-E$20)),3) -> 39.438 | F22: 14.218 | G22: 8.62 | H22: 6.39 | I22: 5.23 | J22: 4.53 | K22: 4.06 | L22: 3.73 | M22: 3.48 | N22: 3.29 | O22: 3.136 | P22: 3.01 | Q22: 2.906 | R22: 2.82 | S22: 2.746 | T22: 2.68 | U22: 2.626 | V22: 2.576 | W22: 2.526 | X22: 2.486 | Y22: 2.456 | Z22: 2.426 | AA22: 2.396 | AB22: 2.366 | AC22: 2.346 | AD22: 2.316 | AE22: 2.296 | AF22: 2.276 | AG22: 2.266
C23: 18 | D23: =ROUND(D$20+((3/5)*(D$25-D$20)),3) -> 989.82 | E23: =ROUND(E$20+((3/5)*(E$25-E$20)),3) -> 39.442 | F23: 14.202 | G23: 8.6 | H23: 6.37 | I23: 5.21 | J23: 4.51 | K23: 4.04 | L23: 3.71 | M23: 3.46 | N23: 3.27 | O23: 3.114 | P23: 2.99 | Q23: 2.884 | R23: 2.8 | S23: 2.724 | T23: 2.66 | U23: 2.604 | V23: 2.554 | W23: 2.504 | X23: 2.464 | Y23: 2.434 | Z23: 2.404 | AA23: 2.374 | AB23: 2.344 | AC23: 2.324 | AD23: 2.294 | AE23: 2.274 | AF23: 2.254 | AG23: 2.244
C24: 19 | D24: =ROUND(D$20+((4/5)*(D$25-D$20)),3) -> 991.46 | E24: =ROUND(E$20+((4/5)*(E$25-E$20)),3) -> 39.446 | F24: 14.186 | G24: 8.58 | H24: 6.35 | I24: 5.19 | J24: 4.49 | K24: 4.02 | L24: 3.69 | M24: 3.44 | N24: 3.25 | O24: 3.092 | P24: 2.97 | Q24: 2.862 | R24: 2.78 | S24: 2.702 | T24: 2.64 | U24: 2.582 | V24: 2.532 | W24: 2.482 | X24: 2.442 | Y24: 2.412 | Z24: 2.382 | AA24: 2.352 | AB24: 2.322 | AC24: 2.302 | AD24: 2.272 | AE24: 2.252 | AF24: 2.232 | AG24: 2.222
C25: 20 | D25: 993.1 | E25: 39.45 | F25: 14.17 | G25: 8.56 | H25: 6.33 | I25: 5.17 | J25: 4.47 | K25: 4 | L25: 3.67 | M25: 3.42 | N25: 3.23 | O25: 3.07 | P25: 2.95 | Q25: 2.84 | R25: 2.76 | S25: 2.68 | T25: 2.62 | U25: 2.56 | V25: 2.51 | W25: 2.46 | X25: 2.42 | Y25: 2.39 | Z25: 2.36 | AA25: 2.33 | AB25: 2.3 | AC25: 2.28 | AD25: 2.25 | AE25: 2.23 | AF25: 2.21 | AG25: 2.2
C26: 24 | D26: 997.2 | E26: 39.46 | F26: 14.12 | G26: 8.51 | H26: 6.28 | I26: 5.12 | J26: 4.42 | K26: 3.95 | L26: 3.61 | M26: 3.37 | N26: 3.17 | O26: 3.02 | P26: 2.89 | Q26: 2.79 | R26: 2.7 | S26: 2.63 | T26: 2.56 | U26: 2.5 | V26: 2.45 | W26: 2.41 | X26: 2.37 | Y26: 2.33 | Z26: 2.3 | AA26: 2.27 | AB26: 2.24 | AC26: 2.22 | AD26: 2.19 | AE26: 2.17 | AF26: 2.15 | AG26: 2.14
C27: 30 | D27: 1001 | E27: 39.46 | F27: 14.08 | G27: 8.46 | H27: 6.23 | I27: 5.07 | J27: 4.36 | K27: 3.89 | L27: 3.56 | M27: 3.31 | N27: 3.12 | O27: 2.96 | P27: 2.84 | Q27: 2.73 | R27: 2.64 | S27: 2.57 | T27: 2.5 | U27: 2.44 | V27: 2.39 | W27: 2.35 | X27: 2.31 | Y27: 2.27 | Z27: 2.24 | AA27: 2.21 | AB27: 2.18 | AC27: 2.16 | AD27: 2.13 | AE27: 2.11 | AF27: 2.09 | AG27: 2.07
C31: Level of Confidence 0.025 (aka alpha, α)
C35: The green cells above indicate values that were developed using a straightline interpolation. Before taking this step, plots of the other values were reviewed and determined that a straightline interpretation was appropriate.

Sheet TCrit (hidden)
A1: Table 39-5 - CRITICAL t-VALUE FOR VERIFICATION OF QUALITY CONTROL TESTING
A4: (for  = 0.025)
A5: (nc+nv-2) | B5: tcrit
A7: 1 | B7: 24.452
A8: 2 | B8: 6.205
A9: 3 | B9: 4.177
A10: 4 | B10: 3.495
A11: 5 | B11: 3.163
A12: 6 | B12: 2.969
A13: 7 | B13: 2.841
A14: 8 | B14: 2.752
A15: 9 | B15: 2.685
A16: 10 | B16: 2.634
A17: 11 | B17: 2.593
A18: 12 | B18: 2.56
A19: 13 | B19: 2.533
A20: 14 | B20: 2.51
A21: 15 | B21: 2.49
A22: 16 | B22: 2.473
A23: 17 | B23: 2.458
A24: 18 | B24: 2.445
A25: 19 | B25: 2.433
A26: 20 | B26: 2.423
A27: 21 | B27: 2.414
A28: 22 | B28: 2.405
A29: 23 | B29: 2.398
A30: 24 | B30: 2.391
A31: 25 | B31: 2.385
A32: 26 | B32: 2.379
A33: 27 | B33: 2.373
A34: 28 | B34: 2.368
A35: 29 | B35: 2.364
A36: 30 | B36: 2.36
A37: 40 | B37: 2.329
A38: 60 | B38: 2.299
A39: 120 | B39: 2.27
A40: ∞ | B40: 2.241

Sheet Imported QCData (hidden)
A1: QCData
F19: JMF Target Value | G19: =IF(LotInfo!C26="","",LotInfo!C26) ->  | H19: =IF(LotInfo!D26="","",LotInfo!D26) ->  | I19: =IF(LotInfo!E26="","",LotInfo!E26) ->  | J19: =IF(LotInfo!F26="","",LotInfo!F26) ->  | K19: =IF(LotInfo!G26="","",LotInfo!G26) ->  | L19: =IF(LotInfo!H26="","",LotInfo!H26) ->  | M19: =IF(LotInfo!I26="","",LotInfo!I26) ->  | N19: =IF(LotInfo!J26="","",LotInfo!J26) ->  | O19: =IF(LotInfo!K26="","",LotInfo!K26) ->  | P19: =IF(LotInfo!L26="","",LotInfo!L26) ->  | Q19: =IF(LotInfo!M26="","",LotInfo!M26) ->  | R19: =IF(LotInfo!N26="","",LotInfo!N26) ->  | S19: =IF(LotInfo!O26="","",LotInfo!O26) ->  | T19: =IF(LotInfo!P26="","",LotInfo!P26) ->  | U19: =IF(LotInfo!Q26="","",LotInfo!Q26) ->  | V19: =IF(LotInfo!R26="","",LotInfo!R26) -> 
F21: Upper Spec Limit | G21: =LotInfo!C28 ->  | H21: =LotInfo!D28 ->  | I21: =LotInfo!E28 ->  | J21: =LotInfo!F28 ->  | K21: =LotInfo!G28 ->  | L21: =LotInfo!H28 ->  | M21: =LotInfo!I28 ->  | N21: =LotInfo!J28 ->  | O21: =LotInfo!K28 ->  | P21: =LotInfo!L28 ->  | Q21: =LotInfo!M28 ->  | R21: =LotInfo!N28 ->  | S21: =LotInfo!O28 ->  | T21: =LotInfo!P28 ->  | U21: =LotInfo!Q28 -> 100 | V21: =LotInfo!R28 -> 
F22: Lower Spec Limit | G22: =LotInfo!C29 ->  | H22: =LotInfo!D29 ->  | I22: =LotInfo!E29 ->  | J22: =LotInfo!F29 ->  | K22: =LotInfo!G29 ->  | L22: =LotInfo!H29 ->  | M22: =LotInfo!I29 ->  | N22: =LotInfo!J29 ->  | O22: =LotInfo!K29 ->  | P22: =LotInfo!L29 ->  | Q22: =LotInfo!M29 ->  | R22: =LotInfo!N29 ->  | S22: =LotInfo!O29 ->  | T22: =LotInfo!P29 ->  | U22: =LotInfo!Q29 -> 97 | V22: =LotInfo!R29 -> 
F25: Quality Characteristic | G25: 2" | H25: 1-1/2" | I25: 1" | J25: 3/4" | K25: 1/2" | L25: 3/8" | M25: #4 | N25: #8 | O25: #16 | P25: #30 | Q25: #50 | R25: #100 | S25: #200 | T25: B.C. | U25: %MTD | V25: %Air Voids
A26: TEST NO. | B26: Date | C26: Contractor's Est | D26: Lot No. | E26: Sublot No | F26: 3 Out
C27: of SubLot Quantity | F27: in 1 Day?
C28: (tons) | F28: Yes or NO
B30: 2008-09-11 | D30: 1 | E30: 1 | J30: 89 | N30: 40 | S30: 3 | T30: 5.8 | U30: 95 | V30: 4.2 | DA30: x2 | DB30: 2008-09-11 | DD30: 1 | DE30: 1 | DF30: YES | DJ30: 95 | DL30: 65 | DN30: 40 | DO30: 29 | DP30: 11 | DS30: 3 | DT30: 5.8 | DU30: 95.2 | DV30: 95.2 | DW30: 97 | DX30: 3.9 | DY30: 4 | DZ30: 4.1
D31: 1 | E31: 2 | J31: 89 | N31: 40 | S31: 4.9 | T31: 5.8 | U31: 94.4 | V31: 2.4 | DD31: 1 | DE31: 2 | DF31: NO | DJ31: 94 | DL31: 66 | DN31: 40 | DO31: 23 | DP31: 12 | DS31: 4.9 | DT31: 5.8 | DU31: 94.2 | DV31: 96 | DW31: 97
D32: 1 | E32: 3 | J32: 89 | N32: 40 | S32: 3 | T32: 5.1 | U32: 99 | V32: 3.9 | DD32: 1 | DE32: 3 | DF32: YES | DJ32: 93 | DL32: 67 | DN32: 40 | DO32: 55 | DP32: 13 | DS32: 3 | DT32: 5.1 | DU32: 97 | DV32: 95 | DW32: 91.5 | DX32: 3.5 | DY32: 3.5 | DZ32: 3.6
D33: 1 | E33: 4 | N33: 40 | S33: 5.1 | T33: 5.4 | U33: 93 | V33: 4 | DA33: 3 | DD33: 1 | DE33: 4 | DF33: YES | DJ33: 92 | DL33: 68 | DN33: 40 | DO33: 92 | DP33: 14 | DS33: 5.1 | DT33: 5.4 | DU33: 92.3 | DV33: 95.2 | DW33: 95.2
B34: 2008-11-12 | D34: 1 | E34: 5 | N34: 91 | S34: 4.8 | T34: 5.2 | U34: 95.4 | V34: 3.5 | DB34: 2008-11-12 | DD34: 1 | DE34: 5 | DJ34: 91 | DL34: 69 | DN34: 33 | DO34: 22 | DP34: 15 | DS34: 4.8 | DT34: 5.2 | DU34: 93.1 | DV34: 93.2 | DW34: 93.3 | DX34: 3.6 | DY34: 3.7 | DZ34: 3.8
B35: 2009-07-16 | D35: 1 | E35: 6 | J35: 89 | N35: 40 | S35: 6.8 | T35: 5.09 | U35: 93.4 | V35: 4.2 | DB35: 2009-07-16 | DD35: 1 | DE35: 6 | DF35: YES | DJ35: 90 | DL35: 70 | DN35: 40 | DP35: 16 | DS35: 6.8 | DT35: 5.09 | DU35: 95.1 | DV35: 95.2 | DW35: 95.2
D36: 1 | E36: 7 | J36: 89 | N36: 40 | S36: 5.8 | T36: 5.04 | U36: 95 | V36: 4.3 | DD36: 1 | DE36: 7 | DF36: NO | DJ36: 89 | DL36: 71 | DN36: 40 | DP36: 17 | DS36: 5.8 | DT36: 5.04 | DU36: 94.1 | DV36: 94.2 | DW36: 94.1 | DX36: 4.1 | DY36: 4.2 | DZ36: 4.3
D37: 1 | E37: 8 | N37: 40 | S37: 4.9 | T37: 4.98 | U37: 94.4 | V37: 2.6 | DD37: 1 | DE37: 8 | DJ37: 88 | DL37: 92 | DN37: 40 | DP37: 18 | DS37: 4.9 | DT37: 4.98 | DU37: 92.5 | DV37: 92.3 | DW37: 92.4
B38: 2009-07-17 | D38: 1 | E38: 9 | N38: 40 | S38: 10 | T38: 5.1 | U38: 94 | V38: 4 | DB38: 2009-07-17 | DD38: 1 | DE38: 9 | DF38: YES | DJ38: 91 | DL38: 93 | DN38: 40 | DP38: 19 | DS38: 10 | DT38: 5.1 | DU38: 90.1 | DV38: 90.2 | DW38: 90.3 | DX38: 4 | DY38: 4 | DZ38: 4
D39: 1 | E39: 10 | N39: 41 | S39: 8 | T39: 5.19 | U39: 93 | V39: 3.9 | DD39: 1 | DE39: 10 | DJ39: 88 | DN39: 41 | DP39: 20 | DS39: 8 | DT39: 5.19 | DU39: 90.4 | DV39: 93.3 | DW39: 95.2
D40: 1 | E40: 11 | N40: 41 | S40: 9 | T40: 5.1 | U40: 95.4 | V40: 3 | DD40: 1 | DE40: 11 | DJ40: 87 | DN40: 41 | DP40: 21 | DS40: 9 | DT40: 5.1 | DU40: 90.5 | DV40: 90.1 | DW40: 90.2 | DX40: 4.2 | DY40: 4.3 | DZ40: 4.4
D41: 1 | E41: 12 | N41: 38 | S41: 10 | T41: 5.2 | U41: 93.4 | V41: 5.2 | DA41: G3 | DD41: 1 | DE41: 12 | DJ41: 90 | DN41: 38 | DP41: 20 | DS41: 10 | DT41: 5.2 | DU41: 89.1 | DV41: 89.2 | DW41: 89.3
B42: 2009-07-20 | D42: 1 | E42: 13 | N42: 33 | S42: 5.4 | T42: 5.14 | U42: 95 | V42: 3.9 | DB42: 2009-07-20 | DD42: 1 | DE42: 13 | DJ42: 91 | DL42: 94 | DN42: 33 | DP42: 19 | DS42: 5.4 | DT42: 5.14 | DU42: 93.2 | DV42: 92.5 | DW42: 94.6 | DX42: 3.8 | DY42: 3.9 | DZ42: 4
D43: 1 | E43: 14 | N43: 33 | S43: 5.8 | T43: 4.9 | U43: 94.4 | V43: 4.2 | DD43: 1 | DE43: 14 | DN43: 33 | DP43: 18 | DS43: 5.8 | DT43: 4.9 | DU43: 91.2 | DV43: 96.2 | DW43: 95.2
B44: 2009-07-24 | D44: 1 | E44: 15 | N44: 39 | S44: 4.9 | T44: 5.24 | U44: 94 | V44: 4.3 | DB44: 2009-07-24 | DD44: 1 | DE44: 15 | DN44: 39 | DP44: 17 | DS44: 4.9 | DT44: 5.24 | DU44: 95.2 | DV44: 91.6 | DW44: 93.1 | DX44: 4.5 | DY44: 4.6 | DZ44: 4.7
B45: 2009-08-23 | D45: 1 | E45: 16 | N45: 38 | S45: 6.8 | T45: 4.91 | U45: 93 | V45: 4.2 | DB45: 2009-08-23 | DD45: 1 | DE45: 16 | DN45: 38 | DP45: 16 | DS45: 6.8 | DT45: 4.91 | DU45: 94.4 | DV45: 95.6 | DW45: 95.1
D46: 1 | E46: 17 | N46: 36 | S46: 6.5 | T46: 5.05 | U46: 95.4 | V46: 4.3 | DD46: 1 | DE46: 17 | DN46: 36 | DP46: 15 | DS46: 6.5 | DT46: 5.05 | DU46: 96.3 | DV46: 96.2 | DW46: 91.7 | DX46: 3.2 | DY46: 3.3 | DZ46: 3.4
D47: 1 | E47: 18 | N47: 37 | S47: 6.6 | T47: 5.03 | U47: 93.4 | V47: 3.9 | DD47: 1 | DE47: 18 | DN47: 37 | DP47: 14 | DS47: 6.6 | DT47: 5.03 | DU47: 91.5 | DV47: 92.5 | DW47: 92.9
B48: 2009-08-30 | D48: 1 | E48: 19 | N48: 38 | S48: 7 | T48: 5.15 | V48: 4 | DB48: 2009-08-30 | DD48: 1 | DE48: 19 | DF48: YES | DN48: 38 | DP48: 13 | DS48: 7 | DT48: 5.15 | DU48: 92.5 | DV48: 93.5 | DW48: 93.7 | DX48: 1.5 | DY48: 1.6 | DZ48: 1.7
D49: 1 | E49: 20 | N49: 32 | S49: 5.2 | T49: 5.1 | V49: 3.9 | DD49: 1 | DE49: 20 | DN49: 32 | DP49: 12 | DS49: 5.2 | DT49: 5.1 | DU49: 91.5 | DV49: 94.2 | DW49: 92.2
D50: 1 | E50: 21 | N50: 41 | S50: 7.3 | T50: 5.32 | V50: 4.2 | DD50: 1 | DE50: 21 | DN50: 41 | DP50: 10 | DS50: 7.3 | DT50: 5.32 | DU50: 92.3 | DV50: 92.8 | DW50: 94.2 | DX50: 2.2 | DY50: 2.3 | DZ50: 2.4
D51: 1 | E51: 22 | N51: 37 | S51: 6.5 | T51: 4.6 | V51: 4.3 | DD51: 1 | DE51: 22 | DF51: NO | DN51: 37 | DP51: 9 | DS51: 6.5 | DT51: 4.6 | DU51: 93.3 | DV51: 92.1 | DW51: 95.1
B52: 2009-09-18 | D52: 1 | E52: 23 | N52: 35 | S52: 6.2 | T52: 4.72 | U52: 95 | V52: 3.9 | DB52: 2009-09-18 | DD52: 1 | DE52: 23 | DN52: 35 | DP52: 8 | DS52: 6.2 | DT52: 4.72 | DU52: 93.5 | DV52: 92.3 | DW52: 92.7 | DX52: 2 | DY52: 2.1 | DZ52: 2.2
B53: 2009-09-18 | D53: 1 | E53: 24 | N53: 37 | S53: 6.6 | T53: 5.01 | U53: 94.4 | V53: 4 | DB53: 2009-09-18 | DD53: 1 | DE53: 24 | DN53: 37 | DP53: 9 | DS53: 6.6 | DT53: 5.01 | DU53: 91.1 | DV53: 91.1 | DW53: 91.1
B54: 2009-09-18 | D54: 1 | E54: 25 | N54: 33 | S54: 5.9 | T54: 5.19 | U54: 94 | V54: 3.9 | DB54: 2009-09-18 | DD54: 1 | DE54: 25 | DN54: 33 | DP54: 10 | DS54: 5.9 | DT54: 5.19 | DU54: 92.2 | DV54: 91.5 | DW54: 93.4 | DX54: 1 | DY54: 1.1 | DZ54: 1.2
B55: 2009-09-18 | D55: 1 | E55: 26 | N55: 40 | S55: 7.8 | T55: 5.16 | U55: 93 | V55: 3.9 | DB55: 2009-09-18 | DD55: 1 | DE55: 26 | DN55: 40 | DP55: 11 | DS55: 7.8 | DT55: 5.16 | DU55: 92.1 | DV55: 92.3 | DW55: 92.2
B56: 2009-09-19 | D56: 1 | E56: 27 | N56: 36 | S56: 6.9 | T56: 4.97 | U56: 95.4 | V56: 4 | DB56: 2009-09-19 | DD56: 1 | DE56: 27 | DN56: 36 | DP56: 12 | DS56: 6.9 | DT56: 4.97 | DU56: 90.1 | DV56: 91.2 | DW56: 91.3 | DX56: 0.9 | DY56: 0.8 | DZ56: 0.7
H57: =IF(AP57="","",AP57) ->  | I57: =IF(AQ57="","",AQ57) ->  | J57: =IF(AR57="","",AR57) ->  | K57: =IF(AS57="","",AS57) ->  | L57: =IF(AT57="","",AT57) ->  | M57: =IF(AU57="","",AU57) ->  | N57: =IF(AV57="","",AV57) ->  | O57: =IF(AW57="","",AW57) ->  | P57: =IF(AX57="","",AX57) ->  | Q57: =IF(AY57="","",AY57) ->  | R57: =IF(AZ57="","",AZ57) ->  | S57: =IF(BA57="","",BA57) ->  | T57: =IF(BB57="","",BB57) ->  | U57: =IF(BC57="","",BC57) ->  | V57: =IF(BD57="","",BD57) -> 
H95: =IF(AP95="","",AP95) ->  | I95: =IF(AQ95="","",AQ95) ->  | J95: =IF(AR95="","",AR95) ->  | K95: =IF(AS95="","",AS95) ->  | L95: =IF(AT95="","",AT95) ->  | M95: =IF(AU95="","",AU95) ->  | N95: =IF(AV95="","",AV95) ->  | O95: =IF(AW95="","",AW95) ->  | P95: =IF(AX95="","",AX95) ->  | Q95: =IF(AY95="","",AY95) ->  | R95: =IF(AZ95="","",AZ95) ->  | S95: =IF(BA95="","",BA95) ->  | T95: =IF(BB95="","",BB95) ->  | U95: =IF(BC95="","",BC95) ->  | V95: =IF(BD95="","",BD95) -> 

Sheet Beta PWL Calculation (hidden)
A1: 1-Sided Beta PWL calculation
A2: Sublot | B2: Test Result | C2: Lot Averge | D2: Lot Standard Deviation | E2: Quality Index (Q) | F2: Number Tests in Lot | G2: d2 | H2: x | I2: PWL | J2: LSL
A3: 1A1 | B3: 3850
A4: 1A2
A5: 1B1
A6: 1B2
A7: 1C1
A8: 1C2
A9: 1D1
A10: 1D2
A11: 1E1
A12: 1E2 | C12: =AVERAGE(B3:B12) -> 3850 | D12: =IF(STDEV(B3:B12)<0.001,0.001,STDEV(B3:B12)) ->  | E12: =(C12-J12)/D12 ->  | F12: =COUNT(B3:B12) -> 1 | G12: =SQRT(F12) -> 1 | H12: =IF(MAX(0,0.5-(E12*G12/(2*(F12-1))))>1,1,MAX(0,0.5-(E12*G12/(2*(F12-1))))) ->  | I12: =100-(BETADIST(H12,(F12/2)-1,(F12/2)-1))*100 ->  | J12: 3000
A22: 2-sided Beta PWL Calculation
A23: Sublot | C23: Lot Averge | D23: Lot Standard Deviation | E23: QUV | F23: Number Tests in Lot | G23: d2 | H23: x | I23: PWLUV | J23: USL | K23: QLLV | L23: d2 | M23: x | N23: PWLLV | O23: LSL | P23: PWL
A24: 1 | B24: 5.1
A25: 2
A26: 3
A27: 4
A28: 5
A29: 6
A30: 7
A31: 8
A32: 9
A33: 10
A34: 11
A35: 12
A36: 13
A37: 14
A38: 15
A39: 16
A40: 17
A41: 18
A42: 19
A43: 20
A44: 21
A45: 22 | B45: 5.4
A46: 23 | B46: 5.3
A47: 24
A48: 25
A49: 26
A50: 27
A51: 28
C52: =AVERAGE(B24:B52) -> 5.266666667 | D52: =IF(STDEV(B24:B52)<0.001,0.001,STDEV(B24:B52)) -> 0.1527525232 | E52: =(J52-C52)/D52 -> 17.893867 | F52: =COUNT(B24:B52) -> 3 | G52: =SQRT(F52) -> 1.732050808 | H52: =IF(MAX(0,0.5-(E52*G52/(2*(F52-1))))>1,1,MAX(0,0.5-(E52*G52/(2*(F52-1))))) | I52: =100-(BETADIST(H52,(F52/2)-1,(F52/2)-1))*100 ->  | J52: 8 | K52: =(C52-O52)/D52 -> 1.745743122 | L52: =SQRT(F52) -> 1.732050808 | M52: =IF(MAX(0,0.5-(K52*L52/(2*(F52-1))))>1,1,MAX(0,0.5-(K52*L52/(2*(F52-1))))) -> 0 | N52: =100-(BETADIST(M52,(F52/2)-1,(F52/2)-1))*100 -> 100 | O52: 5 | P52: =N52+I52-100 -> 
